{"text_format":"1","workbook":"xlsx","n_sheets":8,"sheets":["0","01","02","03","04","Sheet1","номенклатури","Sheet3"],"not_rendered":{"charts":0,"images":2,"macros":1,"external_links":0,"defined_names":15,"comments":1,"pivot_tables":0},"unopened":[],"bounds":{"document_bytes":16777216,"sheet_cells":100000,"rows_first":2000,"rows_last":500,"rows_between":2000,"halvings":0,"cell_chars":16384,"cell_head_chars":4096},"cells_cut":0,"cells_raw":0,"read":"whole","date_system":"1900"}

{"sheet":"0","index":0,"n_rows":14,"n_cols":3,"rows_kept":14,"cut":false,"hidden":false,"merged":[[5,0,5,3],[0,0,0,1]]}
["ЕДИННА ЕЛЕКТРОННА ОТЧЕТНА ФОРМА",null,{"$f":"IF(COUNTIFS(C9:D11,\"Грешка\")>0,\"Грешно попълнен отчет\",\"\")","v":""}]
["2020-06-30"]
["ЕИК"]
["………………","ЕЕОФ общински ЛЗБП версия 2.0 2020г"]
["Наименование на лечебното заведение:"]
[{"$f":"VLOOKUP(A4,номенклатури!$J$1:$K$122,2,0)","v":"Лечебно заведение"}]
[{"$f":"IF(MONTH(A2)=12,\"СПИСЪК НА ПРИЛОЖЕНИТЕ ОТЧЕТНИ ФОРМИ КЪМ ГОДИШЕН ФИНАНСОВ ОТЧЕТ\",\"СПИСЪК НА ПРИЛОЖЕНИТЕ ОТЧЕТНИ ФОРМИ КЪМ МЕЖДИНЕН ФИНАНСОВ ОТЧЕТ\")","v":"СПИСЪК НА ПРИЛОЖЕНИТЕ ОТЧЕТНИ ФОРМИ КЪМ МЕЖДИНЕН ФИНАНСОВ ОТЧЕТ"}]
[null,{"$f":"'01'!D1","v":"Т01 ОТЧЕТ ЗА ФИНАНСОВОТО СЪСТОЯНИЕ НА Лечебно заведение КЪМ 30-06-2020"}]
[null,{"$f":"'02'!D1","v":"Т02 РЕКАПИТУЛАЦИЯ НА ЗАДЪЛЖЕНИИЯТА НА Лечебно заведение КЪМ 30-06-2020"}]
[null,{"$f":"'03'!D1","v":"Т03 СПРАВКА ЗА ПЕРСОНАЛА НА Лечебно заведение ОТ 01-01-2020 ДО 30-06-2020"}]
[null,{"$f":"'04'!D1","v":"Т04 МЕДИКОСТАТИСТИЧЕСКИ И ФИНАНСОВИ ПОКАЗАТЕЛИ ЗА ДЕЙНОСТТА НА СТАЦИОНАРА НА Лечебно заведение ОТ 01-01-2020 ДО 30-06-2020"}]
[]
[]
["Електронен подпис"]

{"sheet":"01","index":1,"n_rows":31,"n_cols":11,"rows_kept":31,"cut":false,"hidden":false,"merged":[[0,3,0,6]]}
[{"$f":"'0'!$A$4","v":"………………"},{"$f":"'0'!$A$2","v":"2020-06-30"},"Т02",{"$f":"\"Т01 ОТЧЕТ ЗА ФИНАНСОВОТО СЪСТОЯНИЕ НА \"&'0'!A6&\" КЪМ \"&TEXT(B1,\"DD-MM-YYYY\")","v":"Т01 ОТЧЕТ ЗА ФИНАНСОВОТО СЪСТОЯНИЕ НА Лечебно заведение КЪМ 30-06-2020"},null,null,null,"Код","В лева",{"$f":"COUNTBLANK(I4:I30)","v":0},{"$f":"IF(ROUND(I4-I15,2)=0,\"OK\",\"Неравнен баланс\")","v":"OK"}]
[{"$f":"'0'!$A$4","v":"………………"},{"$f":"'0'!$A$2","v":"2020-06-30"},"Т02"]
[{"$f":"'0'!$A$4","v":"………………"},{"$f":"'0'!$A$2","v":"2020-06-30"},"Т02"]
[{"$f":"'0'!$A$4","v":"………………"},{"$f":"'0'!$A$2","v":"2020-06-30"},"Т02","00","00","01","АКТИВИ",{"$f":"D4&E4&F4","v":"000001"},{"$f":"I5+I9+I14","v":0}]
[{"$f":"'0'!$A$4","v":"………………"},{"$f":"'0'!$A$2","v":"2020-06-30"},"Т02","01","00","00","Нетекущи активи","010000",{"$f":"SUM(I6:I8)","v":0}]
[{"$f":"'0'!$A$4","v":"………………"},{"$f":"'0'!$A$2","v":"2020-06-30"},"Т02","01","01","00","Имоти, машини и оборудване","010100",0]
[{"$f":"'0'!$A$4","v":"………………"},{"$f":"'0'!$A$2","v":"2020-06-30"},"Т02","01","02","00","Нематериални активи","010200",0]
[{"$f":"'0'!$A$4","v":"………………"},{"$f":"'0'!$A$2","v":"2020-06-30"},"Т02","01","03","00","Инвестиции в дъщерни предприятия","010300",0]
[{"$f":"'0'!$A$4","v":"………………"},{"$f":"'0'!$A$2","v":"2020-06-30"},"Т02","02","00","00","Текущи активи","020000",{"$f":"SUM(I10:I13)","v":0}]
[{"$f":"'0'!$A$4","v":"………………"},{"$f":"'0'!$A$2","v":"2020-06-30"},"Т02","02","01","00","Материални запаси","020100",0]
[{"$f":"'0'!$A$4","v":"………………"},{"$f":"'0'!$A$2","v":"2020-06-30"},"Т02","02","02","00","Търговски и други вземания","020200",0]
[{"$f":"'0'!$A$4","v":"………………"},{"$f":"'0'!$A$2","v":"2020-06-30"},"Т02","02","05","00","Други вземания","020500",0]
[{"$f":"'0'!$A$4","v":"………………"},{"$f":"'0'!$A$2","v":"2020-06-30"},"Т02","02","03","00","Парични средства","020300",0]
[{"$f":"'0'!$A$4","v":"………………"},{"$f":"'0'!$A$2","v":"2020-06-30"},"Т02","14","00","00","Разходи за бъдещи периоди",{"$f":"D14&E14&F14","v":"140000"},0]
[{"$f":"'0'!$A$4","v":"………………"},{"$f":"'0'!$A$2","v":"2020-06-30"},"Т02","00","00","02","СОБСТВЕН КАПИТАЛ И ПАСИВИ",{"$f":"D15&E15&F15","v":"000002"},{"$f":"I16+I22+I25+I31","v":0}]
[{"$f":"'0'!$A$4","v":"………………"},{"$f":"'0'!$A$2","v":"2020-06-30"},"Т02","00","00","03","СОБСТВЕН КАПИТАЛ","000003",{"$f":"SUM(I17:I19)","v":0}]
[{"$f":"'0'!$A$4","v":"………………"},{"$f":"'0'!$A$2","v":"2020-06-30"},"Т02","03","00","00","Основен капитал","030000",0]
[{"$f":"'0'!$A$4","v":"………………"},{"$f":"'0'!$A$2","v":"2020-06-30"},"Т02","04","00","01","Резерви","040001",0]
[{"$f":"'0'!$A$4","v":"………………"},{"$f":"'0'!$A$2","v":"2020-06-30"},"Т02","12","00","00","Общ финансов резултат",{"$f":"D19&E19&F19","v":"120000"},{"$f":"SUM(I20:I21)","v":0}]
[{"$f":"'0'!$A$4","v":"………………"},{"$f":"'0'!$A$2","v":"2020-06-30"},"Т02","08","00","00","Натрупана печалба (загуба)","080000",0]
[{"$f":"'0'!$A$4","v":"………………"},{"$f":"'0'!$A$2","v":"2020-06-30"},"Т02","09","00","00","Текуща печалба (загуба)","090000",0]
[{"$f":"'0'!$A$4","v":"………………"},{"$f":"'0'!$A$2","v":"2020-06-30"},"Т02","10","00","00","Нетекущи задължения","100000",{"$f":"SUM(I23:I24)","v":0}]
[{"$f":"'0'!$A$4","v":"………………"},{"$f":"'0'!$A$2","v":"2020-06-30"},"Т02","10","01","00","Пасиви по отсрочени данъци","100100",0]
[{"$f":"'0'!$A$4","v":"………………"},{"$f":"'0'!$A$2","v":"2020-06-30"},"Т02","10","08","00","Други нетекущи задължения","100800",0]
[{"$f":"'0'!$A$4","v":"………………"},{"$f":"'0'!$A$2","v":"2020-06-30"},"Т02","11","00","00","Текущи задължения",{"$f":"D25&E25&F25","v":"110000"},{"$f":"SUM(I26:I30)","v":0}]
[{"$f":"'0'!$A$4","v":"………………"},{"$f":"'0'!$A$2","v":"2020-06-30"},"Т02","11","01","00","Търговски и други задължения","110100",0]
[{"$f":"'0'!$A$4","v":"………………"},{"$f":"'0'!$A$2","v":"2020-06-30"},"Т02","11","04","00","Задължения към персонала","110400",0]
[{"$f":"'0'!$A$4","v":"………………"},{"$f":"'0'!$A$2","v":"2020-06-30"},"Т02","11","05","00","Задължения към осигурителни предприятия","110500",0]
[{"$f":"'0'!$A$4","v":"………………"},{"$f":"'0'!$A$2","v":"2020-06-30"},"Т02","11","06","00","Данъчни задължения","110600",0]
[{"$f":"'0'!$A$4","v":"………………"},{"$f":"'0'!$A$2","v":"2020-06-30"},"Т02","11","09","00","Други текущи задължения","110900",0]
[{"$f":"'0'!$A$4","v":"………………"},{"$f":"'0'!$A$2","v":"2020-06-30"},"Т02","13","00","00","Приходи за бъдещи периоди","130000",0]

{"sheet":"02","index":2,"n_rows":52,"n_cols":10,"rows_kept":52,"cut":false,"hidden":false,"merged":[]}
[{"$f":"'0'!$A$4","v":"………………"},{"$f":"'0'!$A$2","v":"2020-06-30"},null,{"$f":"\"Т02 РЕКАПИТУЛАЦИЯ НА ЗАДЪЛЖЕНИИЯТА НА \"&'0'!$A$6&\" КЪМ \"&TEXT(B1,\"DD-MM-YYYY\")","v":"Т02 РЕКАПИТУЛАЦИЯ НА ЗАДЪЛЖЕНИИЯТА НА Лечебно заведение КЪМ 30-06-2020"},null,null,{"$f":"\"Т02 РЕКАПИТУЛАЦИЯ НА ЗАДЪЛЖЕНИИЯТА НА \"&'0'!$A$6&\" КЪМ \"&TEXT(B1,\"DD-MM-YYYY\")","v":"Т02 РЕКАПИТУЛАЦИЯ НА ЗАДЪЛЖЕНИИЯТА НА Лечебно заведение КЪМ 30-06-2020"},"Код","Задължения\n (в лева)","От тях просрочени\n(в лева)"]
[{"$f":"'0'!$A$4","v":"………………"},{"$f":"'0'!$A$2","v":"2020-06-30"}]
[{"$f":"'0'!$A$4","v":"………………"},{"$f":"'0'!$A$2","v":"2020-06-30"},"Т04","00","00","01","ОБЩО ЗАДЪЛЖЕНИЯ",{"$f":"D3&E3&F3","v":"000001"},{"$f":"I4+I12","v":0},{"$f":"J4+J12","v":0}]
[{"$f":"'0'!$A$4","v":"………………"},{"$f":"'0'!$A$2","v":"2020-06-30"},"Т04","01","00","00","Нетекущи задължения","010000",{"$f":"SUM(I5:I11)","v":0},{"$f":"SUM(J5:J11)","v":0}]
[{"$f":"'0'!$A$4","v":"………………"},{"$f":"'0'!$A$2","v":"2020-06-30"},"Т04","01","01","00","Пасиви по отсрочени данъци","010100"]
[{"$f":"'0'!$A$4","v":"………………"},{"$f":"'0'!$A$2","v":"2020-06-30"},"Т04","01","02","00","Нетекущи задължения по търговски заеми и финансов лизинг","010200"]
[{"$f":"'0'!$A$4","v":"………………"},{"$f":"'0'!$A$2","v":"2020-06-30"},"Т04","01","03","00","Нетекущи търговски гаранции","010300"]
[{"$f":"'0'!$A$4","v":"………………"},{"$f":"'0'!$A$2","v":"2020-06-30"},"Т04","01","04","00","Дългосрочни банкови заеми","010400"]
[{"$f":"'0'!$A$4","v":"………………"},{"$f":"'0'!$A$2","v":"2020-06-30"},"Т04","01","05","00","Дългосрочни провизии","010500"]
[{"$f":"'0'!$A$4","v":"………………"},{"$f":"'0'!$A$2","v":"2020-06-30"},"Т04","01","06","00","Задължения по договори за предоставяне на субсидия за закупуване на нетекущи активи преди увеличаване на капитала","010600"]
[{"$f":"'0'!$A$4","v":"………………"},{"$f":"'0'!$A$2","v":"2020-06-30"},"Т04","01","07","00","Нетекуща част на финансиранията","010700"]
[{"$f":"'0'!$A$4","v":"………………"},{"$f":"'0'!$A$2","v":"2020-06-30"},"Т04","02","00","00","Текущи задължения","020000",{"$f":"I13+I48+I49+I50+I51+I52","v":0},{"$f":"J13+J48+J49+J50+J51+J52","v":0}]
[{"$f":"'0'!$A$4","v":"………………"},{"$f":"'0'!$A$2","v":"2020-06-30"},"Т04","02","01","00","Общо търговски и други задължения","020100",{"$f":"SUM(I14:I47)","v":0},{"$f":"SUM(J14:J47)","v":0}]
[{"$f":"'0'!$A$4","v":"………………"},{"$f":"'0'!$A$2","v":"2020-06-30"},"Т04","02","01","01","Лекарствени продукти","020101"]
[{"$f":"'0'!$A$4","v":"………………"},{"$f":"'0'!$A$2","v":"2020-06-30"},"Т04","02","01","02","Медицински изделия","020102"]
[{"$f":"'0'!$A$4","v":"………………"},{"$f":"'0'!$A$2","v":"2020-06-30"},"Т04","02","01","03","Кръвни и биопродукти","020103"]
[{"$f":"'0'!$A$4","v":"………………"},{"$f":"'0'!$A$2","v":"2020-06-30"},"Т04","02","01","04","Медицински газове","020104"]
[{"$f":"'0'!$A$4","v":"………………"},{"$f":"'0'!$A$2","v":"2020-06-30"},"Т04","02","01","05","Храна на болни","020105"]
[{"$f":"'0'!$A$4","v":"………………"},{"$f":"'0'!$A$2","v":"2020-06-30"},"Т04","02","01","06","Храна на персонал (Наредба 11)","020106"]
[{"$f":"'0'!$A$4","v":"………………"},{"$f":"'0'!$A$2","v":"2020-06-30"},"Т04","02","01","07","Вода, горива, ел. енергия, топлинна енергия","020107"]
[{"$f":"'0'!$A$4","v":"………………"},{"$f":"'0'!$A$2","v":"2020-06-30"},"Т04","02","01","08","Резервни части и доокомплектовка на апаратура","020108"]
[{"$f":"'0'!$A$4","v":"………………"},{"$f":"'0'!$A$2","v":"2020-06-30"},"Т04","02","01","09","Медицински принадлежности","020109"]
[{"$f":"'0'!$A$4","v":"………………"},{"$f":"'0'!$A$2","v":"2020-06-30"},"Т04","02","01","10","Хигиенни материали","020110"]
[{"$f":"'0'!$A$4","v":"………………"},{"$f":"'0'!$A$2","v":"2020-06-30"},"Т04","02","01","11","Канцеларски материали","020111"]
[{"$f":"'0'!$A$4","v":"………………"},{"$f":"'0'!$A$2","v":"2020-06-30"},"Т04","02","01","12","Работно облекло и постелен инвентар","020112"]
[{"$f":"'0'!$A$4","v":"………………"},{"$f":"'0'!$A$2","v":"2020-06-30"},"Т04","02","01","13","Други материали","020113"]
[{"$f":"'0'!$A$4","v":"………………"},{"$f":"'0'!$A$2","v":"2020-06-30"},"Т04","02","01","14","Текущ ремонт на сграден фонд","020114"]
[{"$f":"'0'!$A$4","v":"………………"},{"$f":"'0'!$A$2","v":"2020-06-30"},"Т04","02","01","15","Текущ ремонт на апаратура и оборудване","020115"]
[{"$f":"'0'!$A$4","v":"………………"},{"$f":"'0'!$A$2","v":"2020-06-30"},"Т04","02","01","16","Поддръжка на оборудване и софтуер","020116"]
[{"$f":"'0'!$A$4","v":"………………"},{"$f":"'0'!$A$2","v":"2020-06-30"},"Т04","02","01","17","Наети активи","020117"]
[{"$f":"'0'!$A$4","v":"………………"},{"$f":"'0'!$A$2","v":"2020-06-30"},"Т04","02","01","18","Медицински услуги","020118"]
[{"$f":"'0'!$A$4","v":"………………"},{"$f":"'0'!$A$2","v":"2020-06-30"},"Т04","02","01","19","Транспорт","020119"]
[{"$f":"'0'!$A$4","v":"………………"},{"$f":"'0'!$A$2","v":"2020-06-30"},"Т04","02","01","20","Застраховки","020120"]
[{"$f":"'0'!$A$4","v":"………………"},{"$f":"'0'!$A$2","v":"2020-06-30"},"Т04","02","01","21","Телефон, интернет, пощенски и куриерски услуги","020121"]
[{"$f":"'0'!$A$4","v":"………………"},{"$f":"'0'!$A$2","v":"2020-06-30"},"Т04","02","01","22","Събиране, транспортиране и обезвреждане на отпадъци",{"$f":"D35&E35&F35","v":"020122"}]
[{"$f":"'0'!$A$4","v":"………………"},{"$f":"'0'!$A$2","v":"2020-06-30"},"Т04","02","01","23","Почистване, пране, стерилизация","020123"]
[{"$f":"'0'!$A$4","v":"………………"},{"$f":"'0'!$A$2","v":"2020-06-30"},"Т04","02","01","24","Юридически услуги","020124"]
[{"$f":"'0'!$A$4","v":"………………"},{"$f":"'0'!$A$2","v":"2020-06-30"},"Т04","02","01","25","Консултантски услуги","020125"]
[{"$f":"'0'!$A$4","v":"………………"},{"$f":"'0'!$A$2","v":"2020-06-30"},"Т04","02","01","26","Други външни услуги","020126"]
[{"$f":"'0'!$A$4","v":"………………"},{"$f":"'0'!$A$2","v":"2020-06-30"},"Т04","02","01","27","Социални разходи","020127"]
[{"$f":"'0'!$A$4","v":"………………"},{"$f":"'0'!$A$2","v":"2020-06-30"},"Т04","02","01","28","Представителни разходи","020128"]
[{"$f":"'0'!$A$4","v":"………………"},{"$f":"'0'!$A$2","v":"2020-06-30"},"Т04","02","01","29","Други (други)","020129"]
[{"$f":"'0'!$A$4","v":"………………"},{"$f":"'0'!$A$2","v":"2020-06-30"},"Т04","02","01","30","Придобиване на имоти, машини и оборудване","020130"]
[{"$f":"'0'!$A$4","v":"………………"},{"$f":"'0'!$A$2","v":"2020-06-30"},"Т04","02","01","31","Придобиване на нематериални активи","020131"]
[{"$f":"'0'!$A$4","v":"………………"},{"$f":"'0'!$A$2","v":"2020-06-30"},"Т04","02","01","32","Основен ремонт на имоти, машини и оборудване","020132"]
[{"$f":"'0'!$A$4","v":"………………"},{"$f":"'0'!$A$2","v":"2020-06-30"},"Т04","02","01","33","Гаранции","020133"]
[{"$f":"'0'!$A$4","v":"………………"},{"$f":"'0'!$A$2","v":"2020-06-30"},"Т04","02","01","34","Банкови заеми","020134"]
[{"$f":"'0'!$A$4","v":"………………"},{"$f":"'0'!$A$2","v":"2020-06-30"},"Т04","02","02","00","Задължения към персонала","020200"]
[{"$f":"'0'!$A$4","v":"………………"},{"$f":"'0'!$A$2","v":"2020-06-30"},"Т04","02","03","00","Задължения към осигурителни предприятия","020300"]
[{"$f":"'0'!$A$4","v":"………………"},{"$f":"'0'!$A$2","v":"2020-06-30"},"Т04","02","04","00","Данъчни задължения","020400"]
[{"$f":"'0'!$A$4","v":"………………"},{"$f":"'0'!$A$2","v":"2020-06-30"},"Т04","02","05","00","Текуща част на финансиранията","020500"]
[{"$f":"'0'!$A$4","v":"………………"},{"$f":"'0'!$A$2","v":"2020-06-30"},"Т04","02","06","00","Провизии","020600"]

{"sheet":"03","index":3,"n_rows":52,"n_cols":10,"rows_kept":52,"cut":false,"hidden":false,"merged":[[0,3,0,6]]}
[{"$f":"'0'!$A$4","v":"………………"},{"$f":"'0'!$A$2","v":"2020-06-30"},"Т06",{"$f":"\"Т03 СПРАВКА ЗА ПЕРСОНАЛА НА \"&'0'!A6&\" ОТ \"&TEXT(DATE(YEAR(B1),1,1),\"DD-MM-YYYY\")&\" ДО \"&TEXT(B1,\"DD-MM-YYYY\")","v":"Т03 СПРАВКА ЗА ПЕРСОНАЛА НА Лечебно заведение ОТ 01-01-2020 ДО 30-06-2020"},null,null,null,"Код","Стойност"]
[]
[]
[{"$f":"'0'!$A$4","v":"………………"},{"$f":"'0'!$A$2","v":"2020-06-30"},"Т06","00","00","01","РАЗХОДИ ЗА ВЪЗНАГРАЖДЕНИЯ",{"$f":"D4&E4&F4","v":"000001"},{"$f":"I6+I28+I44","v":0}]
[{"$f":"'0'!$A$4","v":"………………"},{"$f":"'0'!$A$2","v":"2020-06-30"},"Т06","01","00","00","Трудови правоотношения","010000"]
[{"$f":"'0'!$A$4","v":"………………"},{"$f":"'0'!$A$2","v":"2020-06-30"},"Т06","01","01","00","Възнаграждения","010100",{"$f":"SUM(I9:I13)","v":0}]
[{"$f":"'0'!$A$4","v":"………………"},{"$f":"'0'!$A$2","v":"2020-06-30"},"Т06","01","01",1," -от тях с характер на ДМС","01011",0]
[null,"2020-03-31","Т06","01","01",2," -(в т.ч. доп. възнаграждения за работещи в условия на заплаха от COVID-19)","01012",0,"Изплатени допълнителни възнаграждения, финансирани по Оперативна програма „Развитие на човешките ресурси” 2014-2020 г. за подкрепа на работещи в системата на здравеопазването в условия на заплаха за общественото здраве от COVID-19"]
[{"$f":"'0'!$A$4","v":"………………"},{"$f":"'0'!$A$2","v":"2020-06-30"},"Т06","01","01","01","лекари","010101",0]
[{"$f":"'0'!$A$4","v":"………………"},{"$f":"'0'!$A$2","v":"2020-06-30"},"Т06","01","01","04","специалисти по здравни грижи","010104",0]
[{"$f":"'0'!$A$4","v":"………………"},{"$f":"'0'!$A$2","v":"2020-06-30"},"Т06","01","01","05","санитари и болногледачи","010105",0]
[{"$f":"'0'!$A$4","v":"………………"},{"$f":"'0'!$A$2","v":"2020-06-30"},"Т06","01","01","08","друг медицински персонал","010108",0]
[{"$f":"'0'!$A$4","v":"………………"},{"$f":"'0'!$A$2","v":"2020-06-30"},"Т06","01","01","09","немедицински персонал",{"$f":"D13&E13&F13","v":"010109"},0]
[{"$f":"'0'!$A$4","v":"………………"},{"$f":"'0'!$A$2","v":"2020-06-30"},"Т06","01","02","00","Средносписъчен брой на персонала по трудови правоотношения","010200",{"$f":"SUM(I15:I20)","v":0}]
[null,"2020-03-31","Т06","01","02","1","в т.ч. бр. лица, работещи в условия на заплаха от COVID-19","01021",0,"Численост на персонала,  подлежащ на стимулиране съгласно критериите на Оперативна програма „Развитие на човешките ресурси” 2014-2020 г., за подкрепа на работещи в системата на здравеопазването в условия на заплаха за общественото здраве от COVID-19"]
[{"$f":"'0'!$A$4","v":"………………"},{"$f":"'0'!$A$2","v":"2020-06-30"},"Т06","01","02","01","лекари","010201",0]
[{"$f":"'0'!$A$4","v":"………………"},{"$f":"'0'!$A$2","v":"2020-06-30"},"Т06","01","02","04","специалисти по здравни грижи","010204",0]
[{"$f":"'0'!$A$4","v":"………………"},{"$f":"'0'!$A$2","v":"2020-06-30"},"Т06","01","02","05","санитари и болногледачи","010205",0]
[{"$f":"'0'!$A$4","v":"………………"},{"$f":"'0'!$A$2","v":"2020-06-30"},"Т06","01","02","08","друг медицински персонал","010208",0]
[{"$f":"'0'!$A$4","v":"………………"},{"$f":"'0'!$A$2","v":"2020-06-30"},"Т06","01","02","09","немедицински персонал","010209",0]
[{"$f":"'0'!$A$4","v":"………………"},{"$f":"'0'!$A$2","v":"2020-06-30"},"Т06","01","03","00","Средномесечно възнаграждение","010300",{"$f":"IF(I14=0,\"\",I6/I14/MONTH($B21))","v":""}]
[{"$f":"'0'!$A$4","v":"………………"},{"$f":"'0'!$A$2","v":"2020-06-30"},"Т06","01","03","01","лекари","010301",{"$f":"IF(I16=0,\"\",I9/I16/MONTH($B22))","v":""}]
[{"$f":"'0'!$A$4","v":"………………"},{"$f":"'0'!$A$2","v":"2020-06-30"},"Т06","01","03","04","специалисти по здравни грижи","010304",{"$f":"IF(I17=0,\"\",I10/I17/MONTH($B23))","v":""}]
[{"$f":"'0'!$A$4","v":"………………"},{"$f":"'0'!$A$2","v":"2020-06-30"},"Т06","01","03","05","санитари и болногледачи","010305",{"$f":"IF(I18=0,\"\",I11/I18/MONTH($B24))","v":""}]
[{"$f":"'0'!$A$4","v":"………………"},{"$f":"'0'!$A$2","v":"2020-06-30"},"Т06","01","03","08","друг медицински персонал","010308",{"$f":"IF(I19=0,\"\",I12/I19/MONTH($B25))","v":""}]
[{"$f":"'0'!$A$4","v":"………………"},{"$f":"'0'!$A$2","v":"2020-06-30"},"Т06","01","03","09","немедицински персонал","010309",{"$f":"IF(I20=0,\"\",I13/I20/MONTH($B26))","v":""}]
[{"$f":"'0'!$A$4","v":"………………"},{"$f":"'0'!$A$2","v":"2020-06-30"},"Т06","02","00","00","Извънтрудови правоотношения","020000"]
[{"$f":"'0'!$A$4","v":"………………"},{"$f":"'0'!$A$2","v":"2020-06-30"},"Т06","02","01","00","Възнаграждения","020100",{"$f":"SUM(I29:I32)","v":0}]
[{"$f":"'0'!$A$4","v":"………………"},{"$f":"'0'!$A$2","v":"2020-06-30"},"Т06","02","01","01","лекари","020101",0]
[{"$f":"'0'!$A$4","v":"………………"},{"$f":"'0'!$A$2","v":"2020-06-30"},"Т06","02","01","02","специалисти по здравни грижи","020102",0]
[{"$f":"'0'!$A$4","v":"………………"},{"$f":"'0'!$A$2","v":"2020-06-30"},"Т06","02","01","04","санитари и болногледачи","020104",0]
[{"$f":"'0'!$A$4","v":"………………"},{"$f":"'0'!$A$2","v":"2020-06-30"},"Т06","02","01","03","други","020103",0]
[{"$f":"'0'!$A$4","v":"………………"},{"$f":"'0'!$A$2","v":"2020-06-30"},"Т06","02","02","00","Средномесечен брой (физически лица) ","020200",{"$f":"SUM(I34:I37)","v":0}]
[{"$f":"'0'!$A$4","v":"………………"},{"$f":"'0'!$A$2","v":"2020-06-30"},"Т06","02","02","01","лекари","020201",0]
[{"$f":"'0'!$A$4","v":"………………"},{"$f":"'0'!$A$2","v":"2020-06-30"},"Т06","02","02","02","специалисти по здравни грижи","020202",0]
[{"$f":"'0'!$A$4","v":"………………"},{"$f":"'0'!$A$2","v":"2020-06-30"},"Т06","02","02","04","санитари и болногледачи","020204",0]
[{"$f":"'0'!$A$4","v":"………………"},{"$f":"'0'!$A$2","v":"2020-06-30"},"Т06","02","02","03","други","020203",0]
[{"$f":"'0'!$A$4","v":"………………"},{"$f":"'0'!$A$2","v":"2020-06-30"},"Т06","02","03","00","Средномесечно възнаграждение",{"$f":"D38&E38&F38","v":"020300"},{"$f":"IF(I33=0,\"\",I28/I33/MONTH($B38))","v":""}]
[{"$f":"'0'!$A$4","v":"………………"},{"$f":"'0'!$A$2","v":"2020-06-30"},"Т06","02","03","01","лекари","020301",{"$f":"IF(I34=0,\"\",I29/I34/MONTH($B39))","v":""}]
[{"$f":"'0'!$A$4","v":"………………"},{"$f":"'0'!$A$2","v":"2020-06-30"},"Т06","02","03","02","специалисти по здравни грижи","020302",""]
[{"$f":"'0'!$A$4","v":"………………"},{"$f":"'0'!$A$2","v":"2020-06-30"},"Т06","02","03","04","санитари и болногледачи","020304",""]
[{"$f":"'0'!$A$4","v":"………………"},{"$f":"'0'!$A$2","v":"2020-06-30"},"Т06","02","03","03","други",{"$f":"D42&E42&F42","v":"020303"},""]
[{"$f":"'0'!$A$4","v":"………………"},{"$f":"'0'!$A$2","v":"2020-06-30"},"Т06","03","00","00","Договори за управление и контрол","030000"]
[{"$f":"'0'!$A$4","v":"………………"},{"$f":"'0'!$A$2","v":"2020-06-30"},"Т06","03","01","00","Възнаграждения","030100",0]
[{"$f":"'0'!$A$4","v":"………………"},{"$f":"'0'!$A$2","v":"2020-06-30"},"Т06","03","02","00","Средномесечен брой","030200",0]
[{"$f":"'0'!$A$4","v":"………………"},{"$f":"'0'!$A$2","v":"2020-06-30"},"Т06","03","03","00","Средномесечно възнаграждение","030300",{"$f":"IF(I45=0,\"\",I44/I45/MONTH($B46))","v":""}]
[{"$f":"'0'!$A$4","v":"………………"},{"$f":"'0'!$A$2","v":"2020-06-30"},"Т06","04","00","00","Общо разходи за персонал","040000",{"$f":"'04'!I35","v":0}]
[{"$f":"'0'!$A$4","v":"………………"},{"$f":"'0'!$A$2","v":"2020-06-30"},"Т06","04","01","00","в т. ч.: разходи за медицински персонал","040100",0]
[{"$f":"'0'!$A$4","v":"………………"},{"$f":"'0'!$A$2","v":"2020-06-30"},"Т06","04","02","00","Дял на разходите за персонал в приходите от медицински дейности (КП/АПр/КПр) в %","040200",{"$f":"IF('04'!I23=0,\"\",(I47/'04'!I23))","v":""}]
[{"$f":"'0'!$A$4","v":"………………"},{"$f":"'0'!$A$2","v":"2020-06-30"},"Т06","04","03","00","Дял на разходите за медицински персонал в общите разходи за персонал %","040300",{"$f":"IF(I47=0,\"\",(I48/I47))","v":""}]
[{"$f":"'0'!$A$4","v":"………………"},{"$f":"'0'!$A$2","v":"2020-06-30"},"Т06","04","04","00","Средно месечен брой болни на един лекар","040400",{"$f":"IF(I16=0,\"\",'04'!I10/I16/MONTH($B51))","v":""}]
[{"$f":"'0'!$A$4","v":"………………"},{"$f":"'0'!$A$2","v":"2020-06-30"},"Т06","04","05","00","Средно месечен брой болни на един специалист по здравни грижи","040500",{"$f":"IF(I17=0,\"\",'04'!I10/I17/MONTH($B52))","v":""}]

{"sheet":"04","index":4,"n_rows":48,"n_cols":10,"rows_kept":48,"cut":false,"hidden":false,"merged":[[0,3,0,6]]}
[null,null,null,{"$f":"\"Т04 МЕДИКОСТАТИСТИЧЕСКИ И ФИНАНСОВИ ПОКАЗАТЕЛИ ЗА ДЕЙНОСТТА НА СТАЦИОНАРА НА \"&'0'!$A$6&\" ОТ \"&TEXT(DATE(YEAR(B3),1,1),\"DD-MM-YYYY\")&\" ДО \"&TEXT(B4,\"DD-MM-YYYY\")","v":"Т04 МЕДИКОСТАТИСТИЧЕСКИ И ФИНАНСОВИ ПОКАЗАТЕЛИ ЗА ДЕЙНОСТТА НА СТАЦИОНАРА НА Лечебно заведение ОТ 01-01-2020 ДО 30-06-2020"},null,null,null,"Код","Стойност"]
[null,null,"1905-07-11"]
[{"$f":"'0'!$A$4","v":"………………"},{"$f":"'0'!$A$2","v":"2020-06-30"},"Т07"]
[{"$f":"'0'!$A$4","v":"………………"},{"$f":"'0'!$A$2","v":"2020-06-30"},"Т07",null,null,null,"Показатели за дейността "]
[{"$f":"'0'!$A$4","v":"………………"},{"$f":"'0'!$A$2","v":"2020-06-30"},"Т07","01","01","00","Брой легла към края на периода",{"$f":"D5&E5&F5","v":"010100"},0]
[{"$f":"'0'!$A$4","v":"………………"},{"$f":"'0'!$A$2","v":"2020-06-30"},"Т07","01","01","1","от тях интензивни","01011",0]
[{"$f":"'0'!$A$4","v":"………………"},{"$f":"'0'!$A$2","v":"2020-06-30"},"Т07","01","02","00","Средномесечен брой легла","010200",0]
[{"$f":"'0'!$A$4","v":"………………"},{"$f":"'0'!$A$2","v":"2020-06-30"},"Т07","01","02","1","от тях интензивни","01021",0]
[{"$f":"'0'!$A$4","v":"………………"},{"$f":"'0'!$A$2","v":"2020-06-30"},"Т07","01","03","00","Брой проведени леглодни","010300",0]
[{"$f":"'0'!$A$4","v":"………………"},{"$f":"'0'!$A$2","v":"2020-06-30"},"Т07","01","04","00","Брой преминали болни","010400",0]
[{"$f":"'0'!$A$4","v":"………………"},{"$f":"'0'!$A$2","v":"2020-06-30"},"Т07","01","04","1","от тях с коронавирус","01041",0]
[{"$f":"'0'!$A$4","v":"………………"},{"$f":"'0'!$A$2","v":"2020-06-30"},"Т07","01","04","01","Пренасочени към друго ЛЗБП","010401",0]
[{"$f":"'0'!$A$4","v":"………………"},{"$f":"'0'!$A$2","v":"2020-06-30"},"Т07","01","05","00","Брой изписани болни","010500",0]
[{"$f":"'0'!$A$4","v":"………………"},{"$f":"'0'!$A$2","v":"2020-06-30"},"Т07","01","06","00","Брой умрели ","010600",0]
[{"$f":"'0'!$A$4","v":"………………"},{"$f":"'0'!$A$2","v":"2020-06-30"},"Т07","01","07","00","Средна продължителност на престоя в дни","010700",{"$f":"IF(I10=0,\"-\",I9/I10)","v":"-"}]
[{"$f":"'0'!$A$4","v":"………………"},{"$f":"'0'!$A$2","v":"2020-06-30"},"Т07","01","08","00","Използваемост на едно легло в дни","010800",{"$f":"IF(I9=0,\"-\",I9/I7)","v":"-"}]
[{"$f":"'0'!$A$4","v":"………………"},{"$f":"'0'!$A$2","v":"2020-06-30"},"Т07","01","09","00","Използваемост на едно легло в %","010900",{"$f":"IF(I9=0,\"-\",I9/((B3-DATE(YEAR(B3),1,1))*I7))","v":"-"}]
[{"$f":"'0'!$A$4","v":"………………"},{"$f":"'0'!$A$2","v":"2020-06-30"},"Т07","01","10","00","Оборот на едно легло","011000",{"$f":"IF(I7=0,\"-\",I10/I7)","v":"-"}]
[{"$f":"'0'!$A$4","v":"………………"},{"$f":"'0'!$A$2","v":"2020-06-30"},"Т07","01","13","00","Леталитет (%)","011300",{"$f":"IF(I10=0,\"-\",I14/I10)","v":"-"}]
[{"$f":"'0'!$A$4","v":"………………"},{"$f":"'0'!$A$2","v":"2020-06-30"},"Т07",null,null,null,"Финансови показатели"]
[{"$f":"'0'!$A$4","v":"………………"},{"$f":"'0'!$A$2","v":"2020-06-30"},"Т07","02","01","00","Общо Приходи, в т. ч. от:",{"$f":"D21&E21&F21","v":"020100"},{"$f":"SUM(I23:I27,I29:I33)","v":0}]
[{"$f":"'0'!$A$4","v":"………………"},{"$f":"'0'!$A$2","v":"2020-06-30"},"Т07","02","01","01","РЗОК","020101",{"$f":"SUM(I23:I26)","v":0}]
[{"$f":"'0'!$A$4","v":"………………"},{"$f":"'0'!$A$2","v":"2020-06-30"},"Т07","02","01","1","РЗОК за дейности (КП/АПр/КПр) ","02011",0]
[{"$f":"'0'!$A$4","v":"………………"},{"$f":"'0'!$A$2","v":"2020-06-30"},"Т07","02","01","2","РЗОК за лекарствени продукти","02012",0]
[{"$f":"'0'!$A$4","v":"………………"},{"$f":"'0'!$A$2","v":"2020-06-30"},"Т07","02","01","3","РЗОК за медицински изделия","02013",0]
[{"$f":"'0'!$A$4","v":"………………"},{"$f":"'0'!$A$2","v":"2020-06-30"},"Т07","02","01","4","РЗОК за работа при неблагоприятни условия","02014",0,"Заплатени суми от НЗОК за работа при неблагоприятни условия, свързани с обявената епидемична обстановка"]
[{"$f":"'0'!$A$4","v":"………………"},{"$f":"'0'!$A$2","v":"2020-06-30"},"Т07","02","01","02","Общини","020102",0]
[{"$f":"'0'!$A$4","v":"………………"},{"$f":"'0'!$A$2","v":"2020-06-30"},"Т07","02","01","0","в т.ч. за финансиране на капиталови разходи","02010",0]
[{"$f":"'0'!$A$4","v":"………………"},{"$f":"'0'!$A$2","v":"2020-06-30"},"Т07","02","01","03","Пациенти","020103",0]
[{"$f":"'0'!$A$4","v":"………………"},{"$f":"'0'!$A$2","v":"2020-06-30"},"Т07","02","01","04","Контрагенти",{"$f":"D30&E30&F30","v":"020104"},0]
[{"$f":"'0'!$A$4","v":"………………"},{"$f":"'0'!$A$2","v":"2020-06-30"},"Т07","02","01","05","ДЗОФ","020105",0]
[{"$f":"'0'!$A$4","v":"………………"},{"$f":"'0'!$A$2","v":"2020-06-30"},"Т07","02","01","07","ОП \"РЧР\" за подкрепа на работещи в условия на заплаха от COVID-19","020107",0,"Приходи по Оперативна програма „Развитие на човешките ресурси” 2014-2020 г. за подкрепа на работещи в системата на здравеопазването в условия на заплаха за общественото здраве от COVID-19"]
[{"$f":"'0'!$A$4","v":"………………"},{"$f":"'0'!$A$2","v":"2020-06-30"},"Т07","02","01","06","Други източници","020106",0]
[{"$f":"'0'!$A$4","v":"………………"},{"$f":"'0'!$A$2","v":"2020-06-30"},"Т07","02","02","00","Общо Разходи, в т.ч.:","020200",{"$f":"SUM(I37:I41)+I35","v":0}]
[{"$f":"'0'!$A$4","v":"………………"},{"$f":"'0'!$A$2","v":"2020-06-30"},"Т07","02","02","01","Персонал, в т. ч:","020201",0]
[{"$f":"'0'!$A$4","v":"………………"},{"$f":"'0'!$A$2","v":"2020-06-30"},"Т07","02","02","0","в т.ч. за подкрепа на работещи в условия на заплаха от COVID-19  ","02020",0,"Разходи за допълнителни възнаграждения и осигурителни вноски, за сметка на работодателя, платени по Оперативна програма „Развитие на човешките ресурси” 2014-2020 г. за подкрепа на работещи в системата на здравеопазването в условия на заплаха за общественото здраве от COVID-19"]
[{"$f":"'0'!$A$4","v":"………………"},{"$f":"'0'!$A$2","v":"2020-06-30"},"Т07","02","02","02","Лекарствени продукти","020202",0]
[{"$f":"'0'!$A$4","v":"………………"},{"$f":"'0'!$A$2","v":"2020-06-30"},"Т07","02","02","06","Медицински изделия","020206",0]
[{"$f":"'0'!$A$4","v":"………………"},{"$f":"'0'!$A$2","v":"2020-06-30"},"Т07","02","02","03","Храна за болни","020203",0]
[{"$f":"'0'!$A$4","v":"………………"},{"$f":"'0'!$A$2","v":"2020-06-30"},"Т07","02","02","04","Други текущи разходи","020204",0]
[{"$f":"'0'!$A$4","v":"………………"},{"$f":"'0'!$A$2","v":"2020-06-30"},"Т07","02","02","05","Капиталови разходи","020205",0]
[{"$f":"'0'!$A$4","v":"………………"},{"$f":"'0'!$A$2","v":"2020-06-30"},"Т07","03","01","00","Задължения","030100",{"$f":"'02'!I3","v":0}]
[{"$f":"'0'!$A$4","v":"………………"},{"$f":"'0'!$A$2","v":"2020-06-30"},"Т07","03","01",1,"от тях просрочени","03011",{"$f":"'02'!J3","v":0}]
[{"$f":"'0'!$A$4","v":"………………"},{"$f":"'0'!$A$2","v":"2020-06-30"},"Т07","04","01","00","Среден разход на преминал болен",{"$f":"D44&E44&F44","v":"040100"},{"$f":"IF(I10=0,\"-\",I34/I10)","v":"-"}]
[{"$f":"'0'!$A$4","v":"………………"},{"$f":"'0'!$A$2","v":"2020-06-30"},"Т07","04","03","00","Среден разход на леглоден",{"$f":"D45&E45&F45","v":"040300"},{"$f":"IF(I9=0,\"-\",I34/I9)","v":"-"}]
[{"$f":"'0'!$A$4","v":"………………"},{"$f":"'0'!$A$2","v":"2020-06-30"},"Т07","04","04","00","Среден разход на лекарстводен",{"$f":"D46&E46&F46","v":"040400"},{"$f":"IF(I9=0,\"-\",I37/I9)","v":"-"}]
[{"$f":"'0'!$A$4","v":"………………"},{"$f":"'0'!$A$2","v":"2020-06-30"},"Т07","04","05","00","Среден разход на храноден",{"$f":"D47&E47&F47","v":"040500"},{"$f":"IF(I9=0,\"-\",I39/I9)","v":"-"}]
[{"$f":"'0'!$A$4","v":"………………"},{"$f":"'0'!$A$2","v":"2020-06-30"},"Т07","05","00","00","Коефициент на ефективност на разходите","050000",{"$f":"IF(I34=0,\"-\",(I21/I34))","v":"-"}]

{"sheet":"Sheet1","index":5,"n_rows":0,"n_cols":0,"rows_kept":0,"cut":false,"hidden":true,"merged":[]}

{"sheet":"номенклатури","index":6,"n_rows":1021,"n_cols":28,"rows_kept":1021,"cut":false,"hidden":true,"merged":[]}
[null,null,null,null,null,null,null,null,null,"………………","Лечебно заведение"]
["Авиационна медицина",null,"КДБ/регистратура",null,"други",null,"I",null,"2016-12-31","000022025","МБАЛ \"Д-р  Ив.Скендеров\" ЕООД Гоце Делчев",null,null,"Лекарствени продукти",null,null,null,"2017КП001","Стационарни грижи при бременност с повишен риск",390,"КП",null,"Парични еквиваленти",null,"1. Необявена ОП",null,null,"ЕООД"]
["Акушерство и гинекология",null,"КДБ/консултативни кабинети",null,"изследвания",null,"II",null,"2017-12-31","000022044","МБАЛ Разлог ЕООД",null,null,"Медицински изделия",null,null,null,"2017КП002","Пренатална инвазивна диагностика на бременността и интензивни грижи при бременност с реализиран риск",800,"КП",null,"Парични средства в каса",null,"2. В процес ОП",null,null,"ООД"]
["Ангиология",null,"КДБ/лаборатории",null,"операции",null,"III",null,"2018-03-31","101522447","МБАЛ Югозпадна болница ООД Сандански, Петрич",null,null,"Кръвни и биопродукти",null,null,null,"2017КП003","Оперативни процедури за задържане на бременност",128,"КП",null,"УниКредит Булбанк АД",null,"3. Обжалване ОП",null,null,"ЕАД"]
["Анестезиология и интензивно лечение",null,"КДБ/отделения без легла",null,"прегледи",null,null,null,"2018-06-30","102612100","МБАЛ  Карнобат  ЕООД",null,null,"Медицински газове",null,null,null,"2017КП004.1","Преждевременно прекъсване на бременността спонтанно или по медицински показания до 13 гест. с. включително",146,"КП",null,"Банка ДСК EАД",null,"4. Договор ОП в процес",null,null,"АД"]
["Вирусология",null,"КДБ/спешно отделение",null,"диализи",null,null,null,"2018-09-30","102613775","МБАЛ Айтос  ЕООД",null,null,"Храна на болни",null,null,null,"2017КП004.2","Преждевременно прекъсване на бременността спонтанно или по медицински показания от 14 гест. с. до 26 г.с. на плода",230,"КП",null,"Обединена българска банка АД",null,"5. Договор ОП приключил",null,null,"ДЗЗД"]
["Вътрешни болести",null,"Стационар/клиника с легла/отделение с легла",null,"анестезии",null,null,null,"2018-12-31","102618523","МБАЛ Поморие  ЕООД",null,null,"Храна на персонал (Наредба 11)",null,null,null,"2017КП005","Раждане",580,"КП",null,"Юробанк България АД"]
["Гастроентерология",null,"Стационар/клиника с легла/отделение без легла",null,"манипулации",null,null,null,"2019-03-31","102663909","МБАЛ Средец  ЕООД",null,null,"Вода, горива, ел. енергия, топлинна енергия",null,null,null,"2017КП006","Грижи за здраво новородено дете",160,"КП",null,"Райфайзенбанк (България) ЕАД"]
["Гериатрична медицина",null,"Стационар/клиника без легла",null,null,null,null,null,"2019-06-30","000090033","МБАЛ  \"Царица Йоанна\" ЕООД Провадия",null,null,"Резервни части и доокомплектовка на апаратура",null,null,null,"2017КП007","Диагностика и лечение на новородени с тегло над 2500 грама, първа степен на тежест",800,"КП",null,"Сосиете Женерал Експресбанк АД"]
["Гръдна хирургия",null,"Стационар/отделение без легла",null,null,"от СРЗ","до СРЗ","макс МРЗ","2019-09-30","000092550","МБАЛ  Девня ЕООД",null,null,"Медицински принадлежности",null,null,null,"2017КП008","Диагностика и лечение на новородени с тегло над 2500 грама, втора степен на тежест",1200,"КП",null,"Алианц Банк България АД"]
["Детска гастроентерология",null,"Стационар/отделение с легла",null,"Изпълнителен директор",2.8,4,12,"2019-12-31","104508837","МБАЛ  Павликени  ЕООД  ",null,null,"Хигиенни материали",null,null,null,"2017КП009","Диагностика и лечение на новородени с тегло от 1500 до 2499 грама, първа степен на тежест",900,"КП",null,"Банка Пиреос България АД"]
["Детска ендокринология и болести на обмяната",null,"Стационар/операционни зали",null,"Член на СД",2,2,5,"2020-03-31","104509202","МБАЛ \"Д-р Димитър Павлович\" ЕООД   Свищов",null,null,"Канцеларски материали",null,null,null,"2017КП010","Диагностика и лечение на новородени с тегло от 1500 до 2499 грама, втора степен на тежест",1300,"КП",null,"Ти Би Ай Банк EАД"]
["Детска кардиология",null,"АСБ/административни звена",null,"Председател на СД",2,2,5,"2020-06-30","104512579","МБАЛ \"Св. Иван Рилски\" ЕООД - Горна Оряховица",null,null,"Работно облекло и постелен инвентар",null,null,null,"2017КП011","Диагностика и лечение на новородени с тегло под 1499 грама",3600,"КП",null,"Първа инвестиционна банка АД"]
["Детска клинична хематология и онкология",null,"АСБ/стопански звена",null,"Зам. председател на СД",2,2,5,"2020-09-30","105515375","МБАЛ \"Проф. д-р Г. Златарски\" ЕООД Белоградчик",null,null,"Други материали",null,null,null,"2017КП012","Диагностика и лечение на дете c вродени аномалии",1200,"КП",null,"СИБАНК EАД"]
["Детска неврология",null,"АСБ/обслужващи звена",null,"Прокурист ",2.8,4,12,"2020-12-31","106510388","МБАЛ \"Св. Иван Рилски\" ЕООД Козлодуй ",null,null,"Текущ ремонт на сграден фонд",null,null,null,"2017КП013","Диагностика и интензивно лечение на новородени с дихателна недостатъчност, първа степен на тежест",2000,"КП",null,"Търговска банка Виктория ЕАД"]
["Детска нефрология и хемодиализа",null,null,null,"Управител",2.8,4,12,"2021-03-31","106512909","МБАЛ Мездра ЕООД",null,null,"Текущ ремонт на апаратура и оборудване",null,null,null,"2017КП014","Диагностика и интензивно лечение на новородени с дихателна недостатъчност, втора степен на тежест",3200,"КП",null,"Българо - американска кредитна банка АД"]
["Детска пневмология и фтизиатрия",null,null,null,"Контрольор ",2,2,4,"2021-06-30","106513498","МБАЛ Бяла Слатина  ЕООД",null,null,"Поддръжка на оборудване и софтуер",null,null,null,"2017КП015.1","Диагностика и интензивно лечение на новородени с еднократно приложение на сърфактант, независимо от теглото",3300,"КП",null,"ПроКредит Банк (България) EАД"]
["Детска психиатрия",null,null,null,null,null,null,null,"2021-09-30","107505537","МБАЛ \"Д-р Теодоси Витанов\" ЕООД Трявна",null,null,"Наети активи",null,null,null,"2017КП015.2","Диагностика и интензивно лечение на новородени с многократно приложение на сърфактант, независимо от теглото",5600,"КП",null,"Търговска Банка Д АД"]
["Детска ревматология",null,null,null,null,null,null,null,"2021-12-31","107507982","МБАЛ \"Д-р Стойчо Христов\" ЕООД Севлиево",null,null,"Медицински услуги",null,null,null,"2017КП016","Диагностика и лечение на нестабилна форма на ангина пекторис/остър миокарден инфаркт без инвазивно изследване и/или интервенционално лечение",200,"КП",null,"Токуда Банк АД"]
["Детска хирургия",null,null,null,null,null,null,null,null,"124142404","МБАЛ Каварна ЕООД ",null,null,"Транспорт",null,null,null,"2017КП017","Инвазивна диагностика при сърдечно-съдови заболявания",750,"КП",null,"Инвестбанк АД"]
["Ендокринология и болести на обмяната",null,null,null,null,null,null,null,null,"124504885","МБАЛ Балчик ЕООД ",null,null,"Застраховки",null,null,null,"2017КП018","Инвазивна диагностика при сърдечно-съдови заболявания с механична вентилация",1320,"КП",null,"Централна кооперативна банка АД"]
["Инфекциозни болести",null,null,null,null,null,null,null,null,"108507348","МБАЛ \"Д-р С. Ростовцев\" ЕООД Момчилград",null,null,"Телефон, интернет, пощенски и куриерски услуги",null,null,null,"2017КП019.1","Постоянна електрокардиостимулация - антибрадикарден пейсмейкър",400,"КП",null,"Общинска банка АД"]
["Кардиология",null,null,null,null,null,null,null,null,"108508560","МБАЛ  Живот+ ЕООД  Крумовград",null,null,"Събиране, транспортиране и обезвреждане на отпадъци",null,null,null,"2017КП019.2","Постоянна електрокардиостимулация - кардиовертер",1100,"КП",null,"Българска банка за развитие АД"]
["Кардиохирургия",null,null,null,null,null,null,null,null,"108508788","МБАЛ Ардино ЕООД",null,null,"Почистване, пране, стерилизация",null,null,null,"2017КП020","Интервенционално лечение и свързани с него диагностични катетеризации при сърдечно-съдови заболявания",3318,"КП",null,"Интернешънъл Асет Банк АД"]
["Клинична алергология",null,null,null,null,null,null,null,null,"109501412","МБАЛ \"Св. Иван Рилски\" ЕООД Дупница",null,null,"Юридически услуги",null,null,null,"2017КП021","Интервенционално лечение и свързани с него диагностични катетеризации при сърдечни аритмии",3318,"КП",null,"Тексим Банк АД"]
["Клинична имунология",null,null,null,null,null,null,null,null,"110502461","МБАЛ Троян ",null,null,"Консултантски услуги",null,null,null,"2017КП022","Интервенционално лечение и свързани с него диагностични катетеризации при вродени сърдечни малформации",3318,"КП",null,"ИНГ Банк Н.В. – клон София"]
["Клинична лаборатория",null,null,null,null,null,null,null,null,"110502867","МБАЛ Тетевен ",null,null,"Други външни услуги",null,null,null,"2017КП023","Интервенционално лечение и свързани с него диагностични катетеризации при вродени сърдечни малформации с механична вентилация",3600,"КП",null,"Ситибанк Европа АД - клон България"]
["Клинична токсикология",null,null,null,null,null,null,null,null,"110504291","МБАЛ Луковит ",null,null,"Социални разходи",null,null,null,"2017КП024","Ендоваскуларно лечение на екстракраниални съдове",370,"КП",null,"БНП Париба С.А. – клон София"]
["Клинична фармакология и терапия",null,null,null,null,null,null,null,null,"111511773","МБАЛ ЕООД гр. Берковица Монтана",null,null,"Представителни разходи",null,null,null,"2017КП025","Диагностика и лечение на нестабилна форма на ангина пекторис с инвазивно изследване",900,"КП",null,"Ишбанк АГ – клон София"]
["Клинична хематология",null,null,null,null,null,null,null,null,"130128163","МБАЛ \"Св. Николай Чудотворец\" ЕООД гр. Лом",null,null,"Други (други)",null,null,null,"2017КП026","Диагностика и лечение на нестабилна форма на ангина пекторис с интервенционално лечение",3430,"КП",null,"Те–Дже ЗИРААТ БАНКАСЪ – Клон София"]
["Кожни и венерически болести",null,null,null,null,null,null,null,null,"112505488","МБАЛ Велинград ЕООД",null,null,"Придобиване на имоти, машини и оборудване",null,null,null,"2017КП027","Диагностика и лечение на остър коронарен синдром с фибринолитик",2750,"КП"]
["Лицево-челюстна хирургия",null,null,null,null,null,null,null,null,"000410031","МБАЛ  Левски ЕООД",null,null,"Придобиване на нематериални активи",null,null,null,"2017КП028","Диагностика и лечение на остър коронарен синдром с персистираща елевация на ST сегмент с интервенционално лечение",4540,"КП"]
["Лъчелечение",null,null,null,null,null,null,null,null,"000410049","МБАЛ  Никопол ЕООД",null,null,"Основен ремонт на имоти, машини и оборудване",null,null,null,"2017КП029","Диагностика и лечение на остра и изострена хронична сърдечна недостатъчност без механична вентилация",420,"КП"]
["Медицинска генетика",null,null,null,null,null,null,null,null,"000410056","МБАЛ Червен бряг ЕООД",null,null,"Гаранции",null,null,null,"2017КП030","Диагностика и лечение на остра и изострена хронична сърдечна недостатъчност с механична вентилация",1300,"КП"]
["Медицинска онкология",null,null,null,null,null,null,null,null,"000412255","МБАЛ  Гулянци ЕООД",null,null,"Банкови заеми",null,null,null,"2017КП031","Диагностика и лечение на инфекциозен ендокардит",4950,"КП"]
["Медицинска паразитология",null,null,null,null,null,null,null,null,"106510662","МБАЛ  Кнежа ЕООД",null,null,null,null,null,null,"2017КП032","Диагностика и лечение на заболявания на миокарда и перикарда",462,"КП"]
["Микробиология",null,null,null,null,null,null,null,null,"114542439","МБАЛ Белене ЕООД",null,null,null,null,null,null,"2017КП033","Диагностика и лечение на ритъмни и проводни нарушения",345,"КП"]
["Неврохирургия",null,null,null,null,null,null,null,null,"115516059","МБАЛ Първомай ЕООД ",null,null,null,null,null,null,"2017КП034","Диагностика и лечение на артериална хипертония в детската възраст",600,"КП"]
["Неонатология",null,null,null,null,null,null,null,null,"115517517","МБАЛ \"Св. Пантелеймон\" ЕООД Пловдив",null,null,null,null,null,null,"2017КП035","Диагностика и лечение на хипоксемични състояния при вродени сърдечни малформации в детска възраст",600,"КП"]
["Нервни болести",null,null,null,null,null,null,null,null,"115518099","МБАЛ \"Д-р Киро Попов\" ЕООД Карлово",null,null,null,null,null,null,"2017КП036","Диагностика и лечение на белодробен тромбоемболизъм без фибринолитик",700,"КП"]
["Нефрология",null,null,null,null,null,null,null,null,"115531627","МБАЛ \"Св.Мина\" ЕООД Пловдив",null,null,null,null,null,null,"2017КП037","Диагностика и лечение на белодробен тромбоемболизъм с фибринолитик",2481,"КП"]
["Нуклеарна медицина",null,null,null,null,null,null,null,null,"115532654","МБАЛ Асеновград ЕООД",null,null,null,null,null,null,"2017КП038","Диагностика и лечение на хронична обструктивна белодробна болест - остра екзацербация",420,"КП"]
["Образна диагностика",null,null,null,null,null,null,null,null,"115532871","МБАЛ Раковски ЕООД ",null,null,null,null,null,null,"2017КП039","Диагностика и лечение на бронхопневмония и бронхиолит при лица над 18-годишна възраст",450,"КП"]
["Обща и клинична патология",null,null,null,null,null,null,null,null,"000504032","МБАЛ   Кубрат ЕООД ",null,null,null,null,null,null,"2017КП040.1","Бронхиална астма: среднотежък и тежък пристъп при лица над 18-годишна възраст",426,"КП"]
["Обща медицина",null,null,null,null,null,null,null,null,"116504387","МБАЛ  Исперих ЕООД",null,null,null,null,null,null,"2017КП040.2","Бронхиална астма: среднотежък и тежък пристъп при лица под 18-годишна възраст",553,"КП"]
["Ортопедия и травматология",null,null,null,null,null,null,null,null,"117500566","МБАЛ \"Д-р Юлия Вревска\" ЕООД Бяла",null,null,null,null,null,null,"2017КП041.1","Диагностика и лечение на алергични заболявания на дихателната система при лица над 18 години",333,"КП"]
["Очни болести",null,null,null,null,null,null,null,null,"118502097","МБАЛ Дулово ЕООД",null,null,null,null,null,null,"2017КП041.2","Диагностика и лечение при инфекциозно-алергични заболявания на дихателната система при лица под 18 години",400,"КП"]
["Педиатрия",null,null,null,null,null,null,null,null,"118506069","МБАЛ Тутракан ЕООД",null,null,null,null,null,null,"2017КП042.1","Гнойно-възпалителни заболявания на бронхо-белодробната система при лица над 18 години",700,"КП"]
["Пластично-възстановителна и естетична хирургия",null,null,null,null,null,null,null,null,"119502651","МБАЛ  \"Св.Петка българска- Нова Загора\" ЕООД",null,null,null,null,null,null,"2017КП042.2","Гнойно-възпалителни заболявания на бронхо-белодробната система при лица под 18 години",1200,"КП"]
["Пневмология и фтизиатрия",null,null,null,null,null,null,null,null,"120504642","МБАЛ \"Проф. д-р Асен Шопов\" ЕООД Златоград",null,null,null,null,null,null,"2017КП043","Бронхоскопски процедури с неголям обем и сложност в пулмологията",280,"КП"]
["Професионални болести",null,null,null,null,null,null,null,null,"120505630","МБАЛ \"Проф. д-р Константин Чилов\" ЕООД Мадан",null,null,null,null,null,null,"2017КП044","Високоспециализирани интервенционални процедури в пулмологията",800,"КП"]
["Психиатрия",null,null,null,null,null,null,null,null,"200591288","МБАЛ Девин ЕАД ",null,null,null,null,null,null,"2017КП045","Лечение на декомпенсирана хронична дихателна недостатъчност при болести на дихателната система",600,"КП"]
["Ревматология",null,null,null,null,null,null,null,null,"000689015","Първа МБАЛ София АД",null,null,null,null,null,null,"2017КП046","Лечение на декомпенсирана хронична дихателна недостатъчност при болести на дихателната система в детска възраст",1200,"КП"]
["Спешна медицина",null,null,null,null,null,null,null,null,"000689022","Втора МБАЛ - София  АД",null,null,null,null,null,null,"2017КП047","Лечение на декомпенсирана хронична дихателна недостатъчност при болести на дихателната система с механична вентилация",1540,"КП"]
["Спортна медицина",null,null,null,null,null,null,null,null,"000689047","Четвърта МБАЛ  София  ЕАД",null,null,null,null,null,null,"2017КП048","Диагностика и лечение на бронхопневмония в детска възраст",545,"КП"]
["Съдебна медицина",null,null,null,null,null,null,null,null,"000689061","Пета МБАЛ София АД",null,null,null,null,null,null,"2017КП049","Диагностика и лечение на бронхиолит в детска възраст",431,"КП"]
["Съдебна психиатрия",null,null,null,null,null,null,null,null,"000770022","МБАЛ Ботевград ЕООД",null,null,null,null,null,null,"2017КП050","Диагностика и лечение на исхемичен мозъчен инсулт без тромболиза",620,"КП"]
["Съдова хирургия",null,null,null,null,null,null,null,null,"000770047","МБАЛ Елин Пелин ЕООД",null,null,null,null,null,null,"2017КП051","Диагностика и лечение на исхемичен мозъчен инсулт с тромболиза",2800,"КП"]
["Трансфузионна хематология",null,null,null,null,null,null,null,null,"000770054","МБАЛ \"Проф. д-р  Ал. Герчев\" Етрополе ЕООД",null,null,null,null,null,null,"2017КП052","Диагностика и лечение на паренхимен мозъчен кръвоизлив",774,"КП"]
["Урология",null,null,null,null,null,null,null,null,"000770061","МБАЛ Ихтиман ЕООД",null,null,null,null,null,null,"2017КП053","Диагностика и лечение на субарахноиден кръвоизлив",1000,"КП"]
["Ушно-носно-гърлени болести",null,null,null,null,null,null,null,null,"000770086","МБАЛ Самоков ЕООД",null,null,null,null,null,null,"2017КП054","Диагностика и специфично лечение на остра и хронична демиелинизираща полиневропатия (Гилен-Баре)",5500,"КП"]
["Физикална и рехабилитационна медицина",null,null,null,null,null,null,null,null,"000770093","МБАЛ Своге ЕООД",null,null,null,null,null,null,"2017КП055","Диагностика и специфично лечение на остра и хронична демиелинизираща полиневропатия (Гилен-Баре) на апаратна вентилация",10000,"КП"]
["Хирургия",null,null,null,null,null,null,null,null,"202503899","МБАЛ Пирдоп АД",null,null,null,null,null,null,"2017КП056","Диагностика и лечение на болести на черепно-мозъчните нерви (ЧМН), на нервните коренчета и плексуси, полиневропатия и вертеброгенни болкови синдроми",461,"КП"]
["Биохимия",null,null,null,null,null,null,null,null,"123535867","МБАЛ Чирпан ЕООД",null,null,null,null,null,null,"2017КП057","Диагностика и лечение на остри и хронични вирусни, бактериални, спирохетни, микотични и паразитни менингити, менингоенцефалити и миелити",1755,"КП"]
["Епидемиология на инфекциозните болести",null,null,null,null,null,null,null,null,"123540775","МБАЛ \"Д-р Христо Стамболски\" ЕООД Казанлък",null,null,null,null,null,null,"2017КП058","Диагностика и лечение на наследствени и дегенеративни заболявания на нервната система, засягащи ЦНС с начало в детска възраст",600,"КП"]
["Икономика на здравеопазването",null,null,null,null,null,null,null,null,"123545288","МБАЛ \"Д-р Д. Чакмаков\"  ЕООД Раднево",null,null,null,null,null,null,"2017КП059","Диагностика и лечение на наследствени и дегенеративни заболявания на нервната система при възрастни пациенти, засягащи централната нервна система и моторния неврон (ЛАС)",450,"КП"]
["Комунална хигиена",null,null,null,null,null,null,null,null,"200695116","МБАЛ Гълъбово ЕАД",null,null,null,null,null,null,"2017КП060","Диагностика и лечение на невро-мускулни заболявания и болести на предните рога на гръбначния мозък",480,"КП"]
["Медицина на бедствените ситуации (на катастрофите)",null,null,null,null,null,null,null,null,"000874028","МБАЛ Попово  ЕООД  ",null,null,null,null,null,null,"2017КП061","Диагностика и лечение на мултиплена склероза",533,"КП"]
["Обща хигиена",null,null,null,null,null,null,null,null,"125550070","МБАЛ Омуртаг ЕАД ",null,null,null,null,null,null,"2017КП062","Диагностика и лечение на епилепсия и епилептични пристъпи",300,"КП"]
["Патофизиология",null,null,null,null,null,null,null,null,"126529734","МБАЛ Харманли ЕООД",null,null,null,null,null,null,"2017КП063","Лечение на епилептичен статус",500,"КП"]
["Радиационна хигиена",null,null,null,null,null,null,null,null,"126531685","МБАЛ \"Св. Екатерина\"  ЕООД Димитровград",null,null,null,null,null,null,"2017КП064.1","Миастения гравис и миастенни синдроми при лица над 18 години",500,"КП"]
["Радиобиология",null,null,null,null,null,null,null,null,"126532456","МБАЛ Свиленград  ЕООД",null,null,null,null,null,null,"2017КП064.2","Миастения гравис и миастенни синдроми при лица под 18 години",657,"КП"]
["Социална медицина и здравен мениджмънт",null,null,null,null,null,null,null,null,"127513804","МБАЛ Велики Преслав ЕООД",null,null,null,null,null,null,"2017КП065","Лечение на миастенни кризи с кортикостероиди и апаратна вентилация",5000,"КП"]
["Токсикология",null,null,null,null,null,null,null,null,"128501819","МБАЛ \"Св. Иван Рилски\" ЕООД Елхово",null,null,null,null,null,null,"2017КП066","Лечение на миастенни кризи с човешки имуноглобулин и апаратна вентилация",7000,"КП"]
["Трудова медицина",null,null,null,null,null,null,null,null,"101533900","СБАЛО \"Св.Мина\"  ЕООД Благоевград",null,null,null,null,null,null,"2017КП067","Диагностика и лечение на паркинсонова болест",231,"КП"]
["Фармакология",null,null,null,null,null,null,null,null,"101533917","СБАЛПФЗ Благоевград ЕООД",null,null,null,null,null,null,"2017КП068","Диагностика и лечение на заболявания на горния гастроинтестинален тракт",600,"КП"]
["Хигиена на детско-юношеската възраст",null,null,null,null,null,null,null,null,"000053088","СБАЛПФЗ Бургас ЕООД",null,null,null,null,null,null,"2017КП069","Високоспециализирани интервенционални процедури при заболявания на гастроинтестиналния тракт",850,"КП"]
["Хранене и диететика",null,null,null,null,null,null,null,null,"000090065","СБАГАЛ \"Проф. Д-р П Стаматов\" ЕООД Варна",null,null,null,null,null,null,"2017КП070","Диагностика и лечение на болест на Крон и улцерозен колит",1100,"КП"]
[null,null,null,null,null,null,null,null,null,"000090147","СБАЛПФЗ Варна ЕООД ",null,null,null,null,null,null,"2017КП071","Диагностика и лечение на заболявания на тънкото и дебелото черво",604,"КП"]
[null,null,null,null,null,null,null,null,null,"000090154","СБАЛОЗ Варна ЕООД ",null,null,null,null,null,null,"2017КП072","Ендоскопско и медикаментозно лечение при остро кървене от гастроинтестиналния тракт",579,"КП"]
[null,null,null,null,null,null,null,null,null,"000091879","СБОБАЛ Варна ЕООД                                                                                                                                                                           ",null,null,null,null,null,null,"2017КП073","Високоспециализирани интервенционални процедури при заболявания на хепатобилиарната система (ХБС), панкреаса и перитонеума",1500,"КП"]
[null,null,null,null,null,null,null,null,null,"000130104","СБАЛПФЗ \"Д-р Трейман\" ЕООД",null,null,null,null,null,null,"2017КП074","Диагностика и лечение на заболявания на хепатобилиарната система, панкреаса и перитонеума",920,"КП"]
[null,null,null,null,null,null,null,null,null,"000190083","СБАЛПФЗ  Враца ЕООД",null,null,null,null,null,null,"2017КП075","Диагностика и лечение на декомпенсирани чернодробни заболявания (цироза)",1000,"КП"]
[null,null,null,null,null,null,null,null,null,"000349201","СБАЛПФЗ Пазарджик ЕООД ",null,null,null,null,null,null,"2017КП076","Диагностика и лечение на хронични чернодробни заболявания",630,"КП"]
[null,null,null,null,null,null,null,null,null,"117525838","СБАЛПФЗ  \"Д-р Димитър Граматиков\"  ЕООД",null,null,null,null,null,null,"2017КП077","Диагностика и лечение на хронични диарии, с начало в детската възраст",400,"КП"]
[null,null,null,null,null,null,null,null,null,"000689182","Първа САГБАЛ \"Св. София\" АД",null,null,null,null,null,null,"2017КП078.1","Декомпенсиран захарен диабет при лица над 18 години",600,"КП"]
[null,null,null,null,null,null,null,null,null,"000693654","СБАЛОЗ ЕООД  София",null,null,null,null,null,null,"2017КП078.2","Декомпенсиран захарен диабет при лица под 18 години",506,"КП"]
[null,null,null,null,null,null,null,null,null,"130485795","Втора САГБАЛ Шейново АД",null,null,null,null,null,null,"2017КП079","Диагностика и лечение на заболявания на щитовидната жлеза",341,"КП"]
[null,null,null,null,null,null,null,null,null,"000812172","СБАЛПЗ Стара Загора ЕООД",null,null,null,null,null,null,"2017КП080.1","Заболявания на хипофизата и надбъбрека при лица над 18 години",460,"КП"]
[null,null,null,null,null,null,null,null,null,"000900131","СБАЛПФЗ  Хасково  ЕООД",null,null,null,null,null,null,"2017КП080.2","Заболявания на хипофизата и надбъбрека при лица под 18 години",600,"КП"]
[null,null,null,null,null,null,null,null,null,"000900156","СБАЛО Хасково  ЕООД",null,null,null,null,null,null,"2017КП081.1","Костни метаболитни заболявания и нарушения на калциево-фосфорната обмяна при лица над 18 години",392,"КП"]
[null,null,null,null,null,null,null,null,null,"000967532","СБАЛВБ Тополовград  ЕООД",null,null,null,null,null,null,"2017КП081.2","Костни метаболитни заболявания и нарушения на калциево-фосфорната обмяна при лица под 18 години",450,"КП"]
[null,null,null,null,null,null,null,null,null,"115532832","МБПЛ Стамболийски ЕООД ",null,null,null,null,null,null,"2017КП082","Диагностика на лица с метаболитни нарушения",630,"КП"]
[null,null,null,null,null,null,null,null,null,"115584804","МБПЛ Иван Раев Сопот ЕООД",null,null,null,null,null,null,"2017КП083","Лечение на лица с метаболитни нарушения",630,"КП"]
[null,null,null,null,null,null,null,null,null,"113514110","СБПЛР ЕООД Перник",null,null,null,null,null,null,"2017КП084","Диагностика и лечение на остър и хроничен обострен пиелонефрит",420,"КП"]
[null,null,null,null,null,null,null,null,null,"000689086","СБПЛР  Кремиковци ЕООД",null,null,null,null,null,null,"2017КП085","Диагностика и лечение на гломерулонефрити - остри и хронични, първични и вторични при системни заболявания - новооткрити",876,"КП"]
[null,null,null,null,null,null,null,null,null,"000692381","СБДПЛР„Панчарево“",null,null,null,null,null,null,"2017КП086.1","Лечение на хистологично доказани гломерулонефрити - остри и хронични, първични и вторични при системни заболявания - при лица над 18 години",876,"КП"]
[null,null,null,null,null,null,null,null,null,"000693711","СБПЛРДЦП \"Св. София\"  ЕООД",null,null,null,null,null,null,"2017КП086.2","Лечение на хистологично доказани гломерулонефрити - остри и хронични, първични и вторични при системни заболявания - при лица под 18 години",950,"КП"]
[null,null,null,null,null,null,null,null,null,"000770129","СБДПЛР  Бухово ЕООД",null,null,null,null,null,null,"2017КП087.1","Остра бъбречна недостатъчност при лица над 18 години",883,"КП"]
[null,null,null,null,null,null,null,null,null,"000770264","СБДПЛР  Костенец ЕООД",null,null,null,null,null,null,"2017КП087.2","Остра бъбречна недостатъчност при лица под 18 години",950,"КП"]
[null,null,null,null,null,null,null,null,null,"126618510","СБПЛР Любимец  ЕООД",null,null,null,null,null,null,"2017КП088.1","Хронична бъбречна недостатъчност при лица над 18 години",330,"КП"]
[null,null,null,null,null,null,null,null,null,"000053191","КОЦ Бургас  ЕООД",null,null,null,null,null,null,"2017КП088.2","Хронична бъбречна недостатъчност при лица под 18 години",350,"КП"]
[null,null,null,null,null,null,null,null,null,"104524994","КОЦ Велико Търново ЕООД",null,null,null,null,null,null,"2017КП089.1","Системни заболявания на съединителната тъкан при лица над 18 години",466,"КП"]
[null,null,null,null,null,null,null,null,null,"000190101","КОЦ Враца ЕООД",null,null,null,null,null,null,"2017КП089.2","Системни заболявания на съединителната тъкан при лица под 18 години",515,"КП"]
[null,null,null,null,null,null,null,null,null,"000463379","КОЦ Пловдив ЕООД",null,null,null,null,null,null,"2017КП090.1","Възпалителни ставни заболявания при лица над 18 години",689,"КП"]
[null,null,null,null,null,null,null,null,null,"117527022","КОЦ Ррусе ЕООД",null,null,null,null,null,null,"2017КП090.2","Възпалителни ставни заболявания при лица под 18 години",730,"КП"]
[null,null,null,null,null,null,null,null,null,"000812197","КОЦ Стара Загора ЕООД",null,null,null,null,null,null,"2017КП091","Диагностика и лечение на дегенеративни и обменни ставни заболявания",472,"КП"]
[null,null,null,null,null,null,null,null,null,"127521758","КОЦ Шумен ЕООД",null,null,null,null,null,null,"2017КП092","Диагностика и лечение на тежкопротичащи булозни дерматози",770,"КП"]
[null,null,null,null,null,null,null,null,null,"104527481","ЦКВЗ Велико Търново ЕООД",null,null,null,null,null,null,"2017КП093","Диагностика и лечение на тежкопротичащи бактериални инфекции на кожата",470,"КП"]
[null,null,null,null,null,null,null,null,null,"000190090","ЦКВЗ Враца ЕООД",null,null,null,null,null,null,"2017КП094","Диагностика и лечение на тежкопротичащи форми на псориазис - обикновен, артропатичен, пустулозен и еритродермичен",480,"КП"]
[null,null,null,null,null,null,null,null,null,"000463361","ЦКВЗ Пловдив ЕООД",null,null,null,null,null,null,"2017КП095","Диагностика и лечение на островъзникнали и тежкопротичащи еритродермии с генерализиран екзантем",389,"КП"]
[null,null,null,null,null,null,null,null,null,"101533931","ЦПЗ Благоевград ЕООД",null,null,null,null,null,null,"2017КП096","Лечение на кожни прояви при съединителнотъканни заболявания и васкулити",434,"КП"]
[null,null,null,null,null,null,null,null,null,"000053202","ЦПЗ \"Проф.д-р Иван Темков\" Бургас ЕООД",null,null,null,null,null,null,"2017КП097","Лечение на сифилис при бременни жени и при малигнени форми (на вторичен и третичен сифилис) с кристален пеницилин",250,"КП"]
[null,null,null,null,null,null,null,null,null,"104525651","ЦПЗ В. Търново ЕООД",null,null,null,null,null,null,"2017КП098","Диагностика и лечение на остропротичащи чревни инфекциозни болести с диаричен синдром",572,"КП"]
[null,null,null,null,null,null,null,null,null,"000190119","ЦПЗ Враца ЕООД     ",null,null,null,null,null,null,"2017КП099","Диагностика и лечение на инфекциозни и паразитни заболявания, предавани чрез ухапване от членестоноги",472,"КП"]
[null,null,null,null,null,null,null,null,null,"000851111","ЦПЗ \"Д-р П Станчев\" Добрич  ЕООД",null,null,null,null,null,null,"2017КП100","Диагностика и лечение на остър вирусен хепатит А и Е",1100,"КП"]
[null,null,null,null,null,null,null,null,null,"000463386","ЦПЗ Пловдив ЕООД",null,null,null,null,null,null,"2017КП101","Диагностика и лечение на остър вирусен хепатит В, С и D",1277,"КП"]
[null,null,null,null,null,null,null,null,null,"117526194","ЦПЗ Русе ЕООД",null,null,null,null,null,null,"2017КП102","Диагностика и лечение на паразитози",457,"КП"]
[null,null,null,null,null,null,null,null,null,"000614404","ЦПЗ Смолян ЕООД",null,null,null,null,null,null,"2017КП103","Диагностика и лечение на покривни инфекции",457,"КП"]
[null,null,null,null,null,null,null,null,null,"121696971","ЦПЗ \"Проф. Шипковенски\" ЕООД София",null,null,null,null,null,null,"2017КП104","Диагностика и лечение на контагиозни вирусни и бактериални заболявания - остропротичащи, с усложнения",487,"КП"]
[null,null,null,null,null,null,null,null,null,"000812208","ЦПЗ Стара Загора ЕООД",null,null,null,null,null,null,"2017КП105","Диагностика и лечение на вирусни хеморагични трески",1000,"КП"]
[null,null,null,null,null,null,null,null,null,"000900163","ЦПЗ Хасково ЕООД",null,null,null,null,null,null,"2017КП106.1","Токсоалергични реакции при лица над 18 години",500,"КП"]
[null,null,null,null,null,null,null,null,null,null,null,null,null,null,null,null,null,"2017КП106.2","Токсоалергични реакции при лица под 18 години",550,"КП"]
[null,null,null,null,null,null,null,null,null,null,null,null,null,null,null,null,null,"2017КП107","Диагностика и лечение на отравяния и токсични ефекти от лекарства и битови отрови",700,"КП"]
[null,null,null,null,null,null,null,null,null,null,null,null,null,null,null,null,null,"2017КП108","Диагностика и лечение на фалоидно гъбно отравяне",2200,"КП"]
[null,null,null,null,null,null,null,null,null,null,null,null,null,null,null,null,null,"2017КП109","Диагностика и лечение на токсична епидермална некролиза (болест на Лайел)",1650,"КП"]
[null,null,null,null,null,null,null,null,null,null,null,null,null,null,null,null,null,"2017КП110","Лечение на доказани първични имунодефицити",2163,"КП"]
[null,null,null,null,null,null,null,null,null,null,null,null,null,null,null,null,null,"2017КП111","Диагностика и лечение на остри внезапно възникнали състояния в детската възраст",125,"КП"]
[null,null,null,null,null,null,null,null,null,null,null,null,null,null,null,null,null,"2017КП112","Диагностика и лечение на муковисцидоза",980,"КП"]
[null,null,null,null,null,null,null,null,null,null,null,null,null,null,null,null,null,"2017КП113.1","Консервативно лечение на световъртеж, разстройства в равновесието от периферен и централен тип (диагностична)",150,"КП"]
[null,null,null,null,null,null,null,null,null,null,null,null,null,null,null,null,null,"2017КП113.2","Консервативно лечение на световъртеж, разстройства в равновесието от периферен и централен тип с минимален болничен престой 4 дни",340,"КП"]
[null,null,null,null,null,null,null,null,null,null,null,null,null,null,null,null,null,"2017КП114","Интензивно лечение на коматозни състояния, неиндицирани от травма",2134,"КП"]
[null,null,null,null,null,null,null,null,null,null,null,null,null,null,null,null,null,"2017КП115","Интензивно лечение при комбинирани и/или съчетани травми",2284,"КП"]
[null,null,null,null,null,null,null,null,null,null,null,null,null,null,null,null,null,"2017КП116","Оперативно лечение при сърдечни заболявания в условията на екстракорпорално кръвообращение. Минимално инвазивни сърдечни операции при лица над 18 години",10100,"КП"]
[null,null,null,null,null,null,null,null,null,null,null,null,null,null,null,null,null,"2017КП117","Оперативно лечение при сърдечни заболявания в условията на екстракорпорално кръвообращение при лица от 0 до 18 години. Минимално инвазивни сърдечни операции при лица от 0 до 18 години",10100,"КП"]
[null,null,null,null,null,null,null,null,null,null,null,null,null,null,null,null,null,"2017КП118","Оперативно лечение на деца до 1 година с критични вродени сърдечни малформации в условията на екстракорпорално кръвообращение",18000,"КП"]
[null,null,null,null,null,null,null,null,null,null,null,null,null,null,null,null,null,"2017КП119","Оперативни процедури при комплексни сърдечни малформации с много голям обем и сложност в условия на екстракорпорално кръвообращение",13500,"КП"]
[null,null,null,null,null,null,null,null,null,null,null,null,null,null,null,null,null,"2017КП120","Лечение на полиорганна недостатъчност, развила се след сърдечна операция",14500,"КП"]
[null,null,null,null,null,null,null,null,null,null,null,null,null,null,null,null,null,"2017КП121","Оперативно лечение на заболявания на сърцето, без екстракорпорално кръвообращение, при лица над 18 години",3450,"КП"]
[null,null,null,null,null,null,null,null,null,null,null,null,null,null,null,null,null,"2017КП122","Оперативно лечение при заболявания на сърцето, без екстракорпорално кръвообращение, при лица под 18 години",4500,"КП"]
[null,null,null,null,null,null,null,null,null,null,null,null,null,null,null,null,null,"2017КП123","Oперативно лечение на абдоминална аорта, долна празна вена и клоновете им",3500,"КП"]
[null,null,null,null,null,null,null,null,null,null,null,null,null,null,null,null,null,"2017КП124","Оперативно лечение на хронична съдова недостатъчност във феморо-поплитеалния и аксило-брахиалния сегмент",1919,"КП"]
[null,null,null,null,null,null,null,null,null,null,null,null,null,null,null,null,null,"2017КП125","Оперативно лечение на клонове на аортната дъга",1709,"КП"]
[null,null,null,null,null,null,null,null,null,null,null,null,null,null,null,null,null,"2017КП126","Спешни оперативни интервенции без съдова реконструкция при болни със съдови заболявания (тромбектомии, емболектомии, ампутации и симпатектомии)",1100,"КП"]
[null,null,null,null,null,null,null,null,null,null,null,null,null,null,null,null,null,"2017КП127","Kонсервативно лечение на съдова недостатъчност",475,"КП"]
[null,null,null,null,null,null,null,null,null,null,null,null,null,null,null,null,null,"2017КП128","Консервативно лечение с простагландинови/простациклинови деривати при съдова недостатъчност",330,"КП"]
[null,null,null,null,null,null,null,null,null,null,null,null,null,null,null,null,null,"2017КП129","Оперативно лечение при варикозна болест и усложненията ѝ",333,"КП"]
[null,null,null,null,null,null,null,null,null,null,null,null,null,null,null,null,null,"2017КП130","Oперативни процедури върху придатъците на окото с голям обем и сложност",300,"КП"]
[null,null,null,null,null,null,null,null,null,null,null,null,null,null,null,null,null,"2017КП131","Други операции на очната ябълка с голям обем и сложност",410,"КП"]
[null,null,null,null,null,null,null,null,null,null,null,null,null,null,null,null,null,"2017КП132","Кератопластика",1000,"КП"]
[null,null,null,null,null,null,null,null,null,null,null,null,null,null,null,null,null,"2017КП133","Консервативно лечение на глаукома, съдови заболявания на окото и неперфоративни травми",273,"КП"]
[null,null,null,null,null,null,null,null,null,null,null,null,null,null,null,null,null,"2017КП134","Консервативно лечение при инфекции и възпалителни заболявания на окото и придатъците му",249,"КП"]
[null,null,null,null,null,null,null,null,null,null,null,null,null,null,null,null,null,"2017КП135","Оперативно лечение при заболявания на ретина, стъкловидно тяло и травми, засягащи задния очен сегмент",700,"КП"]
[null,null,null,null,null,null,null,null,null,null,null,null,null,null,null,null,null,"2017КП136","Оперативно лечение на заболявания в областта на ушите, носа и гърлото с много голям обем и сложност",2950,"КП"]
[null,null,null,null,null,null,null,null,null,null,null,null,null,null,null,null,null,"2017КП137","Оперативно лечение на заболявания в областта на ушите, носа и гърлото с голям обем и сложност",1500,"КП"]
[null,null,null,null,null,null,null,null,null,null,null,null,null,null,null,null,null,"2017КП138","Оперативно лечение на заболявания в областта на ушите, носа и гърлото със среден обем и сложност",650,"КП"]
[null,null,null,null,null,null,null,null,null,null,null,null,null,null,null,null,null,"2017КП139","Високотехнологична диагностика при ушно-носно-гърлени болести",450,"КП"]
[null,null,null,null,null,null,null,null,null,null,null,null,null,null,null,null,null,"2017КП140","Консервативно парентерално лечение при ушно-носно-гърлени болести",150,"КП"]
[null,null,null,null,null,null,null,null,null,null,null,null,null,null,null,null,null,"2017КП141","Трансуретрално оперативно лечение при онкологични заболявания на пикочния мехур",800,"КП"]
[null,null,null,null,null,null,null,null,null,null,null,null,null,null,null,null,null,"2017КП142","Радикална цистопростатектомия с ортотопичен пикочен мехур",5000,"КП"]
[null,null,null,null,null,null,null,null,null,null,null,null,null,null,null,null,null,"2017КП143","Трансуретрална простатектомия",1000,"КП"]
[null,null,null,null,null,null,null,null,null,null,null,null,null,null,null,null,null,"2017КП144","Отворени оперативни процедури при доброкачествена хиперплазия на простатната жлеза и нейните усложнения",1200,"КП"]
[null,null,null,null,null,null,null,null,null,null,null,null,null,null,null,null,null,"2017КП145","Ендоскопски процедури при обструкции на горните пикочни пътища",774,"КП"]
[null,null,null,null,null,null,null,null,null,null,null,null,null,null,null,null,null,"2017КП146","Оперативни процедури при вродени заболявания на пикочо-половата система",2500,"КП"]
[null,null,null,null,null,null,null,null,null,null,null,null,null,null,null,null,null,"2017КП147","Оперативни процедури върху мъжка полова система",500,"КП"]
[null,null,null,null,null,null,null,null,null,null,null,null,null,null,null,null,null,"2017КП148","Оперативни процедури на долните пикочни пътища с голям обем и сложност",2600,"КП"]
[null,null,null,null,null,null,null,null,null,null,null,null,null,null,null,null,null,"2017КП149","Оперативни процедури на долните пикочни пътища със среден обем и сложност",1160,"КП"]
[null,null,null,null,null,null,null,null,null,null,null,null,null,null,null,null,null,"2017КП150","Оперативни процедури при инконтиненция на урината",612,"КП"]
[null,null,null,null,null,null,null,null,null,null,null,null,null,null,null,null,null,"2017КП151","Реконструктивни операции в урологията",1000,"КП"]
[null,null,null,null,null,null,null,null,null,null,null,null,null,null,null,null,null,"2017КП152","Ендоскопски процедури при обструкции на долните пикочни пътища",450,"КП"]
[null,null,null,null,null,null,null,null,null,null,null,null,null,null,null,null,null,"2017КП153","Оперативни процедури при травми на долните пикочни пътища",1000,"КП"]
[null,null,null,null,null,null,null,null,null,null,null,null,null,null,null,null,null,"2017КП154","Оперативни процедури на бъбрека и уретера с голям и много голям обем и сложност",2300,"КП"]
[null,null,null,null,null,null,null,null,null,null,null,null,null,null,null,null,null,"2017КП155","Оперативни процедури на бъбрека и уретера със среден обем и сложност",942,"КП"]
[null,null,null,null,null,null,null,null,null,null,null,null,null,null,null,null,null,"2017КП156","Радикална цистектомия. Радикална цистопростатектомия",3200,"КП"]
[null,null,null,null,null,null,null,null,null,null,null,null,null,null,null,null,null,"2017КП157","Радикална простатектомия",2500,"КП"]
[null,null,null,null,null,null,null,null,null,null,null,null,null,null,null,null,null,"2017КП158","Оперативни интервенции при инфекции на меките и костни тъкани",500,"КП"]
[null,null,null,null,null,null,null,null,null,null,null,null,null,null,null,null,null,"2017КП159","Артроскопски процедури в областта на скелетно-мускулната система",700,"КП"]
[null,null,null,null,null,null,null,null,null,null,null,null,null,null,null,null,null,"2017КП160","Нерадикално отстраняване на матката",1024,"КП"]
[null,null,null,null,null,null,null,null,null,null,null,null,null,null,null,null,null,"2017КП161","Радикално отстраняване на женски полови органи",1055,"КП"]
[null,null,null,null,null,null,null,null,null,null,null,null,null,null,null,null,null,"2017КП162","Оперативни интервенции чрез коремен достъп за отстраняване на болестни изменения на женските полови органи",711,"КП"]
[null,null,null,null,null,null,null,null,null,null,null,null,null,null,null,null,null,"2017КП163","Оперативни интервенции чрез долен достъп за отстраняване на болестни изменения или инвазивно изследване на женските полови органи",277,"КП"]
[null,null,null,null,null,null,null,null,null,null,null,null,null,null,null,null,null,"2017КП164","Корекции на тазова (перинеална) статика и/или на незадържане на урината при жената",806,"КП"]
[null,null,null,null,null,null,null,null,null,null,null,null,null,null,null,null,null,"2017КП165","Диагностични процедури и консервативно лечение на токсо-инфекциозен и анемичен синдром от акушеро-гинекологичен произход",408,"КП"]
[null,null,null,null,null,null,null,null,null,null,null,null,null,null,null,null,null,"2017КП166","Корекции на проходимост и възстановяване на анатомия при жената",605,"КП"]
[null,null,null,null,null,null,null,null,null,null,null,null,null,null,null,null,null,"2017КП167","Системна радикална ексцизия на лимфни възли (тазови и/или парааортални и/или ингвинални) като самостоятелна интервенция или съчетана с радикално отстраняване на женски полови органи. Тазова екзентерация",1700,"КП"]
[null,null,null,null,null,null,null,null,null,null,null,null,null,null,null,null,null,"2017КП168","Високотехнологична асистирана с робот гинекологична хирургия",8000,"КП"]
[null,null,null,null,null,null,null,null,null,null,null,null,null,null,null,null,null,"2017КП169","Интензивно лечение на интра- и постпартални усложнения, довели до шок",1109,"КП"]
[null,null,null,null,null,null,null,null,null,null,null,null,null,null,null,null,null,"2017КП170","Интензивно лечение на интра- и поспартални усложнения, довели до шок, с приложение на рекомбинантни фактори на кръвосъсирването",6800,"КП"]
[null,null,null,null,null,null,null,null,null,null,null,null,null,null,null,null,null,"2017КП171","Оперативни процедури на хранопровод, стомах и дуоденум с голям и много голям обем и сложност, при лица над 18 години",2700,"КП"]
[null,null,null,null,null,null,null,null,null,"-","ЛЕЧЕБНО ЗАВЕДЕНИЕ",null,null,null,null,null,null,"2017КП172","Оперативни процедури на хранопровод, стомах и дуоденум с голям и много голям обем и сложност, при лица под 18 години",2900,"КП"]
[null,null,null,null,null,null,null,null,null,null,null,null,null,null,null,null,null,"2017КП173","Оперативни процедури на хранопровод, стомах и дуоденум със среден обем и сложност, при лица над 18 години",1621,"КП"]
[null,null,null,null,null,null,null,null,null,null,null,null,null,null,null,null,null,"2017КП174","Оперативни процедури на хранопровод, стомах и дуоденум със среден обем и сложност, при лица под 18 години",1621,"КП"]
[null,null,null,null,null,null,null,null,null,null,null,null,null,null,null,null,null,"2017КП175","Оперативни процедури на тънки и дебели черва, вкл. при заболявания на мезентериума и ретроперитонеума с голям и много голям обем и сложност, при лица над 18 години",2453,"КП"]
[null,null,null,null,null,null,null,null,null,null,null,null,null,null,null,null,null,"2017КП176","Оперативни процедури на тънки и дебели черва, вкл. при заболявания на мезентериума и ретроперитонеума с голям и много голям обем и сложност, при лица под 18 години",2600,"КП"]
[null,null,null,null,null,null,null,null,null,null,null,null,null,null,null,null,null,"2017КП177","Оперативни процедури на тънки и дебели черва със среден обем и сложност, при лица над 18 години",939,"КП"]
[null,null,null,null,null,null,null,null,null,null,null,null,null,null,null,null,null,"2017КП178","Оперативни процедури на тънки и дебели черва със среден обем и сложност, при лица под 18 години",1000,"КП"]
[null,null,null,null,null,null,null,null,null,null,null,null,null,null,null,null,null,"2017КП179","Оперативни процедури върху апендикс",558,"КП"]
[null,null,null,null,null,null,null,null,null,null,null,null,null,null,null,null,null,"2017КП180","Хирургични интервенции за затваряне на стома",624,"КП"]
[null,null,null,null,null,null,null,null,null,null,null,null,null,null,null,null,null,"2017КП181","Хирургични интервенции на ануса и перианалното пространство",426,"КП"]
[null,null,null,null,null,null,null,null,null,null,null,null,null,null,null,null,null,"2017КП182","Оперативни процедури при хернии",574,"КП"]
[null,null,null,null,null,null,null,null,null,null,null,null,null,null,null,null,null,"2017КП183","Оперативни процедури при хернии с инкарцерация",601,"КП"]
[null,null,null,null,null,null,null,null,null,null,null,null,null,null,null,null,null,"2017КП184","Конвенционална холецистектомия",1127,"КП"]
[null,null,null,null,null,null,null,null,null,null,null,null,null,null,null,null,null,"2017КП185","Лапароскопска холецистектомия",880,"КП"]
[null,null,null,null,null,null,null,null,null,null,null,null,null,null,null,null,null,"2017КП186","Оперативни процедури върху екстрахепаталните жлъчни пътища",2138,"КП"]
[null,null,null,null,null,null,null,null,null,null,null,null,null,null,null,null,null,"2017КП187","Оперативни процедури върху черен дроб",3000,"КП"]
[null,null,null,null,null,null,null,null,null,null,null,null,null,null,null,null,null,"2017КП188","Оперативни процедури върху черен дроб при ехинококова болест",1355,"КП"]
[null,null,null,null,null,null,null,null,null,null,null,null,null,null,null,null,null,"2017КП189","Оперативни процедури върху панкреас и дистален холедох, с голям и много голям обем и сложност",4500,"КП"]
[null,null,null,null,null,null,null,null,null,null,null,null,null,null,null,null,null,"2017КП190","Оперативни процедури върху панкреас и дистален холедох, със среден обем и сложност",1720,"КП"]
[null,null,null,null,null,null,null,null,null,null,null,null,null,null,null,null,null,"2017КП191.1","Оперативни процедури върху далака при лица над 18 години",1000,"КП"]
[null,null,null,null,null,null,null,null,null,null,null,null,null,null,null,null,null,"2017КП191.2","Оперативни процедури върху далака при лица под 18 години",1500,"КП"]
[null,null,null,null,null,null,null,null,null,null,null,null,null,null,null,null,null,"2017КП192","Оперативни интервенции при диабетно стъпало, без съдово-реконструктивни операции",1200,"КП"]
[null,null,null,null,null,null,null,null,null,null,null,null,null,null,null,null,null,"2017КП193","Оперативно лечение на онкологично заболяване на гърдата: стадии Tis 1-4 N 0-2 M0-1",1100,"КП"]
[null,null,null,null,null,null,null,null,null,null,null,null,null,null,null,null,null,"2017КП194","Оперативни интервенции върху гърда с локална ексцизия и биопсия",200,"КП"]
[null,null,null,null,null,null,null,null,null,null,null,null,null,null,null,null,null,"2017КП195","Оперативно лечение при остър перитонит",2000,"КП"]
[null,null,null,null,null,null,null,null,null,null,null,null,null,null,null,null,null,"2017КП196","Оперативно лечение на интраабдоминални абсцеси",1375,"КП"]
[null,null,null,null,null,null,null,null,null,null,null,null,null,null,null,null,null,"2017КП197","Консервативно лечение при остри коремни заболявания",714,"КП"]
[null,null,null,null,null,null,null,null,null,null,null,null,null,null,null,null,null,"2017КП198","Хирургично лечение при животозастрашаващи инфекции на меките и костни тъкани",2000,"КП"]
[null,null,null,null,null,null,null,null,null,null,null,null,null,null,null,null,null,"2017КП199.1","Лечение на тумори на кожа и лигавици - злокачествени новообразувания",550,"КП"]
[null,null,null,null,null,null,null,null,null,null,null,null,null,null,null,null,null,"2017КП199.2","Лечение на тумори на кожа и лигавици - доброкачествени новообразувания",305,"КП"]
[null,null,null,null,null,null,null,null,null,null,null,null,null,null,null,null,null,"2017КП200","Реконструктивни операции на гърдата по медицински показания след доброкачествени и злокачествени тумори, вродени заболявания и последици от травми и изгаряния",554,"КП"]
[null,null,null,null,null,null,null,null,null,null,null,null,null,null,null,null,null,"2017КП201","Оперативни процедури върху щитовидна и паращитовидни жлези, с голям и много голям обем и сложност",900,"КП"]
[null,null,null,null,null,null,null,null,null,null,null,null,null,null,null,null,null,"2017КП202","Оперативни процедури върху щитовидна и паращитовидни жлези, със среден обем и сложност",700,"КП"]
[null,null,null,null,null,null,null,null,null,null,null,null,null,null,null,null,null,"2017КП203","Хирургично лечение при надбъбречни заболявания",1500,"КП"]
[null,null,null,null,null,null,null,null,null,null,null,null,null,null,null,null,null,"2017КП204","Тежка черепно-мозъчна травма - оперативно лечение",3300,"КП"]
[null,null,null,null,null,null,null,null,null,null,null,null,null,null,null,null,null,"2017КП205","Тежка черепно-мозъчна травма - консервативно поведение",1330,"КП"]
[null,null,null,null,null,null,null,null,null,null,null,null,null,null,null,null,null,"2017КП206","Краниотомии, неиндицирани от травма, чрез съвременни технологии (невронавигация, невроендоскопия и интраоперативен ултразвук)",3550,"КП"]
[null,null,null,null,null,null,null,null,null,null,null,null,null,null,null,null,null,"2017КП207","Краниотомии, неиндицирани от травма, по класически начин",2300,"КП"]
[null,null,null,null,null,null,null,null,null,null,null,null,null,null,null,null,null,"2017КП208","Консервативно поведение при леки и среднотежки черепно-мозъчни травми",384,"КП"]
[null,null,null,null,null,null,null,null,null,null,null,null,null,null,null,null,null,"2017КП209","Хирургично лечение при травма на главата",1052,"КП"]
[null,null,null,null,null,null,null,null,null,null,null,null,null,null,null,null,null,"2017КП210","Периферни и черепно-мозъчни нерви (екстракраниална част) - оперативно лечение",800,"КП"]
[null,null,null,null,null,null,null,null,null,null,null,null,null,null,null,null,null,"2017КП211","Гръбначни и гръбначно-мозъчни оперативни интервенции с голям и много голям обем и сложност",2300,"КП"]
[null,null,null,null,null,null,null,null,null,null,null,null,null,null,null,null,null,"2017КП212","Гръбначни и гръбначно-мозъчни оперативни интервенции с малък и среден обем и сложност",1819,"КП"]
[null,null,null,null,null,null,null,null,null,null,null,null,null,null,null,null,null,"2017КП213","Оперативно лечение на тумори на бял дроб, медиастинум, плевра и гръдна стена",2500,"КП"]
[null,null,null,null,null,null,null,null,null,null,null,null,null,null,null,null,null,"2017КП214","Разширени (големи) операции с пълно или частично отстраняване на повече от един интраторакален орган, включително медиастинален тумор или гръдна стена. Едноетапни операции при белодробни болести, засягащи двата бели дроба при болести със съчетана белодробна и друга локализация",3000,"КП"]
[null,null,null,null,null,null,null,null,null,null,null,null,null,null,null,null,null,"2017КП215","Оперативно лечение на болести на бял дроб, медиастинум, плевра и гръдна стена, без онкологични заболявания",1550,"КП"]
[null,null,null,null,null,null,null,null,null,null,null,null,null,null,null,null,null,"2017КП216","Спешни състояния в гръдната хирургия",450,"КП"]
[null,null,null,null,null,null,null,null,null,null,null,null,null,null,null,null,null,"2017КП217.1","Оперативни процедури с голям обем и сложност на таза и долния крайник",2050,"КП"]
[null,null,null,null,null,null,null,null,null,null,null,null,null,null,null,null,null,"2017КП217.2","Оперативни процедури с много голям обем и сложност на таза, тазо-бедрената и колянната става",4700,"КП"]
[null,null,null,null,null,null,null,null,null,null,null,null,null,null,null,null,null,"2017КП217.3","Оперативни процедури при множествени счупвания и/или луксации на таза, горни и долни крайници",5350,"КП"]
[null,null,null,null,null,null,null,null,null,null,null,null,null,null,null,null,null,"2017КП218","Оперативни процедури с алопластика на тазобедрена и колянна става",1257,"КП"]
[null,null,null,null,null,null,null,null,null,null,null,null,null,null,null,null,null,"2017КП219","Оперативни процедури на таза и долния крайник със среден обем и сложност",910,"КП"]
[null,null,null,null,null,null,null,null,null,null,null,null,null,null,null,null,null,"2017КП220","Оперативни процедури в областта на раменния пояс и горния крайник с голям обем и сложност",1000,"КП"]
[null,null,null,null,null,null,null,null,null,null,null,null,null,null,null,null,null,"2017КП221","Оперативни процедури в областта на раменния пояс и горния крайник с много голям обем и сложност",1326,"КП"]
[null,null,null,null,null,null,null,null,null,null,null,null,null,null,null,null,null,"2017КП222","Средни оперативни процедури в областта на раменния пояс и горния крайник",460,"КП"]
[null,null,null,null,null,null,null,null,null,null,null,null,null,null,null,null,null,"2017КП223","Оперативни процедури при заболявания на гръдния кош",660,"КП"]
[null,null,null,null,null,null,null,null,null,null,null,null,null,null,null,null,null,"2017КП224","Септични (бактериални) артрити и остеомиелити при лица под 18 години",1200,"КП"]
[null,null,null,null,null,null,null,null,null,null,null,null,null,null,null,null,null,"2017КП225","Хирургично лечение в лицево-челюстната област с много голям обем и сложност",1000,"КП"]
[null,null,null,null,null,null,null,null,null,null,null,null,null,null,null,null,null,"2017КП226","Оперативно лечение в лицево-челюстната област с голям обем и сложност",705,"КП"]
[null,null,null,null,null,null,null,null,null,null,null,null,null,null,null,null,null,"2017КП227","Оперативни процедури в лицево-челюстната област със среден обем и сложност",863,"КП"]
[null,null,null,null,null,null,null,null,null,null,null,null,null,null,null,null,null,"2017КП228","Оперативно лечение на възпалителни процеси в областта на лицето и шията",420,"КП"]
[null,null,null,null,null,null,null,null,null,null,null,null,null,null,null,null,null,"2017КП229","Консервативно лечение при заболявания на лицево-челюстната област",300,"КП"]
[null,null,null,null,null,null,null,null,null,null,null,null,null,null,null,null,null,"2017КП230","Оперативно лечение на вродени малформации в лицево-челюстната област",714,"КП"]
[null,null,null,null,null,null,null,null,null,null,null,null,null,null,null,null,null,"2017КП231","Лечение на фрактури на лицевите и челюстните кости",803,"КП"]
[null,null,null,null,null,null,null,null,null,null,null,null,null,null,null,null,null,"2017КП232","Хирургично лечение на изгаряния с площ от 5 % до 10 % при възрастни и до 3 % при деца",350,"КП"]
[null,null,null,null,null,null,null,null,null,null,null,null,null,null,null,null,null,"2017КП233","Хирургично лечение при необширни изгаряния с площ от 1 % до 19 % от телесната повърхност, с хирургични интервенции",3030,"КП"]
[null,null,null,null,null,null,null,null,null,null,null,null,null,null,null,null,null,"2017КП234","Хирургично лечение при обширни изгаряния над 20 % от телесната повърхност, с хирургични интервенции",9000,"КП"]
[null,null,null,null,null,null,null,null,null,null,null,null,null,null,null,null,null,"2017КП235","Оперативно лечение на поражения, предизвикани от ниски температури (измръзване)",400,"КП"]
[null,null,null,null,null,null,null,null,null,null,null,null,null,null,null,null,null,"2017КП236","Оперативно лечение на последствията от изгаряне и травма на кожата и подкожната тъкан",1700,"КП"]
[null,null,null,null,null,null,null,null,null,null,null,null,null,null,null,null,null,"2017КП237","Оперативно лечение на кожни дефекти от различно естество, налагащи пластично възстановяване",883,"КП"]
[null,null,null,null,null,null,null,null,null,null,null,null,null,null,null,null,null,"2017КП238","Реплантация и реконструкции с микросъдова хирургия",7000,"КП"]
[null,null,null,null,null,null,null,null,null,null,null,null,null,null,null,null,null,"2017КП239","Оперативно лечение на деца до 1 година с вродени аномалии в областта на торакалната и абдоминалната област",10000,"КП"]
[null,null,null,null,null,null,null,null,null,null,null,null,null,null,null,null,null,"2017КП240","Продължително системно парентерално лекарствено лечение на злокачествени солидни тумори и свързаните с него усложнения",470,"КП"]
[null,null,null,null,null,null,null,null,null,null,null,null,null,null,null,null,null,"2017КП241.1","Диагностични процедури за стадиране и оценка на терапевтичния отговор при пациенти със злокачествени солидни тумори с КТ",400,"КП"]
[null,null,null,null,null,null,null,null,null,null,null,null,null,null,null,null,null,"2017КП241.2","Диагностични процедури за стадиране и оценка на терапевтичния отговор при пациенти със злокачествени солидни тумори с ЯМР",600,"КП"]
[null,null,null,null,null,null,null,null,null,null,null,null,null,null,null,null,null,"2017КП242","Диагностика и лечение на левкемии",850,"КП"]
[null,null,null,null,null,null,null,null,null,null,null,null,null,null,null,null,null,"2017КП243","Диагностика и лечение на лимфоми",665,"КП"]
[null,null,null,null,null,null,null,null,null,null,null,null,null,null,null,null,null,"2017КП244","Диагностика и лечение на хеморагични диатези. Анемии",570,"КП"]
[null,null,null,null,null,null,null,null,null,null,null,null,null,null,null,null,null,"2017КП245","Диагностика и консервативно лечение на онкологични и онкохематологични заболявания, възникнали в детска възраст",880,"КП"]
[null,null,null,null,null,null,null,null,null,null,null,null,null,null,null,null,null,"2017КП246","Ортоволтно перкутанно лъчелечение и брахитерапия с високи активности",665,"КП"]
[null,null,null,null,null,null,null,null,null,null,null,null,null,null,null,null,null,"2017КП247","Брахитерапия с ниски активности",327,"КП"]
[null,null,null,null,null,null,null,null,null,null,null,null,null,null,null,null,null,"2017КП248","Конвенционална телегаматерапия",640,"КП"]
[null,null,null,null,null,null,null,null,null,null,null,null,null,null,null,null,null,"2017КП249","Триизмерна конвенционална телегаматерапия и брахитерапия със закрити източници",1100,"КП"]
[null,null,null,null,null,null,null,null,null,null,null,null,null,null,null,null,null,"2017КП250.1","Високотехнологично лъчелечение на онкологични и неонкологични заболявания 3 дни престой без лъчехимиотерапия",1850,"КП"]
[null,null,null,null,null,null,null,null,null,null,null,null,null,null,null,null,null,"2017КП250.2","Високотехнологично лъчелечение на онкологични и неонкологични заболявания 30 дни престой или не по-малко от 20 процедури без нощувка",3700,"КП"]
[null,null,null,null,null,null,null,null,null,null,null,null,null,null,null,null,null,"2017КП251.1","Модулирано по интензитет лъчелечение на онкологични и неонкологични заболявания престой 5 дни или не по-малко от 5 процедури",2700,"КП"]
[null,null,null,null,null,null,null,null,null,null,null,null,null,null,null,null,null,"2017КП251.2","Модулирано по интензитет лъчелечение на онкологични и неонкологични заболявания 30 дни престой или не по-малко от 20 процедури без нощувка",5400,"КП"]
[null,null,null,null,null,null,null,null,null,null,null,null,null,null,null,null,null,"2017КП252.1","Радиохирургия на онкологични и неонкологични заболявания",4500,"КП"]
[null,null,null,null,null,null,null,null,null,null,null,null,null,null,null,null,null,"2017КП252.2","Радиохирургия на онкологични и неонкологични заболявания - роботизирана с кибер нож",9000,"КП"]
[null,null,null,null,null,null,null,null,null,null,null,null,null,null,null,null,null,"2017КП253","Палиативни грижи за болни с онкологични заболявания",51,"КП"]
[null,null,null,null,null,null,null,null,null,null,null,null,null,null,null,null,null,"2017КП254","Продължително лечение и ранна рехабилитация след острия стадий на исхемичен и хеморагичен мозъчен инсулт с остатъчни проблеми за здравето",360,"КП"]
[null,null,null,null,null,null,null,null,null,null,null,null,null,null,null,null,null,"2017КП255","Продължително лечение и ранна рехабилитация след инфаркт на миокарда и след сърдечни интервенции",360,"КП"]
[null,null,null,null,null,null,null,null,null,null,null,null,null,null,null,null,null,"2017КП256","Продължително лечение и ранна рехабилитация след оперативни интервенции с голям и много голям обем и сложност с остатъчни проблеми за здравето",400,"КП"]
[null,null,null,null,null,null,null,null,null,null,null,null,null,null,null,null,null,"2017КП257","Физикална терапия, рехабилитация и специализирани грижи при персистиращо/хронично/вегетативно състояние",100,"КП"]
[null,null,null,null,null,null,null,null,null,null,null,null,null,null,null,null,null,"2017КП258","Физикална терапия и рехабилитация при родова травма на централната нервна система",330,"КП"]
[null,null,null,null,null,null,null,null,null,null,null,null,null,null,null,null,null,"2017КП259","Физикална терапия и рехабилитация при родова травма на периферната нервна система",353,"КП"]
[null,null,null,null,null,null,null,null,null,null,null,null,null,null,null,null,null,"2017КП260","Физикална терапия и рехабилитация при детска церебрална парализа",595,"КП"]
[null,null,null,null,null,null,null,null,null,null,null,null,null,null,null,null,null,"2017КП261","Физикална терапия и рехабилитация при първични мускулни увреждания и спинална мускулна атрофия",353,"КП"]
[null,null,null,null,null,null,null,null,null,null,null,null,null,null,null,null,null,"2017КП262","Физикална терапия и рехабилитация на болести на централната нервна система",482,"КП"]
[null,null,null,null,null,null,null,null,null,null,null,null,null,null,null,null,null,"2017КП263","Физикална терапия и рехабилитация при болести на периферната нервна система",330,"КП"]
[null,null,null,null,null,null,null,null,null,null,null,null,null,null,null,null,null,"2017КП264","Физикална терапия и рехабилитация след преживян/стар инфаркт на миокарда и следоперативни интервенции",482,"КП"]
[null,null,null,null,null,null,null,null,null,null,null,null,null,null,null,null,null,"2017КП265","Физикална терапия и рехабилитация при болести на опорно-двигателен апарат",330,"КП"]
[null,null,null,null,null,null,null,null,null,null,null,null,null,null,null,null,null,"2017КП266","Речева рехабилитация след ларингектомия",285,"КП"]
[null,null,null,null,null,null,null,null,null,null,null,null,null,null,null,null,null,"2017КП999","Наблюдение до 48 часа в стационарни условия след проведена амбулаторна процедура",100,"КП"]
[null,null,null,null,null,null,null,null,null,null,null,null,null,null,null,null,null,"2017КПр01","Диализно лечение при остри състояния",144,"КПр"]
[null,null,null,null,null,null,null,null,null,null,null,null,null,null,null,null,null,"2017КПр02","Интензивно лечение на новородени деца с асистирано дишане",100,"КПр"]
[null,null,null,null,null,null,null,null,null,null,null,null,null,null,null,null,null,"2017КПр03","Интензивно лечение, мониторинг и интензивни грижи с механична вентилация и/или парентерално хранене",426,"КПр"]
[null,null,null,null,null,null,null,null,null,null,null,null,null,null,null,null,null,"2017КПр04","Интензивно лечение, мониторинг и интензивни грижи без механична вентилация и/или парентерално хранене",155,"КПр"]
[null,null,null,null,null,null,null,null,null,null,null,null,null,null,null,null,null,"2017АПр01","Хрониохемодиализа",144,"АПр"]
[null,null,null,null,null,null,null,null,null,null,null,null,null,null,null,null,null,"2017АПр02","Перитонеална диализа с апарат",130,"АПр"]
[null,null,null,null,null,null,null,null,null,null,null,null,null,null,null,null,null,"2017АПр03","Перитонеална диализа без апарат",93,"АПр"]
[null,null,null,null,null,null,null,null,null,null,null,null,null,null,null,null,null,"2017АПр04","Осигуряване на постоянен достъп за провеждане на диализно лечение и химиотерапия",182,"АПр"]
[null,null,null,null,null,null,null,null,null,null,null,null,null,null,null,null,null,"2017АПр05","Определяне на план за лечение на болни със злокачествени заболявания",50,"АПр"]
[null,null,null,null,null,null,null,null,null,null,null,null,null,null,null,null,null,"2017АПр06","Системно лекарствено лечение при злокачествени солидни тумори и хематологични заболявания",150,"АПр"]
[null,null,null,null,null,null,null,null,null,null,null,null,null,null,null,null,null,"2017АПр07","Амбулаторно наблюдение/диспансеризация при злокачествени заболявания и при вродени хематологични заболявания",130,"АПр"]
[null,null,null,null,null,null,null,null,null,null,null,null,null,null,null,null,null,"2017АПр08","Проследяване на терапевтичния отговор при пациенти на домашно лечение с прицелна перорална противотуморна терапия и перорална химиотерапия",250,"АПр"]
[null,null,null,null,null,null,null,null,null,null,null,null,null,null,null,null,null,"2017АПр09","Амбулаторно наблюдение/диспансеризация при муковисцидоза",45,"АПр"]
[null,null,null,null,null,null,null,null,null,null,null,null,null,null,null,null,null,"2017АПр10","Наблюдение при пациенти с невромускулни заболявания на неинвазивна вентилация",160,"АПр"]
[null,null,null,null,null,null,null,null,null,null,null,null,null,null,null,null,null,"2017АПр11","Консервативно лечение на продължителна бъбречна колика",91,"АПр"]
[null,null,null,null,null,null,null,null,null,null,null,null,null,null,null,null,null,"2017АПр12","Бъбречно-каменна болест: уролитиаза - екстракорпорална литотрипсия",266,"АПр"]
[null,null,null,null,null,null,null,null,null,null,null,null,null,null,null,null,null,"2017АПр13","Инструментална диагностика и лечение на заболявания на щитовидната жлеза",154,"АПр"]
[null,null,null,null,null,null,null,null,null,null,null,null,null,null,null,null,null,"2017АПр14","Диагностика и определяне на терапевтично поведение на заболявания на хипофизата и надбъбрека",210,"АПр"]
[null,null,null,null,null,null,null,null,null,null,null,null,null,null,null,null,null,"2017АПр15","Диагностика и определяне на терапевтично поведение на костни метаболитни заболявания и нарушения на калциево-фосфорната обмяна",150,"АПр"]
[null,null,null,null,null,null,null,null,null,null,null,null,null,null,null,null,null,"2017АПр16","Лечение на тежкопротичащи форми на псориазис",32,"АПр"]
[null,null,null,null,null,null,null,null,null,null,null,null,null,null,null,null,null,"2017АПр17","Диагностика и лечение на еритродермии",26,"АПр"]
[null,null,null,null,null,null,null,null,null,null,null,null,null,null,null,null,null,"2017АПр18","Оперативни процедури в областта на ушите, носа и гърлото и лицево-челюстната област с малък обем и сложност",250,"АПр"]
[null,null,null,null,null,null,null,null,null,null,null,null,null,null,null,null,null,"2017АПр19","Оперативно отстраняване на катаракта",360,"АПр"]
[null,null,null,null,null,null,null,null,null,null,null,null,null,null,null,null,null,"2017АПр20","Хирургично лечение на глаукома",390,"АПр"]
[null,null,null,null,null,null,null,null,null,null,null,null,null,null,null,null,null,"2017АПр21","Оперативни интервенции върху окото и придатъците му със среден обем и сложност",150,"АПр"]
[null,null,null,null,null,null,null,null,null,null,null,null,null,null,null,null,null,"2017АПр22","Малки оперативни процедури на раменен пояс и горен крайник",193,"АПр"]
[null,null,null,null,null,null,null,null,null,null,null,null,null,null,null,null,null,"2017АПр23","Малки оперативни процедури на таза и долния крайник",256,"АПр"]
[null,null,null,null,null,null,null,null,null,null,null,null,null,null,null,null,null,"2017АПр24","Mалки артроскопски процедури в областта на скелетно-мускулната система",144,"АПр"]
[null,null,null,null,null,null,null,null,null,null,null,null,null,null,null,null,null,"2017АПр25","Диагностична и терапевтична пункция и/или биопсия",58,"АПр"]
[null,null,null,null,null,null,null,null,null,null,null,null,null,null,null,null,null,"2017АПр26","Амбулаторни хирургични процедури",90,"АПр"]
[null,null,null,null,null,null,null,null,null,null,null,null,null,null,null,null,null,"2017АПр27","Специфични изследвания при хематологични заболявания",250,"АПр"]
[null,null,null,null,null,null,null,null,null,null,null,null,null,null,null,null,null,"2017АПр28","Паравертебрални блокади и блокади на отделни нерви",25,"АПр"]
[null,null,null,null,null,null,null,null,null,null,null,null,null,null,null,null,null,"2017АПр29","Поетапна вертикализация и обучение в ходене",100,"АПр"]
[null,null,null,null,null,null,null,null,null,null,null,null,null,null,null,null,null,"2017АПр30","Напасване на протеза на горен или долен крайник",24,"АПр"]
[null,null,null,null,null,null,null,null,null,null,null,null,null,null,null,null,null,"2017АПр31","Амбулаторно наблюдение на лица с кохлеарно-имплантна система",50,"АПр"]
[null,null,null,null,null,null,null,null,null,null,null,null,null,null,null,null,null,"2017АПр32","Амбулаторно наблюдение на лица с постоянен електрокардиостимулатор",50,"АПр"]
[null,null,null,null,null,null,null,null,null,null,null,null,null,null,null,null,null,"2017АПр33","Парентерална инфузия на лекарствени продукти по терапевтична схема",12,"АПр"]
[null,null,null,null,null,null,null,null,null,null,null,null,null,null,null,null,null,"2017АПр34","Ендоскопска диагностика на заболявания, засягащи стомашно-чревния тракт",120,"АПр"]
[null,null,null,null,null,null,null,null,null,null,null,null,null,null,null,null,null,"2017АПр35","Сцинтиграфски изследвания",70,"АПр"]
[null,null,null,null,null,null,null,null,null,null,null,null,null,null,null,null,null,"2017АПр36","Позитроннo-емисионна томография с компютърна томография (ПЕТ/КТ) (РЕТ/СТ)",2000,"АПр"]
[null,null,null,null,null,null,null,null,null,null,null,null,null,null,null,null,null,"2017АПр37","Еднофотонна емисионна компютърна томография с компютърна томография - SPECT/CT на хибриден скенер",350,"АПр"]
[null,null,null,null,null,null,null,null,null,null,null,null,null,null,null,null,null,"2017АПр38","Амбулаторно наблюдение и проследяване на терапевтичния отговор при пациенти, получаващи скъпоструващи лекарствени продукти по реда на чл. 78, ал. 2 ЗЗО",22,"АПр"]
[null,null,null,null,null,null,null,null,null,null,null,null,null,null,null,null,null,"2017АПр39","Амбулатарно лечение и контрол на гноен хидраденит",150,"АПр"]
[null,null,null,null,null,null,null,null,null,null,null,null,null,null,null,null,null,"2017АПр40","Амбулаторно лечение и контрол на идиопатична белодробна фиброза",90,"АПр"]
[null,null,null,null,null,null,null,null,null,null,null,null,null,null,null,null,null,"2017АПр41","Амбулаторно лечение и контрол при туберозна склероза",90,"АПр"]
[null,null,null,null,null,null,null,null,null,null,null,null,null,null,null,null,null,"2017АПр42","Амбулаторно наблюдение/диспансеризация на пациенти с тежкопротичащи възпалителни полиартропатии и спондилопатии",90,"АПр"]
[null,null,null,null,null,null,null,null,null,null,null,null,null,null,null,null,null,"2019КП001","Стационарни грижи при бременност с повишен риск ",400,"КП"]
[null,null,null,null,null,null,null,null,null,null,null,null,null,null,null,null,null,"2019КП002","Пренатална инвазивна диагностика на бременността и интензивни грижи при бременност с реализиран риск ",800,"КП"]
[null,null,null,null,null,null,null,null,null,null,null,null,null,null,null,null,null,"2019КП003","Оперативни процедури за задържане на бременност ",150,"КП"]
[null,null,null,null,null,null,null,null,null,null,null,null,null,null,null,null,null,"2019КП004.1 ","Преждевременно прекъсване на бременността : при прекъсване на бременноста до 13 г.",170,"КП"]
[null,null,null,null,null,null,null,null,null,null,null,null,null,null,null,null,null,"2019КП004.2 ","Преждевременно прекъсване на бременността : при прекъсване на бременността над 13 г. ",280,"КП"]
[null,null,null,null,null,null,null,null,null,null,null,null,null,null,null,null,null,"2019КП005","Раждане ",750,"КП"]
[null,null,null,null,null,null,null,null,null,null,null,null,null,null,null,null,null,"2019КП006","Грижи за здраво новородено дете ",220,"КП"]
[null,null,null,null,null,null,null,null,null,null,null,null,null,null,null,null,null,"2019КП007","Диагностика и лечение на новородени с тегло над 2500 грама, първа степен на тежест ",800,"КП"]
[null,null,null,null,null,null,null,null,null,null,null,null,null,null,null,null,null,"2019КП008","Диагностика и лечение на новородени с тегло над 2500 грама, втора степен на тежест ",1200,"КП"]
[null,null,null,null,null,null,null,null,null,null,null,null,null,null,null,null,null,"2019КП009","Диагностика и лечение на новородени с тегло от 1500 до 2499 грама, първа степен на тежест ",900,"КП"]
[null,null,null,null,null,null,null,null,null,null,null,null,null,null,null,null,null,"2019КП010","Диагностика и лечение на новородени с тегло от 1500 до 2499 грама, втора степен на тежест ",1300,"КП"]
[null,null,null,null,null,null,null,null,null,null,null,null,null,null,null,null,null,"2019КП011","Диагностика и лечение на новородени с тегло под 1499 грама ",3600,"КП"]
[null,null,null,null,null,null,null,null,null,null,null,null,null,null,null,null,null,"2019КП012","Диагностика и лечение на дете c вродени аномалии ",1200,"КП"]
[null,null,null,null,null,null,null,null,null,null,null,null,null,null,null,null,null,"2019КП013","Диагностика и интензивно лечение на новородени с дихателна недос­татъчност, първа степен на тежест ",2000,"КП"]
[null,null,null,null,null,null,null,null,null,null,null,null,null,null,null,null,null,"2019КП014","Диагностика и интензивно лечение на новородени с дихателна недос­татъчност, втора степен на тежест ",3200,"КП"]
[null,null,null,null,null,null,null,null,null,null,null,null,null,null,null,null,null,"2019КП015.1 ","Диагностика и интензивно лечение на новородени с еднократно прило­жение на сърфактант ",3300,"КП"]
[null,null,null,null,null,null,null,null,null,null,null,null,null,null,null,null,null,"2019КП015.2 ","Диагностика и интензивно лечение на новородени с многократно при­ложение на сърфактант ",5900,"КП"]
[null,null,null,null,null,null,null,null,null,null,null,null,null,null,null,null,null,"2019КП016","Диагностика и лечение на нестабилна форма на ангина пекторис/остър миокарден инфаркт без инвазивно изследване и/или интервенционално лечение ",350,"КП"]
[null,null,null,null,null,null,null,null,null,null,null,null,null,null,null,null,null,"2019КП017","Инвазивна диагностика при сърдечно-съдови заболявания ",750,"КП"]
[null,null,null,null,null,null,null,null,null,null,null,null,null,null,null,null,null,"2019КП018","Инвазивна диагностика при сърдечно-съдови заболявания с механична вентилация ",1320,"КП"]
[null,null,null,null,null,null,null,null,null,null,null,null,null,null,null,null,null,"2019КП019.1 ","Постоянна електрокардиостимулация – с имплантация на антибрадикарден пейсмейкър-еднокамерен или вдукамерен",550,"КП"]
[null,null,null,null,null,null,null,null,null,null,null,null,null,null,null,null,null,"2019КП019.2 ","Постоянна електрокардиостимулация –  с имплантация на ресинхронизираща ма за стимулация или автоматичен кардиовертер дефибрилатор",1100,"КП"]
[null,null,null,null,null,null,null,null,null,null,null,null,null,null,null,null,null,"2019КП020","Интервенционално лечение и свързани с него диагностични катетери­зации при сърдечно-съдови заболявания ",3318,"КП"]
[null,null,null,null,null,null,null,null,null,null,null,null,null,null,null,null,null,"2019КП021","Интервенционално лечение и свързани с него диагностични катетери­зации при сърдечни аритмии ",3318,"КП"]
[null,null,null,null,null,null,null,null,null,null,null,null,null,null,null,null,null,"2019КП022","Интервенционално лечение и свързани с него диагностични катетери­зации при вродени сърдечни малформации ",3318,"КП"]
[null,null,null,null,null,null,null,null,null,null,null,null,null,null,null,null,null,"2019КП023","Интервенционално лечение и свързани с него диагностични катетери­зации при вродени сърдечни малформации с механична вентилация ",3600,"КП"]
[null,null,null,null,null,null,null,null,null,null,null,null,null,null,null,null,null,"2019КП024","Ендоваскуларно лечение на екстракраниални съдове ",370,"КП"]
[null,null,null,null,null,null,null,null,null,null,null,null,null,null,null,null,null,"2019КП025","Диагностика и лечение на нестабилна форма на ангина пекторис с инвазивно изследване ",900,"КП"]
[null,null,null,null,null,null,null,null,null,null,null,null,null,null,null,null,null,"2019КП026","Диагностика и лечение на нестабилна форма на ангина пекторис с интервенционално лечение ",3430,"КП"]
[null,null,null,null,null,null,null,null,null,null,null,null,null,null,null,null,null,"2019КП027","Диагностика и лечение на остър коронарен синдром с фибринолитик ",2750,"КП"]
[null,null,null,null,null,null,null,null,null,null,null,null,null,null,null,null,null,"2019КП028","Диагностика и лечение на остър коронарен синдром с персистираща елевация на ST сегмент с интервенционално лечение ",4540,"КП"]
[null,null,null,null,null,null,null,null,null,null,null,null,null,null,null,null,null,"2019КП029","Диагностика и лечение на остра и изострена хронична сърдечна недос­татъчност без механична вентилация ",520,"КП"]
[null,null,null,null,null,null,null,null,null,null,null,null,null,null,null,null,null,"2019КП030","Диагностика и лечение на остра и изострена хронична сърдечна недос­татъчност с механична вентилация ",1300,"КП"]
[null,null,null,null,null,null,null,null,null,null,null,null,null,null,null,null,null,"2019КП031","Диагностика и лечение на инфекциозен ендокардит ",4950,"КП"]
[null,null,null,null,null,null,null,null,null,null,null,null,null,null,null,null,null,"2019КП032","Диагностика и лечение на заболявания на миокарда и перикарда ",462,"КП"]
[null,null,null,null,null,null,null,null,null,null,null,null,null,null,null,null,null,"2019КП033","Диагностика и лечение на ритъмни и проводни нарушения ",435,"КП"]
[null,null,null,null,null,null,null,null,null,null,null,null,null,null,null,null,null,"2019КП034","Диагностика и лечение на артериална хипертония в детската възраст ",700,"КП"]
[null,null,null,null,null,null,null,null,null,null,null,null,null,null,null,null,null,"2019КП035","Диагностика и лечение на хипоксемични състояния при вродени сър­дечни малформации в детска възраст ",750,"КП"]
[null,null,null,null,null,null,null,null,null,null,null,null,null,null,null,null,null,"2019КП036","Диагностика и лечение на белодробен тромбоемболизъм без фибринолитик ",700,"КП"]
[null,null,null,null,null,null,null,null,null,null,null,null,null,null,null,null,null,"2019КП037","Диагностика и лечение на белодробен тромбоемболизъм с фибринолитик ",2600,"КП"]
[null,null,null,null,null,null,null,null,null,null,null,null,null,null,null,null,null,"2019КП038","Диагностика и лечение на хронична обструктивна белодробна бо­лест – остра екзацербация ",550,"КП"]
[null,null,null,null,null,null,null,null,null,null,null,null,null,null,null,null,null,"2019КП039","Диагностика и лечение на бронхопневмония и бронхиолит при лица над 18-годишна възраст ",580,"КП"]
[null,null,null,null,null,null,null,null,null,null,null,null,null,null,null,null,null,"2019КП040.1 ","Диагностика и лечение на бронхиална астма: среднотежък и тежък пристъп при лица над 18-го­дишна възраст ",550,"КП"]
[null,null,null,null,null,null,null,null,null,null,null,null,null,null,null,null,null,"2019КП040.2 ","Диагностика и лечение на бронхиална астма: среднотежък и тежък пристъп при лица под 18-го­дишна възраст ",650,"КП"]
[null,null,null,null,null,null,null,null,null,null,null,null,null,null,null,null,null,"2019КП041.1 ","Диагностика и лечение на алергични заболявания на дихателната сис­тема при лица над 18 г. ",400,"КП"]
[null,null,null,null,null,null,null,null,null,null,null,null,null,null,null,null,null,"2019КП041.2 ","Диагностика и лечение при инфекциозно-алергични заболявания на дихателната система при лица под 18 години ",500,"КП"]
[null,null,null,null,null,null,null,null,null,null,null,null,null,null,null,null,null,"2019КП042.1 ","Диагностика и лечение на гнойно-възпалителни заболявания на бронхо-белодробната система при лица над 18 години ",780,"КП"]
[null,null,null,null,null,null,null,null,null,null,null,null,null,null,null,null,null,"2019КП042.2 ","Диагностика и лечение на гнойно-възпалителни заболявания на бронхо-белодробната система при лица под 18 години ",1200,"КП"]
[null,null,null,null,null,null,null,null,null,null,null,null,null,null,null,null,null,"2019КП043","Бронхоскопски процедури с неголям обем и сложност в пулмологията ",280,"КП"]
[null,null,null,null,null,null,null,null,null,null,null,null,null,null,null,null,null,"2019КП044","Високоспециализирани интервенционални процедури в пулмологията ",800,"КП"]
[null,null,null,null,null,null,null,null,null,null,null,null,null,null,null,null,null,"2019КП045","Лечение на декомпенсирана хронична дихателна недостатъчност при болести на дихателната система ",650,"КП"]
[null,null,null,null,null,null,null,null,null,null,null,null,null,null,null,null,null,"2019КП046","Лечение на декомпенсирана хронична дихателна недостатъчност при болести на дихателната система в детска възраст ",1200,"КП"]
[null,null,null,null,null,null,null,null,null,null,null,null,null,null,null,null,null,"2019КП047","Лечение на декомпенсирана хронична дихателна недостатъчност при болести на дихателната система с механична вентилация ",1540,"КП"]
[null,null,null,null,null,null,null,null,null,null,null,null,null,null,null,null,null,"2019КП048","Диагностика и лечение на бронхопневмония в детска възраст ",700,"КП"]
[null,null,null,null,null,null,null,null,null,null,null,null,null,null,null,null,null,"2019КП049","Диагностика и лечение на бронхиолит в детската възраст ",570,"КП"]
[null,null,null,null,null,null,null,null,null,null,null,null,null,null,null,null,null,"2019КП050","Диагностика и лечение на исхемичен мозъчен инсулт без тромболиза ",730,"КП"]
[null,null,null,null,null,null,null,null,null,null,null,null,null,null,null,null,null,"2019КП051.1","Диагностика и лечение на исхемичен мозъчен инсулт с тромболиза ",2300,"КП"]
[null,null,null,null,null,null,null,null,null,null,null,null,null,null,null,null,null,"2019КП051.2","Диагностика и лечение на исхемичен мозъчен инсулт с интервенционално лечение",1550,"КП"]
[null,null,null,null,null,null,null,null,null,null,null,null,null,null,null,null,null,"2019КП052","Диагностика и лечение на паренхимен мозъчен кръвоизлив ",1150,"КП"]
[null,null,null,null,null,null,null,null,null,null,null,null,null,null,null,null,null,"2019КП053","Диагностика и лечение на субарахноиден кръвоизлив ",1200,"КП"]
[null,null,null,null,null,null,null,null,null,null,null,null,null,null,null,null,null,"2019КП054","Диагностика и специфично лечение на остра и хронична демиелинизираща поли­невропатия (Гилен-Баре) ",7000,"КП"]
[null,null,null,null,null,null,null,null,null,null,null,null,null,null,null,null,null,"2019КП055","Диагностика и специфично лечение на остра и хронична демиелинизи­раща полиневропатия (Гилен-Баре) на апаратна вентилация ",10000,"КП"]
[null,null,null,null,null,null,null,null,null,null,null,null,null,null,null,null,null,"2019КП056","Диагностика и лечение на болести на черепно-мозъчните нерви (ЧМН), на нервните коренчета и плексуси, полиневропатия и вертеброгенни болкови синдроми ",500,"КП"]
[null,null,null,null,null,null,null,null,null,null,null,null,null,null,null,null,null,"2019КП057","Диагностика и лечение на остри и хронични вирусни, бактериални, спирохетни, микотични и паразитни менингити, менингоенцефалити и миелити ",2000,"КП"]
[null,null,null,null,null,null,null,null,null,null,null,null,null,null,null,null,null,"2019КП058","Диагностика и лечение на наследствени и дегенеративни заболявания на нервната система, засягащи ЦНС с начало в детска възраст ",700,"КП"]
[null,null,null,null,null,null,null,null,null,null,null,null,null,null,null,null,null,"2019КП059","Диагностика и лечение на наследствени и дегенеративни заболявания на нервната система при възрастни пациенти, засягащи централна нервна система и моторния неврон (ЛАС) ",550,"КП"]
[null,null,null,null,null,null,null,null,null,null,null,null,null,null,null,null,null,"2019КП060","Диагностика и лечение на невро-мускулни заболявания и болести на предните рога на гръбначния мозък ",480,"КП"]
[null,null,null,null,null,null,null,null,null,null,null,null,null,null,null,null,null,"2019КП061","Диагностика и лечение на мултипленна склероза ",650,"КП"]
[null,null,null,null,null,null,null,null,null,null,null,null,null,null,null,null,null,"2019КП062","Диагностика и лечение на епилепсия и епилептични пристъпи ",400,"КП"]
[null,null,null,null,null,null,null,null,null,null,null,null,null,null,null,null,null,"2019КП063","Лечение на епилептичен статус ",600,"КП"]
[null,null,null,null,null,null,null,null,null,null,null,null,null,null,null,null,null,"2019КП064.1 ","Диагностика и лечение на миастения гравис и миастенни синдроми при лица над 18 години ",500,"КП"]
[null,null,null,null,null,null,null,null,null,null,null,null,null,null,null,null,null,"2019КП064.2 ","Диагностика и лечение на миастения гравис и миастенни синдроми при лица под 18 години ",657,"КП"]
[null,null,null,null,null,null,null,null,null,null,null,null,null,null,null,null,null,"2019КП065","Лечение на миастенни кризи с кортикостероиди и апаратна вентилация ",6000,"КП"]
[null,null,null,null,null,null,null,null,null,null,null,null,null,null,null,null,null,"2019КП066","Лечение на миастенни кризи с човешки имуноглобулин и апаратна вентилация ",8000,"КП"]
[null,null,null,null,null,null,null,null,null,null,null,null,null,null,null,null,null,"2019КП067","Диагностика и лечение на паркинсонова болест ",231,"КП"]
[null,null,null,null,null,null,null,null,null,null,null,null,null,null,null,null,null,"2019КП068","Диагностика и лечение на заболявания на горния гастроинтестинален тракт ",400,"КП"]
[null,null,null,null,null,null,null,null,null,null,null,null,null,null,null,null,null,"2019КП069","Високоспециализирани интервенционални процедури при заболявания на гастроинтестиналния тракт ",600,"КП"]
[null,null,null,null,null,null,null,null,null,null,null,null,null,null,null,null,null,"2019КП070","Диагностика и лечение на болест на Крон и улцерозен колит ",1400,"КП"]
[null,null,null,null,null,null,null,null,null,null,null,null,null,null,null,null,null,"2019КП071","Диагностика и лечение на заболявания на тънкото и дебелото черво ",400,"КП"]
[null,null,null,null,null,null,null,null,null,null,null,null,null,null,null,null,null,"2019КП072","Ендоскопско и медикаментозно лечение при остро кървене от гастро­интестиналния тракт ",600,"КП"]
[null,null,null,null,null,null,null,null,null,null,null,null,null,null,null,null,null,"2019КП073","Високоспециализирани интервенционални процедури при заболявания на хепатобилиарната система (ХБС), панкреаса и перитонеума ",1700,"КП"]
[null,null,null,null,null,null,null,null,null,null,null,null,null,null,null,null,null,"2019КП074","Диагностика и лечение на заболявания на хепатобилиарната система, панкреаса и перитонеума ",920,"КП"]
[null,null,null,null,null,null,null,null,null,null,null,null,null,null,null,null,null,"2019КП075","Диагностика и лечение на декомпенсирани чернодробни заболявания (цироза) ",1300,"КП"]
[null,null,null,null,null,null,null,null,null,null,null,null,null,null,null,null,null,"2019КП076","Диагностика и лечение на хронични чернодробни заболявания ",700,"КП"]
[null,null,null,null,null,null,null,null,null,null,null,null,null,null,null,null,null,"2019КП077","Диагностика и лечение на хронични диарии, с начало в детската възраст ",400,"КП"]
[null,null,null,null,null,null,null,null,null,null,null,null,null,null,null,null,null,"2019КП078.1 ","Деагностика и лечение на декомпенсиран захарен диабет при лица над 18 години ",660,"КП"]
[null,null,null,null,null,null,null,null,null,null,null,null,null,null,null,null,null,"2019КП078.2 ","Деагностика и лечение на декомпенсиран захарен диабет при лица под 18 години ",610,"КП"]
[null,null,null,null,null,null,null,null,null,null,null,null,null,null,null,null,null,"2019КП079","Диагностика и лечение на заболявания на щитовидната жлеза ",341,"КП"]
[null,null,null,null,null,null,null,null,null,null,null,null,null,null,null,null,null,"2019КП080.1 ","Заболявания на хипофизата и надбъбрека при лица над 18 години ",500,"КП"]
[null,null,null,null,null,null,null,null,null,null,null,null,null,null,null,null,null,"2019КП080.2 ","Заболявания на хипофизата и надбъбрека при лица под 18 години ",650,"КП"]
[null,null,null,null,null,null,null,null,null,null,null,null,null,null,null,null,null,"2019КП081.1 ","Лечение на костни метаболитни заболявания и нарушения на калциево-фосфорната обмяна при лица над 18 години ",450,"КП"]
[null,null,null,null,null,null,null,null,null,null,null,null,null,null,null,null,null,"2019КП081.2 ","Лечение на костни метаболитни заболявания и нарушения на калциево-фосфорната обмяна при лица под 18 години ",450,"КП"]
[null,null,null,null,null,null,null,null,null,null,null,null,null,null,null,null,null,"2019КП082","Диагностика на лица с метаболитни нарушения ",630,"КП"]
[null,null,null,null,null,null,null,null,null,null,null,null,null,null,null,null,null,"2019КП083","Лечение на лица с метаболитни нарушения ",630,"КП"]
[null,null,null,null,null,null,null,null,null,null,null,null,null,null,null,null,null,"2019КП084","Диагностика и лечение на остър и хроничен обострен пиелонефрит ",500,"КП"]
[null,null,null,null,null,null,null,null,null,null,null,null,null,null,null,null,null,"2019КП085","Диагностика и лечение на гломерулонефрити – остри и хронични, пър­вични и вторични при системни заболявания – новооткрити ",950,"КП"]
[null,null,null,null,null,null,null,null,null,null,null,null,null,null,null,null,null,"2019КП086.1 ","Лечение на хистологично доказани гломерулонефрити – остри и хро­нични, първични и вторични при системни заболявания – при лица над 18 години ",950,"КП"]
[null,null,null,null,null,null,null,null,null,null,null,null,null,null,null,null,null,"2019КП086.2 ","Лечение на хистологично доказани гломерулонефрити – остри и хронични, първични и вторични при системни заболявания – при лица под 18 години ",1050,"КП"]
[null,null,null,null,null,null,null,null,null,null,null,null,null,null,null,null,null,"2019КП087.1 ","Диагностика и лечение на остра бъбречна недостатъчност при лица над 18 години ",900,"КП"]
[null,null,null,null,null,null,null,null,null,null,null,null,null,null,null,null,null,"2019КП087.2 ","Диагностика и лечение на остра бъбречна недостатъчност при лица под 18 години ",1050,"КП"]
[null,null,null,null,null,null,null,null,null,null,null,null,null,null,null,null,null,"2019КП088.1 ","Диагностика и лечение на хронична бъбречна недостатъчност при лица над 18 години ",400,"КП"]
[null,null,null,null,null,null,null,null,null,null,null,null,null,null,null,null,null,"2019КП088.2 ","Диагностика и лечение на хронична бъбречна недостатъчност при лица под 18 години ",400,"КП"]
[null,null,null,null,null,null,null,null,null,null,null,null,null,null,null,null,null,"2019КП089.1 ","Диагностика и лечение на системни заболявания на съединителната тъкан при лица над 18 години ",500,"КП"]
[null,null,null,null,null,null,null,null,null,null,null,null,null,null,null,null,null,"2019КП089.2 ","Диагностика и лечение на системни заболявания на съединителната тъкан при лица под 18 години ",580,"КП"]
[null,null,null,null,null,null,null,null,null,null,null,null,null,null,null,null,null,"2019КП090.1 ","Диагностика и лечение на възпалителни ставни заболявания при лица над 18 години ",750,"КП"]
[null,null,null,null,null,null,null,null,null,null,null,null,null,null,null,null,null,"2019КП090.2 ","Диагностика и лечение на възпалителни ставни заболявания при лица под 18 години ",770,"КП"]
[null,null,null,null,null,null,null,null,null,null,null,null,null,null,null,null,null,"2019КП091","Диагностика и лечение на дегенеративни и обменни ставни заболявания ",500,"КП"]
[null,null,null,null,null,null,null,null,null,null,null,null,null,null,null,null,null,"2019КП092","Диагностика и лечение на тежкопротичащи булозни дерматози ",770,"КП"]
[null,null,null,null,null,null,null,null,null,null,null,null,null,null,null,null,null,"2019КП093","Диагностика и лечение на тежкопротичащи бактериални инфекции на кожата ",500,"КП"]
[null,null,null,null,null,null,null,null,null,null,null,null,null,null,null,null,null,"2019КП094","Диагностика и лечение на тежкопротичащи форми на псориазис – обик­новен, артропатичен, пустулозен и еритродермичен ",550,"КП"]
[null,null,null,null,null,null,null,null,null,null,null,null,null,null,null,null,null,"2019КП095","Диагностика и лечение на островъзникнали и тежкопротичащи ерит­родермии с генерализиран екзантем ",400,"КП"]
[null,null,null,null,null,null,null,null,null,null,null,null,null,null,null,null,null,"2019КП096","Лечение на кожни прояви при съединителнотъканни заболявания и васкулити ",434,"КП"]
[null,null,null,null,null,null,null,null,null,null,null,null,null,null,null,null,null,"2019КП097","Лечение на сифилис при бременни жени и при малигнени форми (на вторичен и третичен сифилис) с кристален пеницилин ",250,"КП"]
[null,null,null,null,null,null,null,null,null,null,null,null,null,null,null,null,null,"2019КП098","Диагностика и лечение на остропротичащи чревни инфекциозни болести с диаричен синдром ",620,"КП"]
[null,null,null,null,null,null,null,null,null,null,null,null,null,null,null,null,null,"2019КП099","Диагностика и лечение на инфекциозни и паразитни заболявания, предавани чрез ухапване от членестоноги ",520,"КП"]
[null,null,null,null,null,null,null,null,null,null,null,null,null,null,null,null,null,"2019КП100","Диагностика и лечение на остър вирусен хепатит А и Е ",1100,"КП"]
[null,null,null,null,null,null,null,null,null,null,null,null,null,null,null,null,null,"2019КП101","Диагностика и лечение на остър вирусен хепатит В, С и D ",1277,"КП"]
[null,null,null,null,null,null,null,null,null,null,null,null,null,null,null,null,null,"2019КП102","Диагностика и лечение на паразитози ",457,"КП"]
[null,null,null,null,null,null,null,null,null,null,null,null,null,null,null,null,null,"2019КП103","Диагностика и лечение на покривни инфекции ",457,"КП"]
[null,null,null,null,null,null,null,null,null,null,null,null,null,null,null,null,null,"2019КП104","Диагностика и лечение на контагиозни вирусни и бактериални заболявания – остро протичащи, с усложнения ",500,"КП"]
[null,null,null,null,null,null,null,null,null,null,null,null,null,null,null,null,null,"2019КП105","Диагностика и лечение на вирусни хеморагични трески ",1000,"КП"]
[null,null,null,null,null,null,null,null,null,null,null,null,null,null,null,null,null,"2019КП106.1 ","Диагностика и лечение на токсоалергични реакции при лица над 18 години ",500,"КП"]
[null,null,null,null,null,null,null,null,null,null,null,null,null,null,null,null,null,"2019КП106.2 ","Диагностика и лечение на токсоалергични реакции при лица под 18 години ",550,"КП"]
[null,null,null,null,null,null,null,null,null,null,null,null,null,null,null,null,null,"2019КП107","Диагностика и лечение на отравяния и токсични ефекти от лекарства и битови отрови ",750,"КП"]
[null,null,null,null,null,null,null,null,null,null,null,null,null,null,null,null,null,"2019КП108","Диагностика и лечение на гъбно фалидно отравяне ",2200,"КП"]
[null,null,null,null,null,null,null,null,null,null,null,null,null,null,null,null,null,"2019КП109","Диагностика и лечение на токсична епидермална некролиза (болест на Лайел) ",1650,"КП"]
[null,null,null,null,null,null,null,null,null,null,null,null,null,null,null,null,null,"2019КП110","Лечение на доказани първични имунодефицити ",2163,"КП"]
[null,null,null,null,null,null,null,null,null,null,null,null,null,null,null,null,null,"2019КП111","Диагностика и лечение на остри внезапно възникнали състояния в детската възраст ",250,"КП"]
[null,null,null,null,null,null,null,null,null,null,null,null,null,null,null,null,null,"2019КП112","Диагностика и лечение на муковисцидоза ",1200,"КП"]
[null,null,null,null,null,null,null,null,null,null,null,null,null,null,null,null,null,"2019КП113.1 ","Диагностика и консервативно лечение на световъртеж, разстройства в равновесието от периферен и централен тип с мин. Болничен престой 48 часа",200,"КП"]
[null,null,null,null,null,null,null,null,null,null,null,null,null,null,null,null,null,"2019КП113.2 ","Диагностика и консервативно лечение на световъртеж, разстройства в равновесието от периферен и централен тип с минимален болничен престой 4 дни ",400,"КП"]
[null,null,null,null,null,null,null,null,null,null,null,null,null,null,null,null,null,"2019КП114","Интензивно лечение на коматозни състояния, неиндицирани от травма ",2200,"КП"]
[null,null,null,null,null,null,null,null,null,null,null,null,null,null,null,null,null,"2019КП115","Интензивно лечение при комбинирани и/или съчетани травми ",2500,"КП"]
[null,null,null,null,null,null,null,null,null,null,null,null,null,null,null,null,null,"2019КП116","Оперативно лечение при сърдечни заболявания в условията на екстра­корпорално кръвообращение. Минимално инвазивни сърдечни операции при лица над 18 години ",10100,"КП"]
[null,null,null,null,null,null,null,null,null,null,null,null,null,null,null,null,null,"2019КП117","Оперативно лечение при сърдечни заболявания в условията на екстра­корпорално кръвообращение при деца от 0 до 18 години. Минимално инвазивни сърдечни операции при лица от 0 до 18 години ",10100,"КП"]
[null,null,null,null,null,null,null,null,null,null,null,null,null,null,null,null,null,"2019КП118","Оперативно лечение на деца до 1 година с критични вродени сърдечни малформации в условията на екстракорпорално кръвообращение ",18000,"КП"]
[null,null,null,null,null,null,null,null,null,null,null,null,null,null,null,null,null,"2019КП119","Оперативни процедури при комплексни сърдечни малформации с много голям обем и сложност в условия на екстракорпорално кръвообращение ",13500,"КП"]
[null,null,null,null,null,null,null,null,null,null,null,null,null,null,null,null,null,"2019КП120.1","Лечение на полиорганна недостатъчност, развила се след сърдечна операция ",13500,"КП"]
[null,null,null,null,null,null,null,null,null,null,null,null,null,null,null,null,null,"2019КП120.2","Лечение на полиорганна недостатъчност, развила се след сърдечна операция с продълж. механична вентилация",20000,"КП"]
[null,null,null,null,null,null,null,null,null,null,null,null,null,null,null,null,null,"2019КП121","Оперативно лечение на заболявания на сърцето, без екстракорпорално кръвообращение, при лица над 18 години ",3450,"КП"]
[null,null,null,null,null,null,null,null,null,null,null,null,null,null,null,null,null,"2019КП122","Оперативно лечение при заболявания на сърцето, без екстракорпорално кръвообращение, при лица под 18 години ",4500,"КП"]
[null,null,null,null,null,null,null,null,null,null,null,null,null,null,null,null,null,"2019КП123","Oперативно лечение на абдоминална аорта, долна празна вена и клоновете им ",3500,"КП"]
[null,null,null,null,null,null,null,null,null,null,null,null,null,null,null,null,null,"2019КП124","Оперативно лечение на хронична съдова недостатъчност във феморо- поплитеалния и аксило-брахиалния сегмент ",1919,"КП"]
[null,null,null,null,null,null,null,null,null,null,null,null,null,null,null,null,null,"2019КП125","Оперативно лечение на клонове на аортната дъга ",1709,"КП"]
[null,null,null,null,null,null,null,null,null,null,null,null,null,null,null,null,null,"2019КП126","Спешни оперативни интервенции без съдова реконструкция при болни със съдови заболявания (тромбектомии, емболектомии, ампутации и симпатектомии) ",1100,"КП"]
[null,null,null,null,null,null,null,null,null,null,null,null,null,null,null,null,null,"2019КП127","Kонсервативно лечение на съдова недостатъчност ",520,"КП"]
[null,null,null,null,null,null,null,null,null,null,null,null,null,null,null,null,null,"2019КП128","Консервативно лечение с простагландинови/простациклинови деривати при съдова недостатъчност ",330,"КП"]
[null,null,null,null,null,null,null,null,null,null,null,null,null,null,null,null,null,"2019КП129","Оперативно лечение при варикозна болест и усложненията й ",400,"КП"]
[null,null,null,null,null,null,null,null,null,null,null,null,null,null,null,null,null,"2019КП130","Oперативни процедури върху придатъците на окото с голям обем и сложност ",300,"КП"]
[null,null,null,null,null,null,null,null,null,null,null,null,null,null,null,null,null,"2019КП131","Други операции на очната ябълка с голям обем и сложност ",410,"КП"]
[null,null,null,null,null,null,null,null,null,null,null,null,null,null,null,null,null,"2019КП132","Кератопластика ",1000,"КП"]
[null,null,null,null,null,null,null,null,null,null,null,null,null,null,null,null,null,"2019КП133","Консервативно лечение на глаукома, съдови заболявания на окото и неперфоративни травми ",273,"КП"]
[null,null,null,null,null,null,null,null,null,null,null,null,null,null,null,null,null,"2019КП134","Консервативно лечение при инфекции и възпалителни заболявания на окото и придатъците му ",249,"КП"]
[null,null,null,null,null,null,null,null,null,null,null,null,null,null,null,null,null,"2019КП135","Оперативно лечение при заболявания на ретина, стъкловидно тяло и травми, засягащи задния очен сегмент ",700,"КП"]
[null,null,null,null,null,null,null,null,null,null,null,null,null,null,null,null,null,"2019КП136","Оперативно лечение на заболявания в областта на ушите, носа и гърлото с много голям обем и сложност ",2950,"КП"]
[null,null,null,null,null,null,null,null,null,null,null,null,null,null,null,null,null,"2019КП137","Оперативно лечение на заболявания в областта на ушите, носа и гърлото с голям обем и сложност ",1500,"КП"]
[null,null,null,null,null,null,null,null,null,null,null,null,null,null,null,null,null,"2019КП138","Оперативно лечение на заболявания в областта на ушите, носа и гърлото със среден обем и сложност ",650,"КП"]
[null,null,null,null,null,null,null,null,null,null,null,null,null,null,null,null,null,"2019КП139","Високотехнологична диагностика при ушно-носно-гърлени болести ",450,"КП"]
[null,null,null,null,null,null,null,null,null,null,null,null,null,null,null,null,null,"2019КП140","Консервативно парентерално лечение при ушно-носно-гърлени болести ",150,"КП"]
[null,null,null,null,null,null,null,null,null,null,null,null,null,null,null,null,null,"2019КП141","Трансуретрално оперативно лечение при онкологични заболявания на пикочния мехур ",1000,"КП"]
[null,null,null,null,null,null,null,null,null,null,null,null,null,null,null,null,null,"2019КП142","Радикална цистопростатектомия с ортотопичен пикочен мехур ",4000,"КП"]
[null,null,null,null,null,null,null,null,null,null,null,null,null,null,null,null,null,"2019КП143","Трансуретрална простатектомия ",1100,"КП"]
[null,null,null,null,null,null,null,null,null,null,null,null,null,null,null,null,null,"2019КП144","Отворени оперативни процедури при доброкачествена хиперплазия на простатната жлеза и нейните усложнения ",1100,"КП"]
[null,null,null,null,null,null,null,null,null,null,null,null,null,null,null,null,null,"2019КП145","Ендоскопски процедури при обструкции на горните пикочни пътища ",774,"КП"]
[null,null,null,null,null,null,null,null,null,null,null,null,null,null,null,null,null,"2019КП146","Оперативни процедури при вродени заболявания на пикочо-половата система ",2500,"КП"]
[null,null,null,null,null,null,null,null,null,null,null,null,null,null,null,null,null,"2019КП147","Оперативни процедури върху мъжка полова система ",600,"КП"]
[null,null,null,null,null,null,null,null,null,null,null,null,null,null,null,null,null,"2019КП148","Оперативни процедури на долните пикочни пътища с голям обем и сложност ",2600,"КП"]
[null,null,null,null,null,null,null,null,null,null,null,null,null,null,null,null,null,"2019КП149","Оперативни процедури на долните пикочни пътища със среден обем и сложност ",1160,"КП"]
[null,null,null,null,null,null,null,null,null,null,null,null,null,null,null,null,null,"2019КП150","Оперативни процедури при инконтиненция на урината ",612,"КП"]
[null,null,null,null,null,null,null,null,null,null,null,null,null,null,null,null,null,"2019КП151","Реконструктивни операции в урологията ",1000,"КП"]
[null,null,null,null,null,null,null,null,null,null,null,null,null,null,null,null,null,"2019КП152","Ендоскопски процедури при обструкции на долните пикочни пътища ",520,"КП"]
[null,null,null,null,null,null,null,null,null,null,null,null,null,null,null,null,null,"2019КП153","Оперативни процедури при травми на долните пикочни пътища ",1000,"КП"]
[null,null,null,null,null,null,null,null,null,null,null,null,null,null,null,null,null,"2019КП154","Оперативни процедури на бъбрека и уретера с голям и много голям обем и сложност ",2300,"КП"]
[null,null,null,null,null,null,null,null,null,null,null,null,null,null,null,null,null,"2019КП155","Оперативни процедури на бъбрека и уретера със среден обем и сложност ",950,"КП"]
[null,null,null,null,null,null,null,null,null,null,null,null,null,null,null,null,null,"2019КП156","Радикална цистектомия. Радикална цистопростатектомия ",3200,"КП"]
[null,null,null,null,null,null,null,null,null,null,null,null,null,null,null,null,null,"2019КП157","Радикална простатектомия ",2800,"КП"]
[null,null,null,null,null,null,null,null,null,null,null,null,null,null,null,null,null,"2019КП158","Оперативни интервенции при инфекции на меките и костни тъкани ",550,"КП"]
[null,null,null,null,null,null,null,null,null,null,null,null,null,null,null,null,null,"2019КП159","Артроскопски процедури в областта на скелетно-мускулната система ",700,"КП"]
[null,null,null,null,null,null,null,null,null,null,null,null,null,null,null,null,null,"2019КП160","Нерадикално отстраняване на матката ",1100,"КП"]
[null,null,null,null,null,null,null,null,null,null,null,null,null,null,null,null,null,"2019КП161","Радикално отстраняване на женски полови органи ",1100,"КП"]
[null,null,null,null,null,null,null,null,null,null,null,null,null,null,null,null,null,"2019КП162","Оперативни интервенции чрез коремен достъп за отстраняване на болестни изменения на женските полови органи ",770,"КП"]
[null,null,null,null,null,null,null,null,null,null,null,null,null,null,null,null,null,"2019КП163","Оперативни интервенции чрез долен достъп за отстраняване на болестни изменения или инвазивно изследване на женските полови органи ",330,"КП"]
[null,null,null,null,null,null,null,null,null,null,null,null,null,null,null,null,null,"2019КП164","Корекции на тазова (перинеална) статика и/или на незадържане на урината при жената ",806,"КП"]
[null,null,null,null,null,null,null,null,null,null,null,null,null,null,null,null,null,"2019КП165","Диагностични процедури и консервативно лечение на токсо-инфекциозен и анемичен синдром от акушеро-гинекологичен произход ",460,"КП"]
[null,null,null,null,null,null,null,null,null,null,null,null,null,null,null,null,null,"2019КП166","Корекции на проходимост и възстановяване на анатомия при жената ",650,"КП"]
[null,null,null,null,null,null,null,null,null,null,null,null,null,null,null,null,null,"2019КП167","Системна радикална ексцизия на лимфни възли (тазови и/или парааортални и/или ингвинални) като самостоятелна интервенция или съчетана с радикално отстраняване на женски полови органи. Тазова екзентерация",2200,"КП"]
[null,null,null,null,null,null,null,null,null,null,null,null,null,null,null,null,null,"2019КП168","Високотехнологична асистирана с робот гинекологична хирургия",8000,"КП"]
[null,null,null,null,null,null,null,null,null,null,null,null,null,null,null,null,null,"2019КП169","Интензивно лечение на интра- и постпартални усложнения, довели до шок",1500,"КП"]
[null,null,null,null,null,null,null,null,null,null,null,null,null,null,null,null,null,"2019КП170","Интензивно лечение на интра- и поспартални усложнения, довели до шок, с приложение на рекомбинантни фактори на кръвосъсирването",6800,"КП"]
[null,null,null,null,null,null,null,null,null,null,null,null,null,null,null,null,null,"2019КП171","Оперативни процедури на хранопровод, стомах и дуоденум с голям и много голям обем и сложност, при лица над 18 години",2800,"КП"]
[null,null,null,null,null,null,null,null,null,null,null,null,null,null,null,null,null,"2019КП172","Оперативни процедури на хранопровод, стомах и дуоденум с голям и много голям обем и сложност, при лица под 18 години",3100,"КП"]
[null,null,null,null,null,null,null,null,null,null,null,null,null,null,null,null,null,"2019КП173","Оперативни процедури на хранопровод, стомах и дуоденум със среден обем и сложност, при лица над 18 години",1780,"КП"]
[null,null,null,null,null,null,null,null,null,null,null,null,null,null,null,null,null,"2019КП174","Оперативни процедури на хранопровод, стомах и дуоденум със среден обем и сложност, при лица под 18 години",1780,"КП"]
[null,null,null,null,null,null,null,null,null,null,null,null,null,null,null,null,null,"2019КП175","Оперативни процедури на тънки и дебели черва, вкл. при заболявания на мезентериума и ретроперитонеума с голям и много голям обем и сложност, при лица над 18 години",2600,"КП"]
[null,null,null,null,null,null,null,null,null,null,null,null,null,null,null,null,null,"2019КП176","Оперативни процедури на тънки и дебели черва, вкл. при заболявания на мезентериума и ретроперитонеума с голям и много голям обем и сложност, при лица под 18 години",2650,"КП"]
[null,null,null,null,null,null,null,null,null,null,null,null,null,null,null,null,null,"2019КП177","Оперативни процедури на тънки и дебели черва със среден обем и сложност, при лица над 18 години",1100,"КП"]
[null,null,null,null,null,null,null,null,null,null,null,null,null,null,null,null,null,"2019КП178","Оперативни процедури на тънки и дебели черва със среден обем и сложност, при лица под 18 години",1150,"КП"]
[null,null,null,null,null,null,null,null,null,null,null,null,null,null,null,null,null,"2019КП179","Оперативни процедури върху апендикс",650,"КП"]
[null,null,null,null,null,null,null,null,null,null,null,null,null,null,null,null,null,"2019КП180","Хирургични интервенции за затваряне на стома",650,"КП"]
[null,null,null,null,null,null,null,null,null,null,null,null,null,null,null,null,null,"2019КП181","Хирургични интервенции на ануса и перианалното пространство",500,"КП"]
[null,null,null,null,null,null,null,null,null,null,null,null,null,null,null,null,null,"2019КП182","Оперативни процедури при хернии",650,"КП"]
[null,null,null,null,null,null,null,null,null,null,null,null,null,null,null,null,null,"2019КП183","Оперативни процедури при хернии с инкарцерация",700,"КП"]
[null,null,null,null,null,null,null,null,null,null,null,null,null,null,null,null,null,"2019КП184","Конвенционална холецистектомия",1150,"КП"]
[null,null,null,null,null,null,null,null,null,null,null,null,null,null,null,null,null,"2019КП185","Лапароскопска холецистектомия",950,"КП"]
[null,null,null,null,null,null,null,null,null,null,null,null,null,null,null,null,null,"2019КП186","Оперативни процедури върху екстрахепаталните жлъчни пътища",2300,"КП"]
[null,null,null,null,null,null,null,null,null,null,null,null,null,null,null,null,null,"2019КП187","Оперативни процедури върху черен дроб",3350,"КП"]
[null,null,null,null,null,null,null,null,null,null,null,null,null,null,null,null,null,"2019КП188","Оперативни процедури върху черен дроб при ехинококова болест",1450,"КП"]
[null,null,null,null,null,null,null,null,null,null,null,null,null,null,null,null,null,"2019КП189","Оперативни процедури върху панкреас и дистален холедох, с голям и много голям обем и сложност",4950,"КП"]
[null,null,null,null,null,null,null,null,null,null,null,null,null,null,null,null,null,"2019КП190","Оперативни процедури върху панкреас и дистален холедох, със среден обем и сложност",1820,"КП"]
[null,null,null,null,null,null,null,null,null,null,null,null,null,null,null,null,null,"2019КП191.1","Оперативни процедури върху далака при лица над 18 години",1000,"КП"]
[null,null,null,null,null,null,null,null,null,null,null,null,null,null,null,null,null,"2019КП191.2","Оперативни процедури върху далака при лица под 18 години",1500,"КП"]
[null,null,null,null,null,null,null,null,null,null,null,null,null,null,null,null,null,"2019КП192","Оперативни интервенции при диабетно стъпало, без съдово-реконструктивни операции",1200,"КП"]
[null,null,null,null,null,null,null,null,null,null,null,null,null,null,null,null,null,"2019КП193","Оперативно лечение на онкологично заболяване на гърдата: стадии Tis 1-4 N 0-2 M0-1",1300,"КП"]
[null,null,null,null,null,null,null,null,null,null,null,null,null,null,null,null,null,"2019КП194","Оперативни интервенции върху гърда с локална ексцизия и биопсия",300,"КП"]
[null,null,null,null,null,null,null,null,null,null,null,null,null,null,null,null,null,"2019КП195","Оперативно лечение при остър перитонит",2200,"КП"]
[null,null,null,null,null,null,null,null,null,null,null,null,null,null,null,null,null,"2019КП196","Оперативно лечение на интраабдоминални абсцеси",1500,"КП"]
[null,null,null,null,null,null,null,null,null,null,null,null,null,null,null,null,null,"2019КП197","Консервативно лечение при остри коремни заболявания",750,"КП"]
[null,null,null,null,null,null,null,null,null,null,null,null,null,null,null,null,null,"2019КП198","Хирургично лечение при животозастрашаващи инфекции на меките и костни тъкани",2200,"КП"]
[null,null,null,null,null,null,null,null,null,null,null,null,null,null,null,null,null,"2019КП199.1","Лечение на тумори на кожа и лигавици – злокачествени новообразувания",550,"КП"]
[null,null,null,null,null,null,null,null,null,null,null,null,null,null,null,null,null,"2019КП199.2","Лечение на тумори на кожа и лигавици – доброкачествени новообразувания",305,"КП"]
[null,null,null,null,null,null,null,null,null,null,null,null,null,null,null,null,null,"2019КП200","Реконструктивни операции на гърдата по медицински показания след доброкачествени и злокачествени тумори, вродени заболявания и последици от травми и изгаряния",800,"КП"]
[null,null,null,null,null,null,null,null,null,null,null,null,null,null,null,null,null,"2019КП201","Оперативни процедури върху щитовидна и паращитовидни жлези, с голям и много голям обем и сложност",1000,"КП"]
[null,null,null,null,null,null,null,null,null,null,null,null,null,null,null,null,null,"2019КП202","Оперативни процедури върху щитовидна и паращитовидни жлези, със среден обем и сложност",800,"КП"]
[null,null,null,null,null,null,null,null,null,null,null,null,null,null,null,null,null,"2019КП203","Хирургично лечение при надбъбречни заболявания",1500,"КП"]
[null,null,null,null,null,null,null,null,null,null,null,null,null,null,null,null,null,"2019КП204","Тежка черепно-мозъчна травма – оперативно лечение",3400,"КП"]
[null,null,null,null,null,null,null,null,null,null,null,null,null,null,null,null,null,"2019КП205","Тежка черепно-мозъчна травма – консервативно поведение",1330,"КП"]
[null,null,null,null,null,null,null,null,null,null,null,null,null,null,null,null,null,"2019КП206.1","Краниотомии, неиндицирани от травма, чрез съвременни технологиии (невронавигация, невроендоскопия и интраоперативен ултразвук)",3800,"КП"]
[null,null,null,null,null,null,null,null,null,null,null,null,null,null,null,null,null,"2019КП206.2","Краниотомии, неиндицирани от травма, чрез съвременни технологиии (невронавигация)",4900,"КП"]
[null,null,null,null,null,null,null,null,null,null,null,null,null,null,null,null,null,"2019КП207","Краниотомии, неиндицирани от травма, по класически начин",2300,"КП"]
[null,null,null,null,null,null,null,null,null,null,null,null,null,null,null,null,null,"2019КП208","Консервативно поведение при леки и средно тежки черепно-мозъчни травми",400,"КП"]
[null,null,null,null,null,null,null,null,null,null,null,null,null,null,null,null,null,"2019КП209","Хирургично лечение при травма на главата",1052,"КП"]
[null,null,null,null,null,null,null,null,null,null,null,null,null,null,null,null,null,"2019КП210","Периферни и черепномозъчни нерви (екстракраниална част) – оперативно лечение",800,"КП"]
[null,null,null,null,null,null,null,null,null,null,null,null,null,null,null,null,null,"2019КП211","Гръбначни и гръбначно-мозъчни оперативни интервенции с голям и много голям обем и сложност",2450,"КП"]
[null,null,null,null,null,null,null,null,null,null,null,null,null,null,null,null,null,"2019КП212","Гръбначни и гръбначно-мозъчни оперативни интервенции с малък и среден обем и сложност",1819,"КП"]
[null,null,null,null,null,null,null,null,null,null,null,null,null,null,null,null,null,"2019КП213","Оперативно лечение на тумори на бял дроб, медиастинум, плевра и гръдна стена",2700,"КП"]
[null,null,null,null,null,null,null,null,null,null,null,null,null,null,null,null,null,"2019КП214","Разширени (големи) операции с пълно или частично отстраняване на повече от един интраторакален орган, включително медиастинален тумор или гръдна стена. Едноетапни операции при белодробни болести засягащи двата бели дроба при болести със съчетана белодробна и друга локализация",3300,"КП"]
[null,null,null,null,null,null,null,null,null,null,null,null,null,null,null,null,null,"2019КП215","Оперативно лечение на болести на бял дроб, медиастинум, плевра и гръдна стена, без онкологични заболявания",1650,"КП"]
[null,null,null,null,null,null,null,null,null,null,null,null,null,null,null,null,null,"2019КП216","Спешни състояния в гръдната хирургия",550,"КП"]
[null,null,null,null,null,null,null,null,null,null,null,null,null,null,null,null,null,"2019КП217.1","Оперативни процедури с голям обем и сложност на таза и долния крайник",2050,"КП"]
[null,null,null,null,null,null,null,null,null,null,null,null,null,null,null,null,null,"2019КП217.2","Оперативни процедури с много голям обем и сложност на таза, тазобедрената и колянната става",4700,"КП"]
[null,null,null,null,null,null,null,null,null,null,null,null,null,null,null,null,null,"2019КП217.3","Оперативни процедури при множествени счупвания и/или луксации на таза, горни и долни крайници",5350,"КП"]
[null,null,null,null,null,null,null,null,null,null,null,null,null,null,null,null,null,"2019КП218","Оперативни процедури с алопластика на тазобедрена и колянна става",1257,"КП"]
[null,null,null,null,null,null,null,null,null,null,null,null,null,null,null,null,null,"2019КП219","Оперативни процедури на таза и долния крайник със среден обем и сложност",910,"КП"]
[null,null,null,null,null,null,null,null,null,null,null,null,null,null,null,null,null,"2019КП220","Оперативни процедури в областта на раменния пояс и горния крайник с голям обем и сложност",1000,"КП"]
[null,null,null,null,null,null,null,null,null,null,null,null,null,null,null,null,null,"2019КП221","Оперативни процедури в областта на раменния пояс и горния крайник с много голям обем и сложност",1326,"КП"]
[null,null,null,null,null,null,null,null,null,null,null,null,null,null,null,null,null,"2019КП222","Средни оперативни процедури в областта на раменния пояс и горния крайник",460,"КП"]
[null,null,null,null,null,null,null,null,null,null,null,null,null,null,null,null,null,"2019КП223","Оперативни процедури при заболявания на гръдния кош",720,"КП"]
[null,null,null,null,null,null,null,null,null,null,null,null,null,null,null,null,null,"2019КП224","Септични (бактериални) артрити и остеомиелити при лица под 18 години",1200,"КП"]
[null,null,null,null,null,null,null,null,null,null,null,null,null,null,null,null,null,"2019КП225","Хирургично лечение в лицево-челюстната област с много голям обем и сложност",1000,"КП"]
[null,null,null,null,null,null,null,null,null,null,null,null,null,null,null,null,null,"2019КП226","Оперативно лечение в лицево-челюстната област с голям обем и сложност",705,"КП"]
[null,null,null,null,null,null,null,null,null,null,null,null,null,null,null,null,null,"2019КП227","Оперативни процедури в лицево-челюстната област със среден обем и сложност",863,"КП"]
[null,null,null,null,null,null,null,null,null,null,null,null,null,null,null,null,null,"2019КП228","Оперативно лечение на възпалителни процеси в областта на лицето и шията",500,"КП"]
[null,null,null,null,null,null,null,null,null,null,null,null,null,null,null,null,null,"2019КП229","Консервативно лечение при заболявания на лицево-челюстната област",300,"КП"]
[null,null,null,null,null,null,null,null,null,null,null,null,null,null,null,null,null,"2019КП230","Оперативно лечение на вродени малформации в лицево-челюстната област",900,"КП"]
[null,null,null,null,null,null,null,null,null,null,null,null,null,null,null,null,null,"2019КП231","Лечение на фрактури на лицевите и челюстните кости",803,"КП"]
[null,null,null,null,null,null,null,null,null,null,null,null,null,null,null,null,null,"2019КП232","Хирургично лечение на изгаряния с площ от 5 % до 10 % при възрастни и до 3 % при деца",500,"КП"]
[null,null,null,null,null,null,null,null,null,null,null,null,null,null,null,null,null,"2019КП233","Хирургично лечение при необширни изгаряния с площ от 1 до 19 % от телесната повърхност, с хирургични интервенции",3030,"КП"]
[null,null,null,null,null,null,null,null,null,null,null,null,null,null,null,null,null,"2019КП234","Хирургично лечение при обширни изгаряния над 20 % от телесната повърхност, с хирургични интервенции",9000,"КП"]
[null,null,null,null,null,null,null,null,null,null,null,null,null,null,null,null,null,"2019КП235","Оперативно лечение на поражения, предизвикани от ниски температури (измръзване)",500,"КП"]
[null,null,null,null,null,null,null,null,null,null,null,null,null,null,null,null,null,"2019КП236","Оперативно лечение на последствията от изгаряне и травма на кожата и подкожната тъкан",1700,"КП"]
[null,null,null,null,null,null,null,null,null,null,null,null,null,null,null,null,null,"2019КП237","Оперативно лечение на кожни дефекти от различно естество, налагащи пластично възстановяване",950,"КП"]
[null,null,null,null,null,null,null,null,null,null,null,null,null,null,null,null,null,"2019КП238","Реплантация и реконструкции с микросъдова хирургия",7000,"КП"]
[null,null,null,null,null,null,null,null,null,null,null,null,null,null,null,null,null,"2019КП239","Оперативно лечение на деца до 1 година с вродени аномалии в областта на торакалната и абдоминалната област",10000,"КП"]
[null,null,null,null,null,null,null,null,null,null,null,null,null,null,null,null,null,"2019КП240","Продължително системно парентерално лекарствено лечение на злокачествени солидни тумори и свързаните с него усложнения",470,"КП"]
[null,null,null,null,null,null,null,null,null,null,null,null,null,null,null,null,null,"2019КП241.1","Диагностични процедури за стадиране и оценка на терапевтичния отговор при пациенти със злокачествени солидни тумори и хематологични заболявания с КТ на минимум две зони или костномозъчни изследвания с МКБ-код 41.31(30081-00,30087-00)",400,"КП"]
[null,null,null,null,null,null,null,null,null,null,null,null,null,null,null,null,null,"2019КП241.2","Диагностични процедури за стадиране и оценка на терапевтичния отговор при пациенти със злокачествени солидни тумори  и хематологични заболявания с МРТ",600,"КП"]
[null,null,null,null,null,null,null,null,null,null,null,null,null,null,null,null,null,"2019КП242","Диагностика и лечение на левкемии",850,"КП"]
[null,null,null,null,null,null,null,null,null,null,null,null,null,null,null,null,null,"2019КП243","Диагностика и лечение на лимфоми",665,"КП"]
[null,null,null,null,null,null,null,null,null,null,null,null,null,null,null,null,null,"2019КП244","Диагностика и лечение на хеморагични диатези. Анемии",570,"КП"]
[null,null,null,null,null,null,null,null,null,null,null,null,null,null,null,null,null,"2019КП245","Диагностика и консервативно лечение на онкологични и онкохематологични заболявания, възникнали в детска възраст",1000,"КП"]
[null,null,null,null,null,null,null,null,null,null,null,null,null,null,null,null,null,"2019КП246","Ортоволтно перкутанно лъчелечение и брахитерапия с високи активности",665,"КП"]
[null,null,null,null,null,null,null,null,null,null,null,null,null,null,null,null,null,"2019КП247","Брахитерапия с ниски активности",327,"КП"]
[null,null,null,null,null,null,null,null,null,null,null,null,null,null,null,null,null,"2019КП248","Конвенционална телегаматерапия",640,"КП"]
[null,null,null,null,null,null,null,null,null,null,null,null,null,null,null,null,null,"2019КП249","Триизмерна конвенционална телегаматерапия и брахитерапия със закрити източници",1100,"КП"]
[null,null,null,null,null,null,null,null,null,null,null,null,null,null,null,null,null,"2019КП250.1","Високотехнологично лъчелечение на онкологични и неонкологични заболявания  с приложени до 20 фракции и продължителност на лечението е от 3 до 30  дни ",1850,"КП"]
[null,null,null,null,null,null,null,null,null,null,null,null,null,null,null,null,null,"2019КП250.2","Високотехнологично лъчелечение на онкологични и неонкологични заболявания  с приложени 20 и повече фракции и продължителността на лечението 30 и повече дни ",3700,"КП"]
[null,null,null,null,null,null,null,null,null,null,null,null,null,null,null,null,null,"2019КП251.1","Модулирано по интензитет лъчелечение на онкологични и неонкологични заболявания с приложени до 20 фракции и продължителност на лечението е от 3 до 30  дни  ",2700,"КП"]
[null,null,null,null,null,null,null,null,null,null,null,null,null,null,null,null,null,"2019КП251.2","Модулирано по интензитет лъчелечение на онкологични и неонкологични заболявания   с приложени 20 и повече фракции и продължителността на лечението 30 и повече дни",5400,"КП"]
[null,null,null,null,null,null,null,null,null,null,null,null,null,null,null,null,null,"2019КП252.1","Радиохирургия на онкологични и неонкологични заболявания",4500,"КП"]
[null,null,null,null,null,null,null,null,null,null,null,null,null,null,null,null,null,"2019КП252.2","Роботизирана радиохирургия на онкологични и неонкологични заболявания ",9000,"КП"]
[null,null,null,null,null,null,null,null,null,null,null,null,null,null,null,null,null,"2019КП253","Палиативни грижи за болни с онкологични заболявания",90,"КП"]
[null,null,null,null,null,null,null,null,null,null,null,null,null,null,null,null,null,"2019КП254","Продължително лечение и ранна рехабилитация след острия стадий на исхемичен и хеморагичен мозъчен инсулт с остатъчни проблеми за здравето",50,"КП"]
[null,null,null,null,null,null,null,null,null,null,null,null,null,null,null,null,null,"2019КП255","Продължително лечение и ранна рехабилитация след инфаркт на миокарда и след сърдечни интервенции",50,"КП"]
[null,null,null,null,null,null,null,null,null,null,null,null,null,null,null,null,null,"2019КП256","Продължително лечение и ранна рехабилитация след оперативни интервенции с голям и много голям обем и сложност с остатъчни проблеми за здравето",80,"КП"]
[null,null,null,null,null,null,null,null,null,null,null,null,null,null,null,null,null,"2019КП257","Физикална терапия, рехабилитация и специализирани грижи при персистиращо/хронично/вегетативно състояние",100,"КП"]
[null,null,null,null,null,null,null,null,null,null,null,null,null,null,null,null,null,"2019КП258","Физикална терапия и рехабилитация при родова травма на централна нервна система",40,"КП"]
[null,null,null,null,null,null,null,null,null,null,null,null,null,null,null,null,null,"2019КП259","Физикална терапия и рехабилитация при родова травма на периферна нервна система",40,"КП"]
[null,null,null,null,null,null,null,null,null,null,null,null,null,null,null,null,null,"2019КП260","Физикална терапия и рехабилитация при детска церебрална парализа",60,"КП"]
[null,null,null,null,null,null,null,null,null,null,null,null,null,null,null,null,null,"2019КП261","Физикална терапия и рехабилитация при първични мускулни увреждания и спинална мускулна атрофия",400,"КП"]
[null,null,null,null,null,null,null,null,null,null,null,null,null,null,null,null,null,"2019КП262","Физикална терапия и рехабилитация на болести на централна нервна система",482,"КП"]
[null,null,null,null,null,null,null,null,null,null,null,null,null,null,null,null,null,"2019КП263","Физикална терапия и рехабилитация при болести на периферна нервна система",330,"КП"]
[null,null,null,null,null,null,null,null,null,null,null,null,null,null,null,null,null,"2019КП264","Физикална терапия и рехабилитация след преживян/стар инфаркт на миокарда и след оперативни интервенции",482,"КП"]
[null,null,null,null,null,null,null,null,null,null,null,null,null,null,null,null,null,"2019КП265","Физикална терапия и рехабилитация при болести на опорно-двигателен апарат",330,"КП"]
[null,null,null,null,null,null,null,null,null,null,null,null,null,null,null,null,null,"2019КП266","Речева рехабилитация след ларингектомия",285,"КП"]
[null,null,null,null,null,null,null,null,null,null,null,null,null,null,null,null,null,"2019КП999","Наблюдение до 48 часа в стационарни условия след проведена амбулаторна процедура",120,"КП"]
[null,null,null,null,null,null,null,null,null,null,null,null,null,null,null,null,null,"2019КПр01","Диализно лечение при остри състояния",144,"КПр"]
[null,null,null,null,null,null,null,null,null,null,null,null,null,null,null,null,null,"2019КПр02","Интензивно лечение на новородени деца с асистирано дишане",100,"КПр"]
[null,null,null,null,null,null,null,null,null,null,null,null,null,null,null,null,null,"2019КПр03","Интензивно лечение, мониторинг и интензивни грижи с механична вентилация и/или парентерално хранене",426,"КПр"]
[null,null,null,null,null,null,null,null,null,null,null,null,null,null,null,null,null,"2019КПр04","Интензивно лечение, мониторинг и интензивни грижи без механична вентилация и/или парентерално хранене",155,"КПр"]
[null,null,null,null,null,null,null,null,null,null,null,null,null,null,null,null,null,"2019КПр05","Лечение за новородени деца с вродени сърдечни малформации, претърпели сърдечна оперативна интервенция до навършване на 1-годишна възраст ",500,"КПр"]
[null,null,null,null,null,null,null,null,null,null,null,null,null,null,null,null,null,"2019АПр01","Хрониохемодиализа",144,"АПр"]
[null,null,null,null,null,null,null,null,null,null,null,null,null,null,null,null,null,"2019АПр02","Перитонеална диализа с апарат",130,"АПр"]
[null,null,null,null,null,null,null,null,null,null,null,null,null,null,null,null,null,"2019АПр03","Перитонеална диализа без апарат",93,"АПр"]
[null,null,null,null,null,null,null,null,null,null,null,null,null,null,null,null,null,"2019АПр04","Осигуряване на постоянен достъп за провеждане на диализно лечение и химиотерапия",182,"АПр"]
[null,null,null,null,null,null,null,null,null,null,null,null,null,null,null,null,null,"2019АПр05","Определяне на план за лечение на болни със злокачествени заболявания",50,"АПр"]
[null,null,null,null,null,null,null,null,null,null,null,null,null,null,null,null,null,"2019АПр06","Системно лекарствено лечение при злокачествени солидни тумори и хематологични заболявания",150,"АПр"]
[null,null,null,null,null,null,null,null,null,null,null,null,null,null,null,null,null,"2019АПр07","Амбулаторно наблюдение/диспансеризация при злокачествени заболявания и при вродени хематологични заболявания",130,"АПр"]
[null,null,null,null,null,null,null,null,null,null,null,null,null,null,null,null,null,"2019АПр08","Проследяване на терапевтичния отговор при пациенти на домашно лечение с прицелна перорална противотуморна терапия и перорална химиотерапия",250,"АПр"]
[null,null,null,null,null,null,null,null,null,null,null,null,null,null,null,null,null,"2019АПр09","Амбулаторно наблюдение/диспансеризация при муковисцидоза",45,"АПр"]
[null,null,null,null,null,null,null,null,null,null,null,null,null,null,null,null,null,"2019АПр10","Наблюдение при пациенти с невромускулни заболявания на неинвазивна вентилация",160,"АПр"]
[null,null,null,null,null,null,null,null,null,null,null,null,null,null,null,null,null,"2019АПр11","Консервативно лечение на продължителна бъбречна колика",91,"АПр"]
[null,null,null,null,null,null,null,null,null,null,null,null,null,null,null,null,null,"2019АПр12","Бъбречно-каменна болест: уролитиаза – екстракорпорална литотрипсия",266,"АПр"]
[null,null,null,null,null,null,null,null,null,null,null,null,null,null,null,null,null,"2019АПр13","Инструментална диагностика и лечение на заболявания на щитовидната жлеза",154,"АПр"]
[null,null,null,null,null,null,null,null,null,null,null,null,null,null,null,null,null,"2019АПр14","Диагностика и определяне на терапевтично поведение на заболявания на хипофизата и надбъбрека",210,"АПр"]
[null,null,null,null,null,null,null,null,null,null,null,null,null,null,null,null,null,"2019АПр15","Диагностика и определяне на терапевтично поведение на костни метаболитни заболявания и нарушения на калциево-фосфорната обмяна",150,"АПр"]
[null,null,null,null,null,null,null,null,null,null,null,null,null,null,null,null,null,"2019АПр16","Лечение на тежкопротичащи форми на псориазис",32,"АПр"]
[null,null,null,null,null,null,null,null,null,null,null,null,null,null,null,null,null,"2019АПр17","Диагностика и лечение на еритродермии",26,"АПр"]
[null,null,null,null,null,null,null,null,null,null,null,null,null,null,null,null,null,"2019АПр18","Оперативни процедури в областта на ушите, носа и гърлото и лицево-челюстната област с малък обем и сложност",250,"АПр"]
[null,null,null,null,null,null,null,null,null,null,null,null,null,null,null,null,null,"2019АПр19","Оперативно отстраняване на катаракта",380,"АПр"]
[null,null,null,null,null,null,null,null,null,null,null,null,null,null,null,null,null,"2019АПр20","Хирургично лечение на глаукома",390,"АПр"]
[null,null,null,null,null,null,null,null,null,null,null,null,null,null,null,null,null,"2019АПр21","Оперативни интервенции върху окото и придатъците му със среден обем и сложност",150,"АПр"]
[null,null,null,null,null,null,null,null,null,null,null,null,null,null,null,null,null,"2019АПр22","Малки оперативни процедури на раменен пояс и горен крайник",193,"АПр"]
[null,null,null,null,null,null,null,null,null,null,null,null,null,null,null,null,null,"2019АПр23","Малки оперативни процедури на таза и долния крайник",256,"АПр"]
[null,null,null,null,null,null,null,null,null,null,null,null,null,null,null,null,null,"2019АПр24","Mалки артроскопски процедури в областта на скелетно-мускулната система",144,"АПр"]
[null,null,null,null,null,null,null,null,null,null,null,null,null,null,null,null,null,"2019АПр25","Диагностична и терапевтична пункция и/или биопсия",58,"АПр"]
[null,null,null,null,null,null,null,null,null,null,null,null,null,null,null,null,null,"2019АПр26","Амбулаторни хирургични процедури",90,"АПр"]
[null,null,null,null,null,null,null,null,null,null,null,null,null,null,null,null,null,"2019АПр27","Специфични изследвания при хематологични заболявания",250,"АПр"]
[null,null,null,null,null,null,null,null,null,null,null,null,null,null,null,null,null,"2019АПр28","Паравертебрални блокади и блокади на отделни нерви",25,"АПр"]
[null,null,null,null,null,null,null,null,null,null,null,null,null,null,null,null,null,"2019АПр29","Поетапна вертикализация и обучение в ходене",100,"АПр"]
[null,null,null,null,null,null,null,null,null,null,null,null,null,null,null,null,null,"2019АПр30","Напасване на протеза на горен или долен крайник",24,"АПр"]
[null,null,null,null,null,null,null,null,null,null,null,null,null,null,null,null,null,"2019АПр31","Амбулаторно наблюдение на лица с кохлеарно-имплантна система",50,"АПр"]
[null,null,null,null,null,null,null,null,null,null,null,null,null,null,null,null,null,"2019АПр32","Амбулаторно наблюдение на лица с постоянен електрокардиостимулатор",50,"АПр"]
[null,null,null,null,null,null,null,null,null,null,null,null,null,null,null,null,null,"2019АПр33","Парентерална инфузия на лекарствени продукти по терапевтична схема",12,"АПр"]
[null,null,null,null,null,null,null,null,null,null,null,null,null,null,null,null,null,"2019АПр34","Ендоскопска диагностика на заболявания, засягащи стомашно-чревния тракт",120,"АПр"]
[null,null,null,null,null,null,null,null,null,null,null,null,null,null,null,null,null,"2019АПр35","Сцинтиграфски изследвания",70,"АПр"]
[null,null,null,null,null,null,null,null,null,null,null,null,null,null,null,null,null,"2019АПр36","Позитроннo-емисионна томография с компютърна томография (ПЕТ/КТ) (РЕТ/СТ)",1600,"АПр"]
[null,null,null,null,null,null,null,null,null,null,null,null,null,null,null,null,null,"2019АПр37","Еднофотонна емисионна компютърна томография с компютърна томография – SPECT/CT на хибриден скенер",350,"АПр"]
[null,null,null,null,null,null,null,null,null,null,null,null,null,null,null,null,null,"2019АПр38","Определяне на план на лечение и проследяване на терапевтичния отговор при пациенти, получаващи скъпоструващи лекарствени продукти по реда на чл. 78, т. 2 от ЗЗО",22,"АПр"]
[null,null,null,null,null,null,null,null,null,null,null,null,null,null,null,null,null,"2019АПр39","Амбулатарно лечение и контрол на гноен хидраденит",150,"АПр"]
[null,null,null,null,null,null,null,null,null,null,null,null,null,null,null,null,null,"2019АПр40","Амбулаторно лечение и контрол на идиопатична белодробна фиброза",90,"АПр"]
[null,null,null,null,null,null,null,null,null,null,null,null,null,null,null,null,null,"2019АПр41","Амбулаторно лечение и контрол при туберозна склероза",90,"АПр"]
[null,null,null,null,null,null,null,null,null,null,null,null,null,null,null,null,null,"2019АПр42","Амбулаторно наблюдение/диспансеризация на пациенти с тежкопротичащи възпалителни полиартропатии и спондилопатии",90,"АПр"]
[null,null,null,null,null,null,null,null,null,null,null,null,null,null,null,null,null,"2019АПр43","Специф. изследвания на онкологични и онкохематолигични заболявания за прицелна терапия ",400,"АПр"]
[null,null,null,null,null,null,null,null,null,null,null,null,null,null,null,null,null,"КП АПр99","Коригираща част на незавършени КП",1,"КП"]
[null,null,null,null,null,null,null,null,null,null,null,null,null,null,null,null,null,"2018КП001","Стационарни грижи при бременност с повишен риск",400,"КП"]
[null,null,null,null,null,null,null,null,null,null,null,null,null,null,null,null,null,"2018КП002","Пренатална инвазивна диагностика на бременността и интензивни грижи при бременност с реализиран риск",800,"КП"]
[null,null,null,null,null,null,null,null,null,null,null,null,null,null,null,null,null,"2018КП003","Оперативни процедури за задържане на бременност",150,"КП"]
[null,null,null,null,null,null,null,null,null,null,null,null,null,null,null,null,null,"2018КП004.1","Преждевременно прекъсване на бременността спонтанно или по медицински показания до 13 гест. с. включително",170,"КП"]
[null,null,null,null,null,null,null,null,null,null,null,null,null,null,null,null,null,"2018КП004.2","Преждевременно прекъсване на бременността спонтанно или по медицински показания от 14 гест. с. до 26 г.с. на плода",280,"КП"]
[null,null,null,null,null,null,null,null,null,null,null,null,null,null,null,null,null,"2018КП005","Раждане",700,"КП"]
[null,null,null,null,null,null,null,null,null,null,null,null,null,null,null,null,null,"2018КП006","Грижи за здраво новородено дете",200,"КП"]
[null,null,null,null,null,null,null,null,null,null,null,null,null,null,null,null,null,"2018КП007","Диагностика и лечение на новородени с тегло над 2500 грама, първа степен на тежест",800,"КП"]
[null,null,null,null,null,null,null,null,null,null,null,null,null,null,null,null,null,"2018КП008","Диагностика и лечение на новородени с тегло над 2500 грама, втора степен на тежест",1200,"КП"]
[null,null,null,null,null,null,null,null,null,null,null,null,null,null,null,null,null,"2018КП009","Диагностика и лечение на новородени с тегло от 1500 до 2499 грама, първа степен на тежест",900,"КП"]
[null,null,null,null,null,null,null,null,null,null,null,null,null,null,null,null,null,"2018КП010","Диагностика и лечение на новородени с тегло от 1500 до 2499 грама, втора степен на тежест",1300,"КП"]
[null,null,null,null,null,null,null,null,null,null,null,null,null,null,null,null,null,"2018КП011","Диагностика и лечение на новородени с тегло под 1499 грама",3600,"КП"]
[null,null,null,null,null,null,null,null,null,null,null,null,null,null,null,null,null,"2018КП012","Диагностика и лечение на дете c вродени аномалии",1200,"КП"]
[null,null,null,null,null,null,null,null,null,null,null,null,null,null,null,null,null,"2018КП013","Диагностика и интензивно лечение на новородени с дихателна недостатъчност, първа степен на тежест",2000,"КП"]
[null,null,null,null,null,null,null,null,null,null,null,null,null,null,null,null,null,"2018КП014","Диагностика и интензивно лечение на новородени с дихателна недостатъчност, втора степен на тежест",3200,"КП"]
[null,null,null,null,null,null,null,null,null,null,null,null,null,null,null,null,null,"2018КП015.1","Диагностика и интензивно лечение на новородени с еднократно приложение на сърфактант, независимо от теглото",3300,"КП"]
[null,null,null,null,null,null,null,null,null,null,null,null,null,null,null,null,null,"2018КП015.2","Диагностика и интензивно лечение на новородени с многократно приложение на сърфактант, независимо от теглото",5600,"КП"]
[null,null,null,null,null,null,null,null,null,null,null,null,null,null,null,null,null,"2018КП016","Диагностика и лечение на нестабилна форма на ангина пекторис/остър миокарден инфаркт без инвазивно изследване и/или интервенционално лечение",350,"КП"]
[null,null,null,null,null,null,null,null,null,null,null,null,null,null,null,null,null,"2018КП017","Инвазивна диагностика при сърдечно-съдови заболявания",750,"КП"]
[null,null,null,null,null,null,null,null,null,null,null,null,null,null,null,null,null,"2018КП018","Инвазивна диагностика при сърдечно-съдови заболявания с механична вентилация",1320,"КП"]
[null,null,null,null,null,null,null,null,null,null,null,null,null,null,null,null,null,"2018КП019.1","Постоянна електрокардиостимулация – антибрадикарден пейсмейкър",550,"КП"]
[null,null,null,null,null,null,null,null,null,null,null,null,null,null,null,null,null,"2018КП019.2","Постоянна електрокардиостимулация – кардиовертер",1100,"КП"]
[null,null,null,null,null,null,null,null,null,null,null,null,null,null,null,null,null,"2018КП020","Интервенционално лечение и свързани с него диагностични катетеризации при сърдечно-съдови заболявания",3318,"КП"]
[null,null,null,null,null,null,null,null,null,null,null,null,null,null,null,null,null,"2018КП021","Интервенционално лечение и свързани с него диагностични катетеризации при сърдечни аритмии",3318,"КП"]
[null,null,null,null,null,null,null,null,null,null,null,null,null,null,null,null,null,"2018КП022","Интервенционално лечение и свързани с него диагностични катетеризации при вродени сърдечни малформации",3318,"КП"]
[null,null,null,null,null,null,null,null,null,null,null,null,null,null,null,null,null,"2018КП023","Интервенционално лечение и свързани с него диагностични катетеризации при вродени сърдечни малформации с механична вентилация",3600,"КП"]
[null,null,null,null,null,null,null,null,null,null,null,null,null,null,null,null,null,"2018КП024","Ендоваскуларно лечение на екстракраниални съдове",370,"КП"]
[null,null,null,null,null,null,null,null,null,null,null,null,null,null,null,null,null,"2018КП025","Диагностика и лечение на нестабилна форма на ангина пекторис с инвазивно изследване",900,"КП"]
[null,null,null,null,null,null,null,null,null,null,null,null,null,null,null,null,null,"2018КП026","Диагностика и лечение на нестабилна форма на ангина пекторис с интервенционално лечение",3430,"КП"]
[null,null,null,null,null,null,null,null,null,null,null,null,null,null,null,null,null,"2018КП027","Диагностика и лечение на остър коронарен синдром с фибринолитик",2750,"КП"]
[null,null,null,null,null,null,null,null,null,null,null,null,null,null,null,null,null,"2018КП028","Диагностика и лечение на остър коронарен синдром с персистираща елевация на ST сегмент с интервенционално лечение",4540,"КП"]
[null,null,null,null,null,null,null,null,null,null,null,null,null,null,null,null,null,"2018КП029","Диагностика и лечение на остра и изострена хронична сърдечна недостатъчност без механична вентилация",520,"КП"]
[null,null,null,null,null,null,null,null,null,null,null,null,null,null,null,null,null,"2018КП030","Диагностика и лечение на остра и изострена хронична сърдечна недостатъчност с механична вентилация",1300,"КП"]
[null,null,null,null,null,null,null,null,null,null,null,null,null,null,null,null,null,"2018КП031","Диагностика и лечение на инфекциозен ендокардит",4950,"КП"]
[null,null,null,null,null,null,null,null,null,null,null,null,null,null,null,null,null,"2018КП032","Диагностика и лечение на заболявания на миокарда и перикарда",462,"КП"]
[null,null,null,null,null,null,null,null,null,null,null,null,null,null,null,null,null,"2018КП033","Диагностика и лечение на ритъмни и проводни нарушения",435,"КП"]
[null,null,null,null,null,null,null,null,null,null,null,null,null,null,null,null,null,"2018КП034","Диагностика и лечение на артериална хипертония в детската възраст",700,"КП"]
[null,null,null,null,null,null,null,null,null,null,null,null,null,null,null,null,null,"2018КП035","Диагностика и лечение на хипоксемични състояния при вродени сърдечни малформации в детска възраст",750,"КП"]
[null,null,null,null,null,null,null,null,null,null,null,null,null,null,null,null,null,"2018КП036","Диагностика и лечение на белодробен тромбоемболизъм без фибринолитик",700,"КП"]
[null,null,null,null,null,null,null,null,null,null,null,null,null,null,null,null,null,"2018КП037","Диагностика и лечение на белодробен тромбоемболизъм с фибринолитик",2600,"КП"]
[null,null,null,null,null,null,null,null,null,null,null,null,null,null,null,null,null,"2018КП038","Диагностика и лечение на хронична обструктивна белодробна болест – остра екзацербация",550,"КП"]
[null,null,null,null,null,null,null,null,null,null,null,null,null,null,null,null,null,"2018КП039","Диагностика и лечение на бронхопневмония и бронхиолит при лица над 18 годишна възраст",580,"КП"]
[null,null,null,null,null,null,null,null,null,null,null,null,null,null,null,null,null,"2018КП040.1","Бронхиална астма: среднотежък и тежък пристъп при лица над 18-годишна възраст",550,"КП"]
[null,null,null,null,null,null,null,null,null,null,null,null,null,null,null,null,null,"2018КП040.2","Бронхиална астма: среднотежък и тежък пристъп при лица под 18-годишна възраст",650,"КП"]
[null,null,null,null,null,null,null,null,null,null,null,null,null,null,null,null,null,"2018КП041.1","Диагностика и лечение на алергични заболявания на дихателната система при лица над 18 години",400,"КП"]
[null,null,null,null,null,null,null,null,null,null,null,null,null,null,null,null,null,"2018КП041.2","Диагностика и лечение при инфекциозно-алергични заболявания на дихателната система при лица под 18 години",500,"КП"]
[null,null,null,null,null,null,null,null,null,null,null,null,null,null,null,null,null,"2018КП042.1","Гнойно-възпалителни заболявания на бронхо-белодробната система при лица над 18 години",780,"КП"]
[null,null,null,null,null,null,null,null,null,null,null,null,null,null,null,null,null,"2018КП042.2","Гнойно-възпалителни заболявания на бронхо-белодробната система при лица под 18 години",1200,"КП"]
[null,null,null,null,null,null,null,null,null,null,null,null,null,null,null,null,null,"2018КП043","Бронхоскопски процедури с неголям обем и сложност в пулмологията",280,"КП"]
[null,null,null,null,null,null,null,null,null,null,null,null,null,null,null,null,null,"2018КП044","Високоспециализирани интервенционални процедури в пулмологията",800,"КП"]
[null,null,null,null,null,null,null,null,null,null,null,null,null,null,null,null,null,"2018КП045","Лечение на декомпенсирана хронична дихателна недостатъчност при болести на дихателната система",650,"КП"]
[null,null,null,null,null,null,null,null,null,null,null,null,null,null,null,null,null,"2018КП046","Лечение на декомпенсирана хронична дихателна недостатъчност при болести на дихателната система в детска възраст",1200,"КП"]
[null,null,null,null,null,null,null,null,null,null,null,null,null,null,null,null,null,"2018КП047","Лечение на декомпенсирана хронична дихателна недостатъчност при болести на дихателната система с механична вентилация",1540,"КП"]
[null,null,null,null,null,null,null,null,null,null,null,null,null,null,null,null,null,"2018КП048","Диагностика и лечение на бронхопневмония в детска възраст",700,"КП"]
[null,null,null,null,null,null,null,null,null,null,null,null,null,null,null,null,null,"2018КП049","Диагностика и лечение на бронхиолит в детската възраст",570,"КП"]
[null,null,null,null,null,null,null,null,null,null,null,null,null,null,null,null,null,"2018КП050","Диагностика и лечение на исхемичен мозъчен инсулт без тромболиза",730,"КП"]
[null,null,null,null,null,null,null,null,null,null,null,null,null,null,null,null,null,"2018КП051","Диагностика и лечение на исхемичен мозъчен инсулт с тромболиза",3000,"КП"]
[null,null,null,null,null,null,null,null,null,null,null,null,null,null,null,null,null,"2018КП052","Диагностика и лечение на паренхимен мозъчен кръвоизлив",850,"КП"]
[null,null,null,null,null,null,null,null,null,null,null,null,null,null,null,null,null,"2018КП053","Диагностика и лечение на субарахноиден кръвоизлив",1000,"КП"]
[null,null,null,null,null,null,null,null,null,null,null,null,null,null,null,null,null,"2018КП054","Диагностика и специфично лечение на остра и хронична демиелинизираща полиневропатия (Гилен-Баре)",5500,"КП"]
[null,null,null,null,null,null,null,null,null,null,null,null,null,null,null,null,null,"2018КП055","Диагностика и специфично лечение на остра и хронична демиелинизираща полиневропатия (Гилен-Баре) на апаратна вентилация",10000,"КП"]
[null,null,null,null,null,null,null,null,null,null,null,null,null,null,null,null,null,"2018КП056","Диагностика и лечение на болести на черепно-мозъчните нерви (ЧМН), на нервните коренчета и плексуси, полиневропатия и вертеброгенни болкови синдроми",500,"КП"]
[null,null,null,null,null,null,null,null,null,null,null,null,null,null,null,null,null,"2018КП057","Диагностика и лечение на остри и хронични вирусни, бактериални, спирохетни, микотични и паразитни менингити, менингоенцефалити и миелити",2000,"КП"]
[null,null,null,null,null,null,null,null,null,null,null,null,null,null,null,null,null,"2018КП058","Диагностика и лечение на наследствени и дегенеративни заболявания на нервната система, засягащи ЦНС с начало в детска възраст",700,"КП"]
[null,null,null,null,null,null,null,null,null,null,null,null,null,null,null,null,null,"2018КП059","Диагностика и лечение на наследствени и дегенеративни заболявания на нервната система при възрастни пациенти, засягащи централна нервна система и моторния неврон (ЛАС)",550,"КП"]
[null,null,null,null,null,null,null,null,null,null,null,null,null,null,null,null,null,"2018КП060","Диагностика и лечение на невро-мускулни заболявания и болести на предните рога на гръбначния мозък",480,"КП"]
[null,null,null,null,null,null,null,null,null,null,null,null,null,null,null,null,null,"2018КП061","Диагностика и лечение на мултипленна склероза",650,"КП"]
[null,null,null,null,null,null,null,null,null,null,null,null,null,null,null,null,null,"2018КП062","Диагностика и лечение на епилепсия и епилептични пристъпи",400,"КП"]
[null,null,null,null,null,null,null,null,null,null,null,null,null,null,null,null,null,"2018КП063","Лечение на епилептичен статус",600,"КП"]
[null,null,null,null,null,null,null,null,null,null,null,null,null,null,null,null,null,"2018КП064.1","Миастения гравис и миастенни синдроми при лица над 18 години",500,"КП"]
[null,null,null,null,null,null,null,null,null,null,null,null,null,null,null,null,null,"2018КП064.2","Миастения гравис и миастенни синдроми при лица под 18 години",657,"КП"]
[null,null,null,null,null,null,null,null,null,null,null,null,null,null,null,null,null,"2018КП065","Лечение на миастенни кризи с кортикостероиди и апаратна вентилация",5000,"КП"]
[null,null,null,null,null,null,null,null,null,null,null,null,null,null,null,null,null,"2018КП066","Лечение на миастенни кризи с човешки имуноглобулин и апаратна вентилация",7000,"КП"]
[null,null,null,null,null,null,null,null,null,null,null,null,null,null,null,null,null,"2018КП067","Диагностика и лечение на паркинсонова болест",231,"КП"]
[null,null,null,null,null,null,null,null,null,null,null,null,null,null,null,null,null,"2018КП068","Диагностика и лечение на заболявания на горния гастроинтестинален тракт",600,"КП"]
[null,null,null,null,null,null,null,null,null,null,null,null,null,null,null,null,null,"2018КП069","Високоспециализирани интервенционални процедури при заболявания на гастроинтестиналния тракт",850,"КП"]
[null,null,null,null,null,null,null,null,null,null,null,null,null,null,null,null,null,"2018КП070","Диагностика и лечение на болест на Крон и улцерозен колит",1200,"КП"]
[null,null,null,null,null,null,null,null,null,null,null,null,null,null,null,null,null,"2018КП071","Диагностика и лечение на заболявания на тънкото и дебелото черво",605,"КП"]
[null,null,null,null,null,null,null,null,null,null,null,null,null,null,null,null,null,"2018КП072","Ендоскопско и медикаментозно лечение при остро кървене от гастроинтестиналния тракт",600,"КП"]
[null,null,null,null,null,null,null,null,null,null,null,null,null,null,null,null,null,"2018КП073","Високоспециализирани интервенционални процедури при заболявания на хепатобилиарната система (ХБС), панкреаса и перитонеума",1500,"КП"]
[null,null,null,null,null,null,null,null,null,null,null,null,null,null,null,null,null,"2018КП074","Диагностика и лечение на заболявания на хепатобилиарната система, панкреаса и перитонеума",920,"КП"]
[null,null,null,null,null,null,null,null,null,null,null,null,null,null,null,null,null,"2018КП075","Диагностика и лечение на декомпенсирани чернодробни заболявания (цироза)",1100,"КП"]
[null,null,null,null,null,null,null,null,null,null,null,null,null,null,null,null,null,"2018КП076","Диагностика и лечение на хронични чернодробни заболявания",700,"КП"]
[null,null,null,null,null,null,null,null,null,null,null,null,null,null,null,null,null,"2018КП077","Диагностика и лечение на хронични диарии, с начало в детската възраст",400,"КП"]
[null,null,null,null,null,null,null,null,null,null,null,null,null,null,null,null,null,"2018КП078.1","Декомпенсиран захарен диабет при лица над 18 години",660,"КП"]
[null,null,null,null,null,null,null,null,null,null,null,null,null,null,null,null,null,"2018КП078.2","Декомпенсиран захарен диабет при лица под 18 години",610,"КП"]
[null,null,null,null,null,null,null,null,null,null,null,null,null,null,null,null,null,"2018КП079","Диагностика и лечение на заболявания на щитовидната жлеза",341,"КП"]
[null,null,null,null,null,null,null,null,null,null,null,null,null,null,null,null,null,"2018КП080.1","Заболявания на хипофизата и надбъбрека при лица над 18 години",500,"КП"]
[null,null,null,null,null,null,null,null,null,null,null,null,null,null,null,null,null,"2018КП080.2","Заболявания на хипофизата и надбъбрека при лица под 18 години",650,"КП"]
[null,null,null,null,null,null,null,null,null,null,null,null,null,null,null,null,null,"2018КП081.1","Костни метаболитни заболявания и нарушения на калциево-фосфорната обмяна при лица над 18 години",450,"КП"]
[null,null,null,null,null,null,null,null,null,null,null,null,null,null,null,null,null,"2018КП081.2","Костни метаболитни заболявания и нарушения на калциево-фосфорната обмяна при лица под 18 години",450,"КП"]
[null,null,null,null,null,null,null,null,null,null,null,null,null,null,null,null,null,"2018КП082","Диагностика на лица с метаболитни нарушения",630,"КП"]
[null,null,null,null,null,null,null,null,null,null,null,null,null,null,null,null,null,"2018КП083","Лечение на лица с метаболитни нарушения",630,"КП"]
[null,null,null,null,null,null,null,null,null,null,null,null,null,null,null,null,null,"2018КП084","Диагностика и лечение на остър и хроничен обострен пиелонефрит",500,"КП"]
[null,null,null,null,null,null,null,null,null,null,null,null,null,null,null,null,null,"2018КП085","Диагностика и лечение на гломерулонефрити – остри и хронични, първични и вторични при системни заболявания – новооткрити",950,"КП"]
[null,null,null,null,null,null,null,null,null,null,null,null,null,null,null,null,null,"2018КП086.1","Лечение на хистологично доказани гломерулонефрити – остри и хронични, първични и вторични при системни заболявания – при лица над 18 години",950,"КП"]
[null,null,null,null,null,null,null,null,null,null,null,null,null,null,null,null,null,"2018КП086.2","Лечение на хистологично доказани гломерулонефрити – остри и хронични, първични и вторични при системни заболявания – при лица под 18 години",1050,"КП"]
[null,null,null,null,null,null,null,null,null,null,null,null,null,null,null,null,null,"2018КП087.1","Остра бъбречна недостатъчност при лица над 18 години",900,"КП"]
[null,null,null,null,null,null,null,null,null,null,null,null,null,null,null,null,null,"2018КП087.2","Остра бъбречна недостатъчност при лица под 18 години",1050,"КП"]
[null,null,null,null,null,null,null,null,null,null,null,null,null,null,null,null,null,"2018КП088.1","Хронична бъбречна недостатъчност при лица над 18 години",400,"КП"]
[null,null,null,null,null,null,null,null,null,null,null,null,null,null,null,null,null,"2018КП088.2","Хронична бъбречна недостатъчност при лица под 18 години",400,"КП"]
[null,null,null,null,null,null,null,null,null,null,null,null,null,null,null,null,null,"2018КП089.1","Системни заболявания на съединителната тъкан при лица над 18 години",500,"КП"]
[null,null,null,null,null,null,null,null,null,null,null,null,null,null,null,null,null,"2018КП089.2","Системни заболявания на съединителната тъкан при лица под 18 години",580,"КП"]
[null,null,null,null,null,null,null,null,null,null,null,null,null,null,null,null,null,"2018КП090.1","Възпалителни ставни заболявания при лица над 18 години",750,"КП"]
[null,null,null,null,null,null,null,null,null,null,null,null,null,null,null,null,null,"2018КП090.2","Възпалителни ставни заболявания при лица под 18 години",770,"КП"]
[null,null,null,null,null,null,null,null,null,null,null,null,null,null,null,null,null,"2018КП091","Диагностика и лечение на дегенераптивни и обменни ставни заболявания",500,"КП"]
[null,null,null,null,null,null,null,null,null,null,null,null,null,null,null,null,null,"2018КП092","Диагностика и лечение на тежкопротичащи булозни дерматози",770,"КП"]
[null,null,null,null,null,null,null,null,null,null,null,null,null,null,null,null,null,"2018КП093","Диагностика и лечение на тежкопротичащи бактериални инфекции на кожата",500,"КП"]
[null,null,null,null,null,null,null,null,null,null,null,null,null,null,null,null,null,"2018КП094","Диагностика и лечение на тежкопротичащи форми на псориазис – обикновен, артропатичен, пустулозен и еритродермичен",550,"КП"]
[null,null,null,null,null,null,null,null,null,null,null,null,null,null,null,null,null,"2018КП095","Диагностика и лечение на островъзникнали и тежкопротичащи еритродермии с генерализиран екзантем",400,"КП"]
[null,null,null,null,null,null,null,null,null,null,null,null,null,null,null,null,null,"2018КП096","Лечение на кожни прояви при съединително-тъканни заболявания и васкулити",434,"КП"]
[null,null,null,null,null,null,null,null,null,null,null,null,null,null,null,null,null,"2018КП097","Лечение на сифилис при бременни жени и при малигнени форми (на вторичен и третичен сифилис) с кристален пеницилин",250,"КП"]
[null,null,null,null,null,null,null,null,null,null,null,null,null,null,null,null,null,"2018КП098","Диагностика и лечение на остро протичащи чревни инфекциозни болести с диаричен синдром",620,"КП"]
[null,null,null,null,null,null,null,null,null,null,null,null,null,null,null,null,null,"2018КП099","Диагностика и лечение на инфекциозни и паразитни заболявания, предавани чрез ухапване от членестоноги",520,"КП"]
[null,null,null,null,null,null,null,null,null,null,null,null,null,null,null,null,null,"2018КП100","Диагностика и лечение на остър вирусен хепатит А и Е",1100,"КП"]
[null,null,null,null,null,null,null,null,null,null,null,null,null,null,null,null,null,"2018КП101","Диагностика и лечение на остър вирусен хепатит В, С и D",1277,"КП"]
[null,null,null,null,null,null,null,null,null,null,null,null,null,null,null,null,null,"2018КП102","Диагностика и лечение на паразитози",457,"КП"]
[null,null,null,null,null,null,null,null,null,null,null,null,null,null,null,null,null,"2018КП103","Диагностика и лечение на покривни инфекции",457,"КП"]
[null,null,null,null,null,null,null,null,null,null,null,null,null,null,null,null,null,"2018КП104","Диагностика и лечение на контагиозни вирусни и бактериални заболявания – остро протичащи, с усложнения",500,"КП"]
[null,null,null,null,null,null,null,null,null,null,null,null,null,null,null,null,null,"2018КП105","Диагностика и лечение на вирусни хеморагични трески",1000,"КП"]
[null,null,null,null,null,null,null,null,null,null,null,null,null,null,null,null,null,"2018КП106.1","Токсоалергични реакции при лица над 18 години",500,"КП"]
[null,null,null,null,null,null,null,null,null,null,null,null,null,null,null,null,null,"2018КП106.2","Токсоалергични реакции при лица под 18 години",550,"КП"]
[null,null,null,null,null,null,null,null,null,null,null,null,null,null,null,null,null,"2018КП107","Диагностика и лечение на отравяния и токсични ефекти от лекарства и битови отрови",750,"КП"]
[null,null,null,null,null,null,null,null,null,null,null,null,null,null,null,null,null,"2018КП108","Диагностика и лечение на фалоидно гъбно отравяне",2200,"КП"]
[null,null,null,null,null,null,null,null,null,null,null,null,null,null,null,null,null,"2018КП109","Диагностика и лечение на токсична епидермална некролиза (болест на Лайел)",1650,"КП"]
[null,null,null,null,null,null,null,null,null,null,null,null,null,null,null,null,null,"2018КП110","Лечение на доказани първични имунодефицити",2163,"КП"]
[null,null,null,null,null,null,null,null,null,null,null,null,null,null,null,null,null,"2018КП111","Диагностика и лечение на остри внезапно възникнали състояния в детската възраст",250,"КП"]
[null,null,null,null,null,null,null,null,null,null,null,null,null,null,null,null,null,"2018КП112","Диагностика и лечение на муковисцидоза",1200,"КП"]
[null,null,null,null,null,null,null,null,null,null,null,null,null,null,null,null,null,"2018КП113.1","Консервативно лечение на световъртеж, разстройства в равновесието от периферен и централен тип (диагностична)",200,"КП"]
[null,null,null,null,null,null,null,null,null,null,null,null,null,null,null,null,null,"2018КП113.2","Консервативно лечение на световъртеж, разстройства в равновесието от периферен и централен тип с минимален болничен престой 4 дни",400,"КП"]
[null,null,null,null,null,null,null,null,null,null,null,null,null,null,null,null,null,"2018КП114","Интензивно лечение на коматозни състояния, неиндицирани от травма",2200,"КП"]
[null,null,null,null,null,null,null,null,null,null,null,null,null,null,null,null,null,"2018КП115","Интензивно лечение при комбинирани и/или съчетани травми",2500,"КП"]
[null,null,null,null,null,null,null,null,null,null,null,null,null,null,null,null,null,"2018КП116","Оперативно лечение при сърдечни заболявания в условията на екстракорпорално кръвообращение. Минимално инвазивни сърдечни операции при лица над 18 години",10100,"КП"]
[null,null,null,null,null,null,null,null,null,null,null,null,null,null,null,null,null,"2018КП117","Оперативно лечение при сърдечни заболявания в условията на екстракорпорално кръвообращение при лица от 0 до 18 години. Минимално инвазивни сърдечни операции при лица от 0 до 18 години",10100,"КП"]
[null,null,null,null,null,null,null,null,null,null,null,null,null,null,null,null,null,"2018КП118","Оперативно лечение на деца до 1 година с критични вродени сърдечни малформации в условията на екстракорпорално кръвообращение",18000,"КП"]
[null,null,null,null,null,null,null,null,null,null,null,null,null,null,null,null,null,"2018КП119","Оперативни процедури при комплексни сърдечни малформации с много голям обем и сложност в условия на екстракорпорално кръвообращение",13500,"КП"]
[null,null,null,null,null,null,null,null,null,null,null,null,null,null,null,null,null,"2018КП120","Лечение на полиорганна недостатъчност, развила се след сърдечна операция",14500,"КП"]
[null,null,null,null,null,null,null,null,null,null,null,null,null,null,null,null,null,"2018КП121","Оперативно лечение на заболявания на сърцето, без екстракорпорално кръвообращение, при лица над 18 години",3450,"КП"]
[null,null,null,null,null,null,null,null,null,null,null,null,null,null,null,null,null,"2018КП122","Оперативно лечение при заболявания на сърцето, без екстракорпорално кръвообращение, при лица под 18 години",4500,"КП"]
[null,null,null,null,null,null,null,null,null,null,null,null,null,null,null,null,null,"2018КП123","Oперативно лечение на абдоминална аорта, долна празна вена и клоновете им",3500,"КП"]
[null,null,null,null,null,null,null,null,null,null,null,null,null,null,null,null,null,"2018КП124","Оперативно лечение на хронична съдова недостатъчност във феморо-поплитеалния и аксило-брахиалния сегмент",1919,"КП"]
[null,null,null,null,null,null,null,null,null,null,null,null,null,null,null,null,null,"2018КП125","Оперативно лечение на клонове на аортната дъга",1709,"КП"]
[null,null,null,null,null,null,null,null,null,null,null,null,null,null,null,null,null,"2018КП126","Спешни оперативни интервенции без съдова реконструкция при болни със съдови заболявания (тромбектомии, емболектомии, ампутации и симпатектомии)",1100,"КП"]
[null,null,null,null,null,null,null,null,null,null,null,null,null,null,null,null,null,"2018КП127","Kонсервативно лечение на съдова недостатъчност",520,"КП"]
[null,null,null,null,null,null,null,null,null,null,null,null,null,null,null,null,null,"2018КП128","Консервативно лечение с простагландинови/простациклинови деривати при съдова недостатъчност",330,"КП"]
[null,null,null,null,null,null,null,null,null,null,null,null,null,null,null,null,null,"2018КП129","Оперативно лечение при варикозна болест и усложненията й",400,"КП"]
[null,null,null,null,null,null,null,null,null,null,null,null,null,null,null,null,null,"2018КП130","Oперативни процедури върху придатъците на окото с голям обем и сложност",300,"КП"]
[null,null,null,null,null,null,null,null,null,null,null,null,null,null,null,null,null,"2018КП131","Други операции на очната ябълка с голям обем и сложност",410,"КП"]
[null,null,null,null,null,null,null,null,null,null,null,null,null,null,null,null,null,"2018КП132","Кератопластика",1000,"КП"]
[null,null,null,null,null,null,null,null,null,null,null,null,null,null,null,null,null,"2018КП133","Консервативно лечение на глаукома, съдови заболявания на окото и неперфоративни травми",273,"КП"]
[null,null,null,null,null,null,null,null,null,null,null,null,null,null,null,null,null,"2018КП134","Консервативно лечение при инфекции и възпалителни заболявания на окото и придатъците му",249,"КП"]
[null,null,null,null,null,null,null,null,null,null,null,null,null,null,null,null,null,"2018КП135","Оперативно лечение при заболявания на ретина, стъкловидно тяло и травми, засягащи задния очен сегмент",700,"КП"]
[null,null,null,null,null,null,null,null,null,null,null,null,null,null,null,null,null,"2018КП136","Оперативно лечение на заболявания в областта на ушите, носа и гърлото с много голям обем и сложност",2950,"КП"]
[null,null,null,null,null,null,null,null,null,null,null,null,null,null,null,null,null,"2018КП137","Оперативно лечение на заболявания в областта на ушите, носа и гърлото с голям обем и сложност",1500,"КП"]
[null,null,null,null,null,null,null,null,null,null,null,null,null,null,null,null,null,"2018КП138","Оперативно лечение на заболявания в областта на ушите, носа и гърлото със среден обем и сложност",650,"КП"]
[null,null,null,null,null,null,null,null,null,null,null,null,null,null,null,null,null,"2018КП139","Високотехнологична диагностика при ушно-носно-гърлени болести",450,"КП"]
[null,null,null,null,null,null,null,null,null,null,null,null,null,null,null,null,null,"2018КП140","Консервативно парентерално лечение при ушно-носно-гърлени болести",150,"КП"]
[null,null,null,null,null,null,null,null,null,null,null,null,null,null,null,null,null,"2018КП141","Трансуретрално оперативно лечение при онкологични заболявания на пикочния мехур",1000,"КП"]
[null,null,null,null,null,null,null,null,null,null,null,null,null,null,null,null,null,"2018КП142","Радикална цистопростатектомия с ортотопичен пикочен мехур",4000,"КП"]
[null,null,null,null,null,null,null,null,null,null,null,null,null,null,null,null,null,"2018КП143","Трансуретрална простатектомия",1100,"КП"]
[null,null,null,null,null,null,null,null,null,null,null,null,null,null,null,null,null,"2018КП144","Отворени оперативни процедури при доброкачествена хиперплазия на простатната жлеза и нейните усложнения",1100,"КП"]
[null,null,null,null,null,null,null,null,null,null,null,null,null,null,null,null,null,"2018КП145","Ендоскопски процедури при обструкции на горните пикочни пътища",774,"КП"]
[null,null,null,null,null,null,null,null,null,null,null,null,null,null,null,null,null,"2018КП146","Оперативни процедури при вродени заболявания на пикочо-половата система",2500,"КП"]
[null,null,null,null,null,null,null,null,null,null,null,null,null,null,null,null,null,"2018КП147","Оперативни процедури върху мъжка полова система",600,"КП"]
[null,null,null,null,null,null,null,null,null,null,null,null,null,null,null,null,null,"2018КП148","Оперативни процедури на долните пикочни пътища с голям обем и сложност",2600,"КП"]
[null,null,null,null,null,null,null,null,null,null,null,null,null,null,null,null,null,"2018КП149","Оперативни процедури на долните пикочни пътища със среден обем и сложност",1160,"КП"]
[null,null,null,null,null,null,null,null,null,null,null,null,null,null,null,null,null,"2018КП150","Оперативни процедури при инконтиненция на урината",612,"КП"]
[null,null,null,null,null,null,null,null,null,null,null,null,null,null,null,null,null,"2018КП151","Реконструктивни операции в урологията",1000,"КП"]
[null,null,null,null,null,null,null,null,null,null,null,null,null,null,null,null,null,"2018КП152","Ендоскопски процедури при обструкции на долните пикочни пътища",520,"КП"]
[null,null,null,null,null,null,null,null,null,null,null,null,null,null,null,null,null,"2018КП153","Оперативни процедури при травми на долните пикочни пътища",1000,"КП"]
[null,null,null,null,null,null,null,null,null,null,null,null,null,null,null,null,null,"2018КП154","Оперативни процедури на бъбрека и уретера с голям и много голям обем и сложност",2300,"КП"]
[null,null,null,null,null,null,null,null,null,null,null,null,null,null,null,null,null,"2018КП155","Оперативни процедури на бъбрека и уретера със среден обем и сложност",950,"КП"]
[null,null,null,null,null,null,null,null,null,null,null,null,null,null,null,null,null,"2018КП156","Радикална цистектомия. Радикална цистопростатектомия",3200,"КП"]
[null,null,null,null,null,null,null,null,null,null,null,null,null,null,null,null,null,"2018КП157","Радикална простатектомия",2800,"КП"]
[null,null,null,null,null,null,null,null,null,null,null,null,null,null,null,null,null,"2018КП158","Оперативни интервенции при инфекции на меките и костни тъкани",550,"КП"]
[null,null,null,null,null,null,null,null,null,null,null,null,null,null,null,null,null,"2018КП159","Артроскопски процедури в областта на скелетно-мускулната система",700,"КП"]
[null,null,null,null,null,null,null,null,null,null,null,null,null,null,null,null,null,"2018КП160","Нерадикално отстраняване на матката",1100,"КП"]
[null,null,null,null,null,null,null,null,null,null,null,null,null,null,null,null,null,"2018КП161","Радикално отстраняване на женски полови органи",1100,"КП"]
[null,null,null,null,null,null,null,null,null,null,null,null,null,null,null,null,null,"2018КП162","Оперативни интервенции чрез коремен достъп за отстраняване на болестни изменения на женските полови органи",770,"КП"]
[null,null,null,null,null,null,null,null,null,null,null,null,null,null,null,null,null,"2018КП163","Оперативни интервенции чрез долен достъп за отстраняване на болестни изменения или инвазивно изследване на женските полови органи",330,"КП"]
[null,null,null,null,null,null,null,null,null,null,null,null,null,null,null,null,null,"2018КП164","Корекции на тазова (перинеална) статика и/или на незадържане на урината при жената",806,"КП"]
[null,null,null,null,null,null,null,null,null,null,null,null,null,null,null,null,null,"2018КП165","Диагностични процедури и консервативно лечение на токсо-инфекциозен и анемичен синдром от акушеро-гинекологичен произход",460,"КП"]
[null,null,null,null,null,null,null,null,null,null,null,null,null,null,null,null,null,"2018КП166","Корекции на проходимост и възстановяване на анатомия при жената",650,"КП"]
[null,null,null,null,null,null,null,null,null,null,null,null,null,null,null,null,null,"2018КП167","Системна радикална ексцизия на лимфни възли (тазови и/или парааортални и/или ингвинални) като самостоятелна интервенция или съчетана с радикално отстраняване на женски полови органи. Тазова екзентерация",2200,"КП"]
[null,null,null,null,null,null,null,null,null,null,null,null,null,null,null,null,null,"2018КП168","Високотехнологична асистирана с робот гинекологична хирургия",8000,"КП"]
[null,null,null,null,null,null,null,null,null,null,null,null,null,null,null,null,null,"2018КП169","Интензивно лечение на интра- и постпартални усложнения, довели до шок",1500,"КП"]
[null,null,null,null,null,null,null,null,null,null,null,null,null,null,null,null,null,"2018КП170","Интензивно лечение на интра- и поспартални усложнения, довели до шок, с приложение на рекомбинантни фактори на кръвосъсирването",6800,"КП"]
[null,null,null,null,null,null,null,null,null,null,null,null,null,null,null,null,null,"2018КП171","Оперативни процедури на хранопровод, стомах и дуоденум с голям и много голям обем и сложност, при лица над 18 години",2800,"КП"]
[null,null,null,null,null,null,null,null,null,null,null,null,null,null,null,null,null,"2018КП172","Оперативни процедури на хранопровод, стомах и дуоденум с голям и много голям обем и сложност, при лица под 18 години",3100,"КП"]
[null,null,null,null,null,null,null,null,null,null,null,null,null,null,null,null,null,"2018КП173","Оперативни процедури на хранопровод, стомах и дуоденум със среден обем и сложност, при лица над 18 години",1780,"КП"]
[null,null,null,null,null,null,null,null,null,null,null,null,null,null,null,null,null,"2018КП174","Оперативни процедури на хранопровод, стомах и дуоденум със среден обем и сложност, при лица под 18 години",1780,"КП"]
[null,null,null,null,null,null,null,null,null,null,null,null,null,null,null,null,null,"2018КП175","Оперативни процедури на тънки и дебели черва, вкл. при заболявания на мезентериума и ретроперитонеума с голям и много голям обем и сложност, при лица над 18 години",2600,"КП"]
[null,null,null,null,null,null,null,null,null,null,null,null,null,null,null,null,null,"2018КП176","Оперативни процедури на тънки и дебели черва, вкл. при заболявания на мезентериума и ретроперитонеума с голям и много голям обем и сложност, при лица под 18 години",2650,"КП"]
[null,null,null,null,null,null,null,null,null,null,null,null,null,null,null,null,null,"2018КП177","Оперативни процедури на тънки и дебели черва със среден обем и сложност, при лица над 18 години",1100,"КП"]
[null,null,null,null,null,null,null,null,null,null,null,null,null,null,null,null,null,"2018КП178","Оперативни процедури на тънки и дебели черва със среден обем и сложност, при лица под 18 години",1150,"КП"]
[null,null,null,null,null,null,null,null,null,null,null,null,null,null,null,null,null,"2018КП179","Оперативни процедури върху апендикс",650,"КП"]
[null,null,null,null,null,null,null,null,null,null,null,null,null,null,null,null,null,"2018КП180","Хирургични интервенции за затваряне на стома",650,"КП"]
[null,null,null,null,null,null,null,null,null,null,null,null,null,null,null,null,null,"2018КП181","Хирургични интервенции на ануса и перианалното пространство",500,"КП"]
[null,null,null,null,null,null,null,null,null,null,null,null,null,null,null,null,null,"2018КП182","Оперативни процедури при хернии",650,"КП"]
[null,null,null,null,null,null,null,null,null,null,null,null,null,null,null,null,null,"2018КП183","Оперативни процедури при хернии с инкарцерация",700,"КП"]
[null,null,null,null,null,null,null,null,null,null,null,null,null,null,null,null,null,"2018КП184","Конвенционална холецистектомия",1150,"КП"]
[null,null,null,null,null,null,null,null,null,null,null,null,null,null,null,null,null,"2018КП185","Лапароскопска холецистектомия",950,"КП"]
[null,null,null,null,null,null,null,null,null,null,null,null,null,null,null,null,null,"2018КП186","Оперативни процедури върху екстрахепаталните жлъчни пътища",2300,"КП"]
[null,null,null,null,null,null,null,null,null,null,null,null,null,null,null,null,null,"2018КП187","Оперативни процедури върху черен дроб",3350,"КП"]
[null,null,null,null,null,null,null,null,null,null,null,null,null,null,null,null,null,"2018КП188","Оперативни процедури върху черен дроб при ехинококова болест",1450,"КП"]
[null,null,null,null,null,null,null,null,null,null,null,null,null,null,null,null,null,"2018КП189","Оперативни процедури върху панкреас и дистален холедох, с голям и много голям обем и сложност",4950,"КП"]
[null,null,null,null,null,null,null,null,null,null,null,null,null,null,null,null,null,"2018КП190","Оперативни процедури върху панкреас и дистален холедох, със среден обем и сложност",1820,"КП"]
[null,null,null,null,null,null,null,null,null,null,null,null,null,null,null,null,null,"2018КП191.1","Оперативни процедури върху далака при лица над 18 години",1000,"КП"]
[null,null,null,null,null,null,null,null,null,null,null,null,null,null,null,null,null,"2018КП191.2","Оперативни процедури върху далака при лица под 18 години",1500,"КП"]
[null,null,null,null,null,null,null,null,null,null,null,null,null,null,null,null,null,"2018КП192","Оперативни интервенции при диабетно стъпало, без съдово-реконструктивни операции",1200,"КП"]
[null,null,null,null,null,null,null,null,null,null,null,null,null,null,null,null,null,"2018КП193","Оперативно лечение на онкологично заболяване на гърдата: стадии Tis 1-4 N 0-2 M0-1",1300,"КП"]
[null,null,null,null,null,null,null,null,null,null,null,null,null,null,null,null,null,"2018КП194","Оперативни интервенции върху гърда с локална ексцизия и биопсия",300,"КП"]
[null,null,null,null,null,null,null,null,null,null,null,null,null,null,null,null,null,"2018КП195","Оперативно лечение при остър перитонит",2200,"КП"]
[null,null,null,null,null,null,null,null,null,null,null,null,null,null,null,null,null,"2018КП196","Оперативно лечение на интраабдоминални абсцеси",1500,"КП"]
[null,null,null,null,null,null,null,null,null,null,null,null,null,null,null,null,null,"2018КП197","Консервативно лечение при остри коремни заболявания",750,"КП"]
[null,null,null,null,null,null,null,null,null,null,null,null,null,null,null,null,null,"2018КП198","Хирургично лечение при животозастрашаващи инфекции на меките и костни тъкани",2200,"КП"]
[null,null,null,null,null,null,null,null,null,null,null,null,null,null,null,null,null,"2018КП199.1","Лечение на тумори на кожа и лигавици – злокачествени новообразувания",550,"КП"]
[null,null,null,null,null,null,null,null,null,null,null,null,null,null,null,null,null,"2018КП199.2","Лечение на тумори на кожа и лигавици – доброкачествени новообразувания",305,"КП"]
[null,null,null,null,null,null,null,null,null,null,null,null,null,null,null,null,null,"2018КП200","Реконструктивни операции на гърдата по медицински показания след доброкачествени и злокачествени тумори, вродени заболявания и последици от травми и изгаряния",800,"КП"]
[null,null,null,null,null,null,null,null,null,null,null,null,null,null,null,null,null,"2018КП201","Оперативни процедури върху щитовидна и паращитовидни жлези, с голям и много голям обем и сложност",1000,"КП"]
[null,null,null,null,null,null,null,null,null,null,null,null,null,null,null,null,null,"2018КП202","Оперативни процедури върху щитовидна и паращитовидни жлези, със среден обем и сложност",800,"КП"]
[null,null,null,null,null,null,null,null,null,null,null,null,null,null,null,null,null,"2018КП203","Хирургично лечение при надбъбречни заболявания",1500,"КП"]
[null,null,null,null,null,null,null,null,null,null,null,null,null,null,null,null,null,"2018КП204","Тежка черепно-мозъчна травма – оперативно лечение",3400,"КП"]
[null,null,null,null,null,null,null,null,null,null,null,null,null,null,null,null,null,"2018КП205","Тежка черепно-мозъчна травма – консервативно поведение",1330,"КП"]
[null,null,null,null,null,null,null,null,null,null,null,null,null,null,null,null,null,"2018КП206","Краниотомии, неиндицирани от травма, чрез съвременни технологиии (невронавигация, невроендоскопия и интраоперативен ултразвук)",3900,"КП"]
[null,null,null,null,null,null,null,null,null,null,null,null,null,null,null,null,null,"2018КП207","Краниотомии, неиндицирани от травма, по класически начин",2300,"КП"]
[null,null,null,null,null,null,null,null,null,null,null,null,null,null,null,null,null,"2018КП208","Консервативно поведение при леки и средно тежки черепно-мозъчни травми",400,"КП"]
[null,null,null,null,null,null,null,null,null,null,null,null,null,null,null,null,null,"2018КП209","Хирургично лечение при травма на главата",1052,"КП"]
[null,null,null,null,null,null,null,null,null,null,null,null,null,null,null,null,null,"2018КП210","Периферни и черепномозъчни нерви (екстракраниална част) – оперативно лечение",800,"КП"]
[null,null,null,null,null,null,null,null,null,null,null,null,null,null,null,null,null,"2018КП211","Гръбначни и гръбначно-мозъчни оперативни интервенции с голям и много голям обем и сложност",2450,"КП"]
[null,null,null,null,null,null,null,null,null,null,null,null,null,null,null,null,null,"2018КП212","Гръбначни и гръбначно-мозъчни оперативни интервенции с малък и среден обем и сложност",1819,"КП"]
[null,null,null,null,null,null,null,null,null,null,null,null,null,null,null,null,null,"2018КП213","Оперативно лечение на тумори на бял дроб, медиастинум, плевра и гръдна стена",2700,"КП"]
[null,null,null,null,null,null,null,null,null,null,null,null,null,null,null,null,null,"2018КП214","Разширени (големи) операции с пълно или частично отстраняване на повече от един интраторакален орган, включително медиастинален тумор или гръдна стена. Едноетапни операции при белодробни болести засягащи двата бели дроба при болести със съчетана белодробна и друга локализация",3300,"КП"]
[null,null,null,null,null,null,null,null,null,null,null,null,null,null,null,null,null,"2018КП215","Оперативно лечение на болести на бял дроб, медиастинум, плевра и гръдна стена, без онкологични заболявания",1650,"КП"]
[null,null,null,null,null,null,null,null,null,null,null,null,null,null,null,null,null,"2018КП216","Спешни състояния в гръдната хирургия",550,"КП"]
[null,null,null,null,null,null,null,null,null,null,null,null,null,null,null,null,null,"2018КП217.1","Оперативни процедури с голям обем и сложност на таза и долния крайник",2050,"КП"]
[null,null,null,null,null,null,null,null,null,null,null,null,null,null,null,null,null,"2018КП217.2","Оперативни процедури с много голям обем и сложност на таза, тазобедрената и колянната става",4700,"КП"]
[null,null,null,null,null,null,null,null,null,null,null,null,null,null,null,null,null,"2018КП217.3","Оперативни процедури при множествени счупвания и/или луксации на таза, горни и долни крайници",5350,"КП"]
[null,null,null,null,null,null,null,null,null,null,null,null,null,null,null,null,null,"2018КП218","Оперативни процедури с алопластика на тазобедрена и колянна става",1257,"КП"]
[null,null,null,null,null,null,null,null,null,null,null,null,null,null,null,null,null,"2018КП219","Оперативни процедури на таза и долния крайник със среден обем и сложност",910,"КП"]
[null,null,null,null,null,null,null,null,null,null,null,null,null,null,null,null,null,"2018КП220","Оперативни процедури в областта на раменния пояс и горния крайник с голям обем и сложност",1000,"КП"]
[null,null,null,null,null,null,null,null,null,null,null,null,null,null,null,null,null,"2018КП221","Оперативни процедури в областта на раменния пояс и горния крайник с много голям обем и сложност",1326,"КП"]
[null,null,null,null,null,null,null,null,null,null,null,null,null,null,null,null,null,"2018КП222","Средни оперативни процедури в областта на раменния пояс и горния крайник",460,"КП"]
[null,null,null,null,null,null,null,null,null,null,null,null,null,null,null,null,null,"2018КП223","Оперативни процедури при заболявания на гръдния кош",720,"КП"]
[null,null,null,null,null,null,null,null,null,null,null,null,null,null,null,null,null,"2018КП224","Септични (бактериални) артрити и остеомиелити при лица под 18 години",1200,"КП"]
[null,null,null,null,null,null,null,null,null,null,null,null,null,null,null,null,null,"2018КП225","Хирургично лечение в лицево-челюстната област с много голям обем и сложност",1000,"КП"]
[null,null,null,null,null,null,null,null,null,null,null,null,null,null,null,null,null,"2018КП226","Оперативно лечение в лицево-челюстната област с голям обем и сложност",705,"КП"]
[null,null,null,null,null,null,null,null,null,null,null,null,null,null,null,null,null,"2018КП227","Оперативни процедури в лицево-челюстната област със среден обем и сложност",863,"КП"]
[null,null,null,null,null,null,null,null,null,null,null,null,null,null,null,null,null,"2018КП228","Оперативно лечение на възпалителни процеси в областта на лицето и шията",500,"КП"]
[null,null,null,null,null,null,null,null,null,null,null,null,null,null,null,null,null,"2018КП229","Консервативно лечение при заболявания на лицево-челюстната област",300,"КП"]
[null,null,null,null,null,null,null,null,null,null,null,null,null,null,null,null,null,"2018КП230","Оперативно лечение на вродени малформации в лицево-челюстната област",900,"КП"]
[null,null,null,null,null,null,null,null,null,null,null,null,null,null,null,null,null,"2018КП231","Лечение на фрактури на лицевите и челюстните кости",803,"КП"]
[null,null,null,null,null,null,null,null,null,null,null,null,null,null,null,null,null,"2018КП232","Хирургично лечение на изгаряния с площ от 5 % до 10 % при възрастни и до 3 % при деца",500,"КП"]
[null,null,null,null,null,null,null,null,null,null,null,null,null,null,null,null,null,"2018КП233","Хирургично лечение при необширни изгаряния с площ от 1 до 19 % от телесната повърхност, с хирургични интервенции",3030,"КП"]
[null,null,null,null,null,null,null,null,null,null,null,null,null,null,null,null,null,"2018КП234","Хирургично лечение при обширни изгаряния над 20 % от телесната повърхност, с хирургични интервенции",9000,"КП"]
[null,null,null,null,null,null,null,null,null,null,null,null,null,null,null,null,null,"2018КП235","Оперативно лечение на поражения, предизвикани от ниски температури (измръзване)",500,"КП"]
[null,null,null,null,null,null,null,null,null,null,null,null,null,null,null,null,null,"2018КП236","Оперативно лечение на последствията от изгаряне и травма на кожата и подкожната тъкан",1700,"КП"]
[null,null,null,null,null,null,null,null,null,null,null,null,null,null,null,null,null,"2018КП237","Оперативно лечение на кожни дефекти от различно естество, налагащи пластично възстановяване",950,"КП"]
[null,null,null,null,null,null,null,null,null,null,null,null,null,null,null,null,null,"2018КП238","Реплантация и реконструкции с микросъдова хирургия",7000,"КП"]
[null,null,null,null,null,null,null,null,null,null,null,null,null,null,null,null,null,"2018КП239","Оперативно лечение на деца до 1 година с вродени аномалии в областта на торакалната и абдоминалната област",10000,"КП"]
[null,null,null,null,null,null,null,null,null,null,null,null,null,null,null,null,null,"2018КП240","Продължително системно парентерално лекарствено лечение на злокачествени солидни тумори и свързаните с него усложнения",470,"КП"]
[null,null,null,null,null,null,null,null,null,null,null,null,null,null,null,null,null,"2018КП241.1","Диагностични процедури за стадиране и оценка на терапевтичния отговор при пациенти със злокачествени солидни тумори с КТ",400,"КП"]
[null,null,null,null,null,null,null,null,null,null,null,null,null,null,null,null,null,"2018КП241.2","Диагностични процедури за стадиране и оценка на терапевтичния отговор при пациенти със злокачествени солидни тумори с ЯМР",600,"КП"]
[null,null,null,null,null,null,null,null,null,null,null,null,null,null,null,null,null,"2018КП242","Диагностика и лечение на левкемии",850,"КП"]
[null,null,null,null,null,null,null,null,null,null,null,null,null,null,null,null,null,"2018КП243","Диагностика и лечение на лимфоми",665,"КП"]
[null,null,null,null,null,null,null,null,null,null,null,null,null,null,null,null,null,"2018КП244","Диагностика и лечение на хеморагични диатези. Анемии",570,"КП"]
[null,null,null,null,null,null,null,null,null,null,null,null,null,null,null,null,null,"2018КП245","Диагностика и консервативно лечение на онкологични и онкохематологични заболявания, възникнали в детска възраст",1000,"КП"]
[null,null,null,null,null,null,null,null,null,null,null,null,null,null,null,null,null,"2018КП246","Ортоволтно перкутанно лъчелечение и брахитерапия с високи активности",665,"КП"]
[null,null,null,null,null,null,null,null,null,null,null,null,null,null,null,null,null,"2018КП247","Брахитерапия с ниски активности",327,"КП"]
[null,null,null,null,null,null,null,null,null,null,null,null,null,null,null,null,null,"2018КП248","Конвенционална телегаматерапия",640,"КП"]
[null,null,null,null,null,null,null,null,null,null,null,null,null,null,null,null,null,"2018КП249","Триизмерна конвенционална телегаматерапия и брахитерапия със закрити източници",1100,"КП"]
[null,null,null,null,null,null,null,null,null,null,null,null,null,null,null,null,null,"2018КП250.1","Високотехнологично лъчелечение на онкологични и неонкологични заболявания 3 дни престой без лъчехимиотерапия",1850,"КП"]
[null,null,null,null,null,null,null,null,null,null,null,null,null,null,null,null,null,"2018КП250.2","Високотехнологично лъчелечение на онкологични и неонкологични заболявания 30 дни престой или не по-малко от 20 процедури без нощувка",3700,"КП"]
[null,null,null,null,null,null,null,null,null,null,null,null,null,null,null,null,null,"2018КП251.1","Модулирано по интензитет лъчелечение на онкологични и неонкологични заболявания престой 5 дни или не по-малко от 5 процедури",2700,"КП"]
[null,null,null,null,null,null,null,null,null,null,null,null,null,null,null,null,null,"2018КП251.2","Модулирано по интензитет лъчелечение на онкологични и неонкологични заболявания 30 дни престой или не по-малко от 20 процедури без нощувка",5400,"КП"]
[null,null,null,null,null,null,null,null,null,null,null,null,null,null,null,null,null,"2018КП252.1","Радиохирургия на онкологични и неонкологични заболявания",4500,"КП"]
[null,null,null,null,null,null,null,null,null,null,null,null,null,null,null,null,null,"2018КП252.2","Радиохирургия на онкологични и неонкологични заболявания – роботизирана с кибернож",9000,"КП"]
[null,null,null,null,null,null,null,null,null,null,null,null,null,null,null,null,null,"2018КП253","Палиативни грижи за болни с онкологични заболявания",65,"КП"]
[null,null,null,null,null,null,null,null,null,null,null,null,null,null,null,null,null,"2018КП254","Продължително лечение и ранна рехабилитация след острия стадий на исхемичен и хеморагичен мозъчен инсулт с остатъчни проблеми за здравето",50,"КП"]
[null,null,null,null,null,null,null,null,null,null,null,null,null,null,null,null,null,"2018КП255","Продължително лечение и ранна рехабилитация след инфаркт на миокарда и след сърдечни интервенции",50,"КП"]
[null,null,null,null,null,null,null,null,null,null,null,null,null,null,null,null,null,"2018КП256","Продължително лечение и ранна рехабилитация след оперативни интервенции с голям и много голям обем и сложност с остатъчни проблеми за здравето",54,"КП"]
[null,null,null,null,null,null,null,null,null,null,null,null,null,null,null,null,null,"2018КП257","Физикална терапия, рехабилитация и специализирани грижи при персистиращо/хронично/вегетативно състояние",100,"КП"]
[null,null,null,null,null,null,null,null,null,null,null,null,null,null,null,null,null,"2018КП258","Физикална терапия и рехабилитация при родова травма на централна нервна система",40,"КП"]
[null,null,null,null,null,null,null,null,null,null,null,null,null,null,null,null,null,"2018КП259","Физикална терапия и рехабилитация при родова травма на периферна нервна система",40,"КП"]
[null,null,null,null,null,null,null,null,null,null,null,null,null,null,null,null,null,"2018КП260","Физикална терапия и рехабилитация при детска церебрална парализа",60,"КП"]
[null,null,null,null,null,null,null,null,null,null,null,null,null,null,null,null,null,"2018КП261","Физикална терапия и рехабилитация при първични мускулни увреждания и спинална мускулна атрофия",400,"КП"]
[null,null,null,null,null,null,null,null,null,null,null,null,null,null,null,null,null,"2018КП262","Физикална терапия и рехабилитация на болести на централна нервна система",482,"КП"]
[null,null,null,null,null,null,null,null,null,null,null,null,null,null,null,null,null,"2018КП263","Физикална терапия и рехабилитация при болести на периферна нервна система",330,"КП"]
[null,null,null,null,null,null,null,null,null,null,null,null,null,null,null,null,null,"2018КП264","Физикална терапия и рехабилитация след преживян/стар инфаркт на миокарда и след оперативни интервенции",482,"КП"]
[null,null,null,null,null,null,null,null,null,null,null,null,null,null,null,null,null,"2018КП265","Физикална терапия и рехабилитация при болести на опорно-двигателен апарат",330,"КП"]
[null,null,null,null,null,null,null,null,null,null,null,null,null,null,null,null,null,"2018КП266","Речева рехабилитация след ларингектомия",285,"КП"]
[null,null,null,null,null,null,null,null,null,null,null,null,null,null,null,null,null,"2018КП999","Наблюдение до 48 часа в стационарни условия след проведена амбулаторна процедура",120,"КП"]
[null,null,null,null,null,null,null,null,null,null,null,null,null,null,null,null,null,"2018КПр01","Диализно лечение при остри състояния",144,"КПр"]
[null,null,null,null,null,null,null,null,null,null,null,null,null,null,null,null,null,"2018КПр02","Интензивно лечение на новородени деца с асистирано дишане",100,"КПр"]
[null,null,null,null,null,null,null,null,null,null,null,null,null,null,null,null,null,"2018КПр03","Интензивно лечение, мониторинг и интензивни грижи с механична вентилация и/или парентерално хранене",426,"КПр"]
[null,null,null,null,null,null,null,null,null,null,null,null,null,null,null,null,null,"2018КПр04","Интензивно лечение, мониторинг и интензивни грижи без механична вентилация и/или парентерално хранене",155,"КПр"]
[null,null,null,null,null,null,null,null,null,null,null,null,null,null,null,null,null,"2018АПр01","Хрониохемодиализа",144,"АПр"]
[null,null,null,null,null,null,null,null,null,null,null,null,null,null,null,null,null,"2018АПр02","Перитонеална диализа с апарат",130,"АПр"]
[null,null,null,null,null,null,null,null,null,null,null,null,null,null,null,null,null,"2018АПр03","Перитонеална диализа без апарат",93,"АПр"]
[null,null,null,null,null,null,null,null,null,null,null,null,null,null,null,null,null,"2018АПр04","Осигуряване на постоянен достъп за провеждане на диализно лечение и химиотерапия",182,"АПр"]
[null,null,null,null,null,null,null,null,null,null,null,null,null,null,null,null,null,"2018АПр05","Определяне на план за лечение на болни със злокачествени заболявания",50,"АПр"]
[null,null,null,null,null,null,null,null,null,null,null,null,null,null,null,null,null,"2018АПр06","Системнолекарствено лечение при злокачествени солидни тумори и хематологични заболявания",150,"АПр"]
[null,null,null,null,null,null,null,null,null,null,null,null,null,null,null,null,null,"2018АПр07","Амбулаторно наблюдение/диспансеризация при злокачествени заболявания и при вродени хематологични заболявания",130,"АПр"]
[null,null,null,null,null,null,null,null,null,null,null,null,null,null,null,null,null,"2018АПр08","Проследяване на терапевтичния отговор при пациенти на домашно лечение с прицелна перорална противотуморна терапия и перорална химиотерапия",250,"АПр"]
[null,null,null,null,null,null,null,null,null,null,null,null,null,null,null,null,null,"2018АПр09","Амбулаторно наблюдение/диспансеризация при муковисцидоза",45,"АПр"]
[null,null,null,null,null,null,null,null,null,null,null,null,null,null,null,null,null,"2018АПр10","Наблюдение при пациенти с невромускулни заболявания на неинвазивна вентилация",160,"АПр"]
[null,null,null,null,null,null,null,null,null,null,null,null,null,null,null,null,null,"2018АПр11","Консервативно лечение на продължителна бъбречна колика",91,"АПр"]
[null,null,null,null,null,null,null,null,null,null,null,null,null,null,null,null,null,"2018АПр12","Бъбречно-каменна болест: уролитиаза – екстракорпорална литотрипсия",266,"АПр"]
[null,null,null,null,null,null,null,null,null,null,null,null,null,null,null,null,null,"2018АПр13","Инструментална диагностика и лечение на заболявания на щитовидната жлеза",154,"АПр"]
[null,null,null,null,null,null,null,null,null,null,null,null,null,null,null,null,null,"2018АПр14","Диагностика и определяне на терапевтично поведение на заболявания на хипофизата и надбъбрека",210,"АПр"]
[null,null,null,null,null,null,null,null,null,null,null,null,null,null,null,null,null,"2018АПр15","Диагностика и определяне на терапевтично поведение на костни метаболитни заболявания и нарушения на калциево-фосфорната обмяна",150,"АПр"]
[null,null,null,null,null,null,null,null,null,null,null,null,null,null,null,null,null,"2018АПр16","Лечение на тежкопротичащи форми на псориазис",32,"АПр"]
[null,null,null,null,null,null,null,null,null,null,null,null,null,null,null,null,null,"2018АПр17","Диагностика и лечение на еритродермии",26,"АПр"]
[null,null,null,null,null,null,null,null,null,null,null,null,null,null,null,null,null,"2018АПр18","Оперативни процедури в областта на ушите, носа и гърлото и лицево-челюстната област с малък обем и сложност",250,"АПр"]
[null,null,null,null,null,null,null,null,null,null,null,null,null,null,null,null,null,"2018АПр19","Оперативно отстраняване на катаракта",380,"АПр"]
[null,null,null,null,null,null,null,null,null,null,null,null,null,null,null,null,null,"2018АПр20","Хирургично лечение на глаукома",390,"АПр"]
[null,null,null,null,null,null,null,null,null,null,null,null,null,null,null,null,null,"2018АПр21","Оперативни интервенции върху окото и придатъците му със среден обем и сложност",150,"АПр"]
[null,null,null,null,null,null,null,null,null,null,null,null,null,null,null,null,null,"2018АПр22","Малки оперативни процедури на раменен пояс и горен крайник",193,"АПр"]
[null,null,null,null,null,null,null,null,null,null,null,null,null,null,null,null,null,"2018АПр23","Малки оперативни процедури на таза и долния крайник",256,"АПр"]
[null,null,null,null,null,null,null,null,null,null,null,null,null,null,null,null,null,"2018АПр24","Mалки артроскопски процедури в областта на скелетно-мускулната система",144,"АПр"]
[null,null,null,null,null,null,null,null,null,null,null,null,null,null,null,null,null,"2018АПр25","Диагностична и терапевтична пункция и/или биопсия",58,"АПр"]
[null,null,null,null,null,null,null,null,null,null,null,null,null,null,null,null,null,"2018АПр26","Амбулаторни хирургични процедури",90,"АПр"]
[null,null,null,null,null,null,null,null,null,null,null,null,null,null,null,null,null,"2018АПр27","Специфични изследвания при хематологични заболявания",250,"АПр"]
[null,null,null,null,null,null,null,null,null,null,null,null,null,null,null,null,null,"2018АПр28","Паравертебрални блокади и блокади на отделни нерви",25,"АПр"]
[null,null,null,null,null,null,null,null,null,null,null,null,null,null,null,null,null,"2018АПр29","Поетапна вертикализация и обучение в ходене",100,"АПр"]
[null,null,null,null,null,null,null,null,null,null,null,null,null,null,null,null,null,"2018АПр30","Напасване на протеза на горен или долен крайник",24,"АПр"]
[null,null,null,null,null,null,null,null,null,null,null,null,null,null,null,null,null,"2018АПр31","Амбулаторно наблюдение на лица с кохлеарно-имплантна система",50,"АПр"]
[null,null,null,null,null,null,null,null,null,null,null,null,null,null,null,null,null,"2018АПр32","Амбулаторно наблюдение на лица с постоянен електрокардиостимулатор",50,"АПр"]
[null,null,null,null,null,null,null,null,null,null,null,null,null,null,null,null,null,"2018АПр33","Парентерална инфузия на лекарствени продукти по терапевтична схема",12,"АПр"]
[null,null,null,null,null,null,null,null,null,null,null,null,null,null,null,null,null,"2018АПр34","Ендоскопска диагностика на заболявания, засягащи стомашно-чревния тракт",120,"АПр"]
[null,null,null,null,null,null,null,null,null,null,null,null,null,null,null,null,null,"2018АПр35","Сцинтиграфски изследвания",70,"АПр"]
[null,null,null,null,null,null,null,null,null,null,null,null,null,null,null,null,null,"2018АПр36","Позитроннo-емисионна томография с компютърна томография (ПЕТ/КТ) (РЕТ/СТ)",2000,"АПр"]
[null,null,null,null,null,null,null,null,null,null,null,null,null,null,null,null,null,"2018АПр37","Еднофотонна емисионна компютърна томография с компютърна томография – SPECT/CT на хибриден скенер",350,"АПр"]
[null,null,null,null,null,null,null,null,null,null,null,null,null,null,null,null,null,"2018АПр38","Определяне на план на лечение и проследяване на терапевтичния отговор при пациенти, получаващи скъпоструващи лекарствени продукти по реда на чл. 78, т. 2 от ЗЗО(лекарствени продукти, прилагани при животоастрашаващи кръвоизливи,спешни оперативни интервенции при пациенти с вродени коагулопатии)",22,"АПр"]
[null,null,null,null,null,null,null,null,null,null,null,null,null,null,null,null,null,"2018АПр39","Амбулатарно лечение и контрол на гноен хидраденит",150,"АПр"]
[null,null,null,null,null,null,null,null,null,null,null,null,null,null,null,null,null,"2018АПр40","Амбулаторно лечение и контрол на идиопатична белодробна фиброза",90,"АПр"]
[null,null,null,null,null,null,null,null,null,null,null,null,null,null,null,null,null,"2018АПр41","Амбулаторно лечение и контрол при туберозна склероза",90,"АПр"]
[null,null,null,null,null,null,null,null,null,null,null,null,null,null,null,null,null,"2018АПр42","Амбулаторно наблюдение/диспансеризация на пациенти с тежкопротичащи възпалителни полиартропатии и спондилопатии",90,"АПр"]

{"sheet":"Sheet3","index":7,"n_rows":0,"n_cols":0,"rows_kept":0,"cut":false,"hidden":true,"merged":[]}